{"text_format":"1","workbook":"xlsx","n_sheets":2,"sheets":["Analyses","Settings"],"not_rendered":{"charts":0,"images":1,"macros":1,"external_links":0,"defined_names":6,"comments":2,"pivot_tables":0},"unopened":[],"bounds":{"document_bytes":16777216,"sheet_cells":100000,"rows_first":2000,"rows_last":500,"rows_between":2000,"halvings":0,"cell_chars":16384,"cell_head_chars":4096},"cells_cut":0,"cells_raw":0,"read":"whole","date_system":"1900"}

{"sheet":"Analyses","index":0,"n_rows":1001,"n_cols":49,"rows_kept":1001,"cut":false,"hidden":false,"merged":[]}
[null,"Analyte","Abbreviation","Units.Name","UnitsID","ReportName","ReportFormat","ContainerType.Name","ContainerTypeID","Preservative.Name","PreservativeID","ExpirationDays","WarningDays","MinDetectLimit","ResultMax","WarningMax","WarningMin","ResultMin","TargetValue","PerformedInhouse","Method.Name","MethodID","SampleAmount","Notes","Inactive","Cost","SampleAmountUnits","Workbook","QCDataWorksheet","ResultWorksheet","ResultCell","ResultDirection","ResultOffset","SampleIDCell","QCResultCell","QCResultDirection","QCResultOffset","QCTypeCell","QCReferenceCell","InternalData","ResultsByAdmin","Account","CostSentOut","SortOrder","CASNumber","UncertaintyFactor","UncertaintyDescription","DilutionFactorCell","ReportSpecs"]
[null,"MyAnalyte",null,"cfu/g",{"$f":"IF(ISBLANK(D2), \"\", VLOOKUP(D2, UnitsLookup, 2,FALSE))","v":1},null,"0.00","N/A",{"$f":"IF(ISBLANK(H2), \"\", VLOOKUP(H2, ContainerTypeLookup, 2,FALSE))","v":1},"N/A",{"$f":"IF(ISBLANK(J2), \"\", VLOOKUP(J2, PreservativeLookup, 2,FALSE))","v":1},999,null,0,9.9999999999999997E+98,9.9999999999999997E+98,0,0,null,true,null,{"$f":"IF(ISBLANK(U2), \"\", VLOOKUP(U2, MethodLookup, 2,FALSE))","v":""},null,null,false,null,null,null,null,null,null,null,null,null,null,null,null,null,null,false,false]
[null,null,null,null,"",null,null,null,"",null,"",null,null,null,null,null,null,null,null,true,null,{"$f":"IF(ISBLANK(U3), \"\", VLOOKUP(U3, MethodLookup, 2,FALSE))","v":""},null,null,false,null,null,null,null,null,null,null,null,null,null,null,null,null,null,false,false]
[null,null,null,null,"",null,null,null,"",null,"",null,null,null,null,null,null,null,null,true,null,{"$f":"IF(ISBLANK(U4), \"\", VLOOKUP(U4, MethodLookup, 2,FALSE))","v":""},null,null,false,null,null,null,null,null,null,null,null,null,null,null,null,null,null,false,false]
[null,null,null,null,"",null,null,null,"",null,"",null,null,null,null,null,null,null,null,true,null,{"$f":"IF(ISBLANK(U5), \"\", VLOOKUP(U5, MethodLookup, 2,FALSE))","v":""},null,null,false,null,null,null,null,null,null,null,null,null,null,null,null,null,null,false,false]
[null,null,null,null,"",null,null,null,"",null,"",null,null,null,null,null,null,null,null,true,null,"",null,null,false,null,null,null,null,null,null,null,null,null,null,null,null,null,null,false,false]
[null,null,null,null,"",null,null,null,"",null,"",null,null,null,null,null,null,null,null,true,null,"",null,null,false,null,null,null,null,null,null,null,null,null,null,null,null,null,null,false,false]
[null,null,null,null,"",null,null,null,"",null,"",null,null,null,null,null,null,null,null,true,null,"",null,null,false,null,null,null,null,null,null,null,null,null,null,null,null,null,null,false,false]
[null,null,null,null,{"$f":"IF(ISBLANK(D9), \"\", VLOOKUP(D9, UnitsLookup, 2,FALSE))","v":""},null,null,null,"",null,"",null,null,null,null,null,null,null,null,true,null,"",null,null,false,null,null,null,null,null,null,null,null,null,null,null,null,null,null,false,false]
[null,null,null,null,"",null,null,null,"",null,"",null,null,null,null,null,null,null,null,true,null,"",null,null,false,null,null,null,null,null,null,null,null,null,null,null,null,null,null,false,false]
[null,null,null,null,"",null,null,null,"",null,{"$f":"IF(ISBLANK(J11), \"\", VLOOKUP(J11, PreservativeLookup, 2,FALSE))","v":""},null,null,null,null,null,null,null,null,true,null,"",null,null,false,null,null,null,null,null,null,null,null,null,null,null,null,null,null,false,false]
[null,null,null,null,"",null,null,null,{"$f":"IF(ISBLANK(H12), \"\", VLOOKUP(H12, ContainerTypeLookup, 2,FALSE))","v":""},null,"",null,null,null,null,null,null,null,null,true,null,"",null,null,false,null,null,null,null,null,null,null,null,null,null,null,null,null,null,false,false]
[null,null,null,null,"",null,null,null,"",null,"",null,null,null,null,null,null,null,null,true,null,"",null,null,false,null,null,null,null,null,null,null,null,null,null,null,null,null,null,false,false]
[null,null,null,null,"",null,null,null,"",null,"",null,null,null,null,null,null,null,null,true,null,"",null,null,false,null,null,null,null,null,null,null,null,null,null,null,null,null,null,false,false]
[null,null,null,null,"",null,null,null,"",null,"",null,null,null,null,null,null,null,null,true,null,"",null,null,false,null,null,null,null,null,null,null,null,null,null,null,null,null,null,false,false]
[null,null,null,null,"",null,null,null,"",null,"",null,null,null,null,null,null,null,null,true,null,"",null,null,false,null,null,null,null,null,null,null,null,null,null,null,null,null,null,false,false]
[null,null,null,null,"",null,null,null,"",null,"",null,null,null,null,null,null,null,null,true,null,"",null,null,false,null,null,null,null,null,null,null,null,null,null,null,null,null,null,false,false]
[null,null,null,null,"",null,null,null,"",null,"",null,null,null,null,null,null,null,null,true,null,"",null,null,false,null,null,null,null,null,null,null,null,null,null,null,null,null,null,false,false]
[null,null,null,null,"",null,null,null,"",null,"",null,null,null,null,null,null,null,null,true,null,"",null,null,false,null,null,null,null,null,null,null,null,null,null,null,null,null,null,false,false]
[null,null,null,null,"",null,null,null,"",null,"",null,null,null,null,null,null,null,null,true,null,"",null,null,false,null,null,null,null,null,null,null,null,null,null,null,null,null,null,false,false]
[null,null,null,null,"",null,null,null,"",null,"",null,null,null,null,null,null,null,null,true,null,"",null,null,false,null,null,null,null,null,null,null,null,null,null,null,null,null,null,false,false]
[null,null,null,null,"",null,null,null,"",null,"",null,null,null,null,null,null,null,null,true,null,"",null,null,false,null,null,null,null,null,null,null,null,null,null,null,null,null,null,false,false]
[null,null,null,null,"",null,null,null,"",null,"",null,null,null,null,null,null,null,null,true,null,"",null,null,false,null,null,null,null,null,null,null,null,null,null,null,null,null,null,false,false]
[null,null,null,null,"",null,null,null,"",null,"",null,null,null,null,null,null,null,null,true,null,"",null,null,false,null,null,null,null,null,null,null,null,null,null,null,null,null,null,false,false]
[null,null,null,null,"",null,null,null,"",null,"",null,null,null,null,null,null,null,null,true,null,"",null,null,false,null,null,null,null,null,null,null,null,null,null,null,null,null,null,false,false]
[null,null,null,null,"",null,null,null,"",null,"",null,null,null,null,null,null,null,null,true,null,"",null,null,false,null,null,null,null,null,null,null,null,null,null,null,null,null,null,false,false]
[null,null,null,null,"",null,null,null,"",null,"",null,null,null,null,null,null,null,null,true,null,"",null,null,false,null,null,null,null,null,null,null,null,null,null,null,null,null,null,false,false]
[null,null,null,null,"",null,null,null,"",null,"",null,null,null,null,null,null,null,null,true,null,"",null,null,false,null,null,null,null,null,null,null,null,null,null,null,null,null,null,false,false]
[null,null,null,null,"",null,null,null,"",null,"",null,null,null,null,null,null,null,null,true,null,"",null,null,false,null,null,null,null,null,null,null,null,null,null,null,null,null,null,false,false]
[null,null,null,null,"",null,null,null,"",null,"",null,null,null,null,null,null,null,null,true,null,"",null,null,false,null,null,null,null,null,null,null,null,null,null,null,null,null,null,false,false]
[null,null,null,null,"",null,null,null,"",null,"",null,null,null,null,null,null,null,null,true,null,"",null,null,false,null,null,null,null,null,null,null,null,null,null,null,null,null,null,false,false]
[null,null,null,null,"",null,null,null,"",null,"",null,null,null,null,null,null,null,null,true,null,"",null,null,false,null,null,null,null,null,null,null,null,null,null,null,null,null,null,false,false]
[null,null,null,null,"",null,null,null,"",null,"",null,null,null,null,null,null,null,null,true,null,"",null,null,false,null,null,null,null,null,null,null,null,null,null,null,null,null,null,false,false]
[null,null,null,null,"",null,null,null,"",null,"",null,null,null,null,null,null,null,null,true,null,"",null,null,false,null,null,null,null,null,null,null,null,null,null,null,null,null,null,false,false]
[null,null,null,null,"",null,null,null,"",null,"",null,null,null,null,null,null,null,null,true,null,"",null,null,false,null,null,null,null,null,null,null,null,null,null,null,null,null,null,false,false]
[null,null,null,null,"",null,null,null,"",null,"",null,null,null,null,null,null,null,null,true,null,"",null,null,false,null,null,null,null,null,null,null,null,null,null,null,null,null,null,false,false]
[null,null,null,null,"",null,null,null,"",null,"",null,null,null,null,null,null,null,null,true,null,"",null,null,false,null,null,null,null,null,null,null,null,null,null,null,null,null,null,false,false]
[null,null,null,null,"",null,null,null,"",null,"",null,null,null,null,null,null,null,null,true,null,"",null,null,false,null,null,null,null,null,null,null,null,null,null,null,null,null,null,false,false]
[null,null,null,null,"",null,null,null,"",null,"",null,null,null,null,null,null,null,null,true,null,"",null,null,false,null,null,null,null,null,null,null,null,null,null,null,null,null,null,false,false]
[null,null,null,null,"",null,null,null,"",null,"",null,null,null,null,null,null,null,null,true,null,"",null,null,false,null,null,null,null,null,null,null,null,null,null,null,null,null,null,false,false]
[null,null,null,null,"",null,null,null,"",null,"",null,null,null,null,null,null,null,null,true,null,"",null,null,false,null,null,null,null,null,null,null,null,null,null,null,null,null,null,false,false]
[null,null,null,null,"",null,null,null,"",null,"",null,null,null,null,null,null,null,null,true,null,"",null,null,false,null,null,null,null,null,null,null,null,null,null,null,null,null,null,false,false]
[null,null,null,null,"",null,null,null,"",null,"",null,null,null,null,null,null,null,null,true,null,"",null,null,false,null,null,null,null,null,null,null,null,null,null,null,null,null,null,false,false]
[null,null,null,null,"",null,null,null,"",null,"",null,null,null,null,null,null,null,null,true,null,"",null,null,false,null,null,null,null,null,null,null,null,null,null,null,null,null,null,false,false]
[null,null,null,null,"",null,null,null,"",null,"",null,null,null,null,null,null,null,null,true,null,"",null,null,false,null,null,null,null,null,null,null,null,null,null,null,null,null,null,false,false]
[null,null,null,null,"",null,null,null,"",null,"",null,null,null,null,null,null,null,null,true,null,"",null,null,false,null,null,null,null,null,null,null,null,null,null,null,null,null,null,false,false]
[null,null,null,null,"",null,null,null,"",null,"",null,null,null,null,null,null,null,null,true,null,"",null,null,false,null,null,null,null,null,null,null,null,null,null,null,null,null,null,false,false]
[null,null,null,null,"",null,null,null,"",null,"",null,null,null,null,null,null,null,null,true,null,"",null,null,false,null,null,null,null,null,null,null,null,null,null,null,null,null,null,false,false]
[null,null,null,null,"",null,null,null,"",null,"",null,null,null,null,null,null,null,null,true,null,"",null,null,false,null,null,null,null,null,null,null,null,null,null,null,null,null,null,false,false]
[null,null,null,null,"",null,null,null,"",null,"",null,null,null,null,null,null,null,null,true,null,"",null,null,false,null,null,null,null,null,null,null,null,null,null,null,null,null,null,false,false]
[null,null,null,null,"",null,null,null,"",null,"",null,null,null,null,null,null,null,null,true,null,"",null,null,false,null,null,null,null,null,null,null,null,null,null,null,null,null,null,false,false]
[null,null,null,null,"",null,null,null,"",null,"",null,null,null,null,null,null,null,null,true,null,"",null,null,false,null,null,null,null,null,null,null,null,null,null,null,null,null,null,false,false]
[null,null,null,null,"",null,null,null,"",null,"",null,null,null,null,null,null,null,null,true,null,"",null,null,false,null,null,null,null,null,null,null,null,null,null,null,null,null,null,false,false]
[null,null,null,null,"",null,null,null,"",null,"",null,null,null,null,null,null,null,null,true,null,"",null,null,false,null,null,null,null,null,null,null,null,null,null,null,null,null,null,false,false]
[null,null,null,null,"",null,null,null,"",null,"",null,null,null,null,null,null,null,null,true,null,"",null,null,false,null,null,null,null,null,null,null,null,null,null,null,null,null,null,false,false]
[null,null,null,null,"",null,null,null,"",null,"",null,null,null,null,null,null,null,null,true,null,"",null,null,false,null,null,null,null,null,null,null,null,null,null,null,null,null,null,false,false]
[null,null,null,null,"",null,null,null,"",null,"",null,null,null,null,null,null,null,null,true,null,"",null,null,false,null,null,null,null,null,null,null,null,null,null,null,null,null,null,false,false]
[null,null,null,null,"",null,null,null,"",null,"",null,null,null,null,null,null,null,null,true,null,"",null,null,false,null,null,null,null,null,null,null,null,null,null,null,null,null,null,false,false]
[null,null,null,null,"",null,null,null,"",null,"",null,null,null,null,null,null,null,null,true,null,"",null,null,false,null,null,null,null,null,null,null,null,null,null,null,null,null,null,false,false]
[null,null,null,null,"",null,null,null,"",null,"",null,null,null,null,null,null,null,null,true,null,"",null,null,false,null,null,null,null,null,null,null,null,null,null,null,null,null,null,false,false]
[null,null,null,null,"",null,null,null,"",null,"",null,null,null,null,null,null,null,null,true,null,"",null,null,false,null,null,null,null,null,null,null,null,null,null,null,null,null,null,false,false]
[null,null,null,null,"",null,null,null,"",null,"",null,null,null,null,null,null,null,null,true,null,"",null,null,false,null,null,null,null,null,null,null,null,null,null,null,null,null,null,false,false]
[null,null,null,null,"",null,null,null,"",null,"",null,null,null,null,null,null,null,null,true,null,"",null,null,false,null,null,null,null,null,null,null,null,null,null,null,null,null,null,false,false]
[null,null,null,null,"",null,null,null,"",null,"",null,null,null,null,null,null,null,null,true,null,"",null,null,false,null,null,null,null,null,null,null,null,null,null,null,null,null,null,false,false]
[null,null,null,null,"",null,null,null,"",null,"",null,null,null,null,null,null,null,null,true,null,"",null,null,false,null,null,null,null,null,null,null,null,null,null,null,null,null,null,false,false]
[null,null,null,null,"",null,null,null,"",null,"",null,null,null,null,null,null,null,null,true,null,"",null,null,false,null,null,null,null,null,null,null,null,null,null,null,null,null,null,false,false]
[null,null,null,null,"",null,null,null,"",null,"",null,null,null,null,null,null,null,null,true,null,"",null,null,false,null,null,null,null,null,null,null,null,null,null,null,null,null,null,false,false]
[null,null,null,null,"",null,null,null,"",null,"",null,null,null,null,null,null,null,null,true,null,"",null,null,false,null,null,null,null,null,null,null,null,null,null,null,null,null,null,false,false]
[null,null,null,null,{"$f":"IF(ISBLANK(D69), \"\", VLOOKUP(D69, UnitsLookup, 2,FALSE))","v":""},null,null,null,{"$f":"IF(ISBLANK(H69), \"\", VLOOKUP(H69, ContainerTypeLookup, 2,FALSE))","v":""},null,{"$f":"IF(ISBLANK(J69), \"\", VLOOKUP(J69, PreservativeLookup, 2,FALSE))","v":""},null,null,null,null,null,null,null,null,true,null,{"$f":"IF(ISBLANK(U69), \"\", VLOOKUP(U69, MethodLookup, 2,FALSE))","v":""},null,null,false,null,null,null,null,null,null,null,null,null,null,null,null,null,null,false,false]
[null,null,null,null,"",null,null,null,"",null,"",null,null,null,null,null,null,null,null,true,null,"",null,null,false,null,null,null,null,null,null,null,null,null,null,null,null,null,null,false,false]
[null,null,null,null,"",null,null,null,"",null,"",null,null,null,null,null,null,null,null,true,null,"",null,null,false,null,null,null,null,null,null,null,null,null,null,null,null,null,null,false,false]
[null,null,null,null,"",null,null,null,"",null,"",null,null,null,null,null,null,null,null,true,null,"",null,null,false,null,null,null,null,null,null,null,null,null,null,null,null,null,null,false,false]
[null,null,null,null,"",null,null,null,"",null,"",null,null,null,null,null,null,null,null,true,null,"",null,null,false,null,null,null,null,null,null,null,null,null,null,null,null,null,null,false,false]
[null,null,null,null,"",null,null,null,"",null,"",null,null,null,null,null,null,null,null,true,null,"",null,null,false,null,null,null,null,null,null,null,null,null,null,null,null,null,null,false,false]
[null,null,null,null,"",null,null,null,"",null,"",null,null,null,null,null,null,null,null,true,null,"",null,null,false,null,null,null,null,null,null,null,null,null,null,null,null,null,null,false,false]
[null,null,null,null,"",null,null,null,"",null,"",null,null,null,null,null,null,null,null,true,null,"",null,null,false,null,null,null,null,null,null,null,null,null,null,null,null,null,null,false,false]
[null,null,null,null,"",null,null,null,"",null,"",null,null,null,null,null,null,null,null,true,null,"",null,null,false,null,null,null,null,null,null,null,null,null,null,null,null,null,null,false,false]
[null,null,null,null,"",null,null,null,"",null,"",null,null,null,null,null,null,null,null,true,null,"",null,null,false,null,null,null,null,null,null,null,null,null,null,null,null,null,null,false,false]
[null,null,null,null,"",null,null,null,"",null,"",null,null,null,null,null,null,null,null,true,null,"",null,null,false,null,null,null,null,null,null,null,null,null,null,null,null,null,null,false,false]
[null,null,null,null,"",null,null,null,"",null,"",null,null,null,null,null,null,null,null,true,null,"",null,null,false,null,null,null,null,null,null,null,null,null,null,null,null,null,null,false,false]
[null,null,null,null,"",null,null,null,"",null,"",null,null,null,null,null,null,null,null,true,null,"",null,null,false,null,null,null,null,null,null,null,null,null,null,null,null,null,null,false,false]
[null,null,null,null,"",null,null,null,"",null,"",null,null,null,null,null,null,null,null,true,null,"",null,null,false,null,null,null,null,null,null,null,null,null,null,null,null,null,null,false,false]
[null,null,null,null,"",null,null,null,"",null,"",null,null,null,null,null,null,null,null,true,null,"",null,null,false,null,null,null,null,null,null,null,null,null,null,null,null,null,null,false,false]
[null,null,null,null,"",null,null,null,"",null,"",null,null,null,null,null,null,null,null,true,null,"",null,null,false,null,null,null,null,null,null,null,null,null,null,null,null,null,null,false,false]
[null,null,null,null,"",null,null,null,"",null,"",null,null,null,null,null,null,null,null,true,null,"",null,null,false,null,null,null,null,null,null,null,null,null,null,null,null,null,null,false,false]
[null,null,null,null,"",null,null,null,"",null,"",null,null,null,null,null,null,null,null,true,null,"",null,null,false,null,null,null,null,null,null,null,null,null,null,null,null,null,null,false,false]
[null,null,null,null,"",null,null,null,"",null,"",null,null,null,null,null,null,null,null,true,null,"",null,null,false,null,null,null,null,null,null,null,null,null,null,null,null,null,null,false,false]
[null,null,null,null,"",null,null,null,"",null,"",null,null,null,null,null,null,null,null,true,null,"",null,null,false,null,null,null,null,null,null,null,null,null,null,null,null,null,null,false,false]
[null,null,null,null,"",null,null,null,"",null,"",null,null,null,null,null,null,null,null,true,null,"",null,null,false,null,null,null,null,null,null,null,null,null,null,null,null,null,null,false,false]
[null,null,null,null,"",null,null,null,"",null,"",null,null,null,null,null,null,null,null,true,null,"",null,null,false,null,null,null,null,null,null,null,null,null,null,null,null,null,null,false,false]
[null,null,null,null,"",null,null,null,"",null,"",null,null,null,null,null,null,null,null,true,null,"",null,null,false,null,null,null,null,null,null,null,null,null,null,null,null,null,null,false,false]
[null,null,null,null,"",null,null,null,"",null,"",null,null,null,null,null,null,null,null,true,null,"",null,null,false,null,null,null,null,null,null,null,null,null,null,null,null,null,null,false,false]
[null,null,null,null,"",null,null,null,"",null,"",null,null,null,null,null,null,null,null,true,null,"",null,null,false,null,null,null,null,null,null,null,null,null,null,null,null,null,null,false,false]
[null,null,null,null,"",null,null,null,"",null,"",null,null,null,null,null,null,null,null,true,null,"",null,null,false,null,null,null,null,null,null,null,null,null,null,null,null,null,null,false,false]
[null,null,null,null,"",null,null,null,"",null,"",null,null,null,null,null,null,null,null,true,null,"",null,null,false,null,null,null,null,null,null,null,null,null,null,null,null,null,null,false,false]
[null,null,null,null,"",null,null,null,"",null,"",null,null,null,null,null,null,null,null,true,null,"",null,null,false,null,null,null,null,null,null,null,null,null,null,null,null,null,null,false,false]
[null,null,null,null,"",null,null,null,"",null,"",null,null,null,null,null,null,null,null,true,null,"",null,null,false,null,null,null,null,null,null,null,null,null,null,null,null,null,null,false,false]
[null,null,null,null,"",null,null,null,"",null,"",null,null,null,null,null,null,null,null,true,null,"",null,null,false,null,null,null,null,null,null,null,null,null,null,null,null,null,null,false,false]
[null,null,null,null,"",null,null,null,"",null,"",null,null,null,null,null,null,null,null,true,null,"",null,null,false,null,null,null,null,null,null,null,null,null,null,null,null,null,null,false,false]
[null,null,null,null,"",null,null,null,"",null,"",null,null,null,null,null,null,null,null,true,null,"",null,null,false,null,null,null,null,null,null,null,null,null,null,null,null,null,null,false,false]
[null,null,null,null,"",null,null,null,"",null,"",null,null,null,null,null,null,null,null,true,null,"",null,null,false,null,null,null,null,null,null,null,null,null,null,null,null,null,null,false,false]
[null,null,null,null,"",null,null,null,"",null,"",null,null,null,null,null,null,null,null,true,null,"",null,null,false,null,null,null,null,null,null,null,null,null,null,null,null,null,null,false,false]
[null,null,null,null,"",null,null,null,"",null,"",null,null,null,null,null,null,null,null,true,null,"",null,null,false,null,null,null,null,null,null,null,null,null,null,null,null,null,null,false,false]
[null,null,null,null,"",null,null,null,"",null,"",null,null,null,null,null,null,null,null,true,null,"",null,null,false,null,null,null,null,null,null,null,null,null,null,null,null,null,null,false,false]
[null,null,null,null,"",null,null,null,"",null,"",null,null,null,null,null,null,null,null,true,null,"",null,null,false,null,null,null,null,null,null,null,null,null,null,null,null,null,null,false,false]
[null,null,null,null,"",null,null,null,"",null,"",null,null,null,null,null,null,null,null,true,null,"",null,null,false,null,null,null,null,null,null,null,null,null,null,null,null,null,null,false,false]
[null,null,null,null,"",null,null,null,"",null,"",null,null,null,null,null,null,null,null,true,null,"",null,null,false,null,null,null,null,null,null,null,null,null,null,null,null,null,null,false,false]
[null,null,null,null,"",null,null,null,"",null,"",null,null,null,null,null,null,null,null,true,null,"",null,null,false,null,null,null,null,null,null,null,null,null,null,null,null,null,null,false,false]
[null,null,null,null,"",null,null,null,"",null,"",null,null,null,null,null,null,null,null,true,null,"",null,null,false,null,null,null,null,null,null,null,null,null,null,null,null,null,null,false,false]
[null,null,null,null,"",null,null,null,"",null,"",null,null,null,null,null,null,null,null,true,null,"",null,null,false,null,null,null,null,null,null,null,null,null,null,null,null,null,null,false,false]
[null,null,null,null,"",null,null,null,"",null,"",null,null,null,null,null,null,null,null,true,null,"",null,null,false,null,null,null,null,null,null,null,null,null,null,null,null,null,null,false,false]
[null,null,null,null,"",null,null,null,"",null,"",null,null,null,null,null,null,null,null,true,null,"",null,null,false,null,null,null,null,null,null,null,null,null,null,null,null,null,null,false,false]
[null,null,null,null,"",null,null,null,"",null,"",null,null,null,null,null,null,null,null,true,null,"",null,null,false,null,null,null,null,null,null,null,null,null,null,null,null,null,null,false,false]
[null,null,null,null,"",null,null,null,"",null,"",null,null,null,null,null,null,null,null,true,null,"",null,null,false,null,null,null,null,null,null,null,null,null,null,null,null,null,null,false,false]
[null,null,null,null,"",null,null,null,"",null,"",null,null,null,null,null,null,null,null,true,null,"",null,null,false,null,null,null,null,null,null,null,null,null,null,null,null,null,null,false,false]
[null,null,null,null,"",null,null,null,"",null,"",null,null,null,null,null,null,null,null,true,null,"",null,null,false,null,null,null,null,null,null,null,null,null,null,null,null,null,null,false,false]
[null,null,null,null,"",null,null,null,"",null,"",null,null,null,null,null,null,null,null,true,null,"",null,null,false,null,null,null,null,null,null,null,null,null,null,null,null,null,null,false,false]
[null,null,null,null,"",null,null,null,"",null,"",null,null,null,null,null,null,null,null,true,null,"",null,null,false,null,null,null,null,null,null,null,null,null,null,null,null,null,null,false,false]
[null,null,null,null,"",null,null,null,"",null,"",null,null,null,null,null,null,null,null,true,null,"",null,null,false,null,null,null,null,null,null,null,null,null,null,null,null,null,null,false,false]
[null,null,null,null,"",null,null,null,"",null,"",null,null,null,null,null,null,null,null,true,null,"",null,null,false,null,null,null,null,null,null,null,null,null,null,null,null,null,null,false,false]
[null,null,null,null,"",null,null,null,"",null,"",null,null,null,null,null,null,null,null,true,null,"",null,null,false,null,null,null,null,null,null,null,null,null,null,null,null,null,null,false,false]
[null,null,null,null,"",null,null,null,"",null,"",null,null,null,null,null,null,null,null,true,null,"",null,null,false,null,null,null,null,null,null,null,null,null,null,null,null,null,null,false,false]
[null,null,null,null,"",null,null,null,"",null,"",null,null,null,null,null,null,null,null,true,null,"",null,null,false,null,null,null,null,null,null,null,null,null,null,null,null,null,null,false,false]
[null,null,null,null,"",null,null,null,"",null,"",null,null,null,null,null,null,null,null,true,null,"",null,null,false,null,null,null,null,null,null,null,null,null,null,null,null,null,null,false,false]
[null,null,null,null,"",null,null,null,"",null,"",null,null,null,null,null,null,null,null,true,null,"",null,null,false,null,null,null,null,null,null,null,null,null,null,null,null,null,null,false,false]
[null,null,null,null,"",null,null,null,"",null,"",null,null,null,null,null,null,null,null,true,null,"",null,null,false,null,null,null,null,null,null,null,null,null,null,null,null,null,null,false,false]
[null,null,null,null,"",null,null,null,"",null,"",null,null,null,null,null,null,null,null,true,null,"",null,null,false,null,null,null,null,null,null,null,null,null,null,null,null,null,null,false,false]
[null,null,null,null,"",null,null,null,"",null,"",null,null,null,null,null,null,null,null,true,null,"",null,null,false,null,null,null,null,null,null,null,null,null,null,null,null,null,null,false,false]
[null,null,null,null,"",null,null,null,"",null,"",null,null,null,null,null,null,null,null,true,null,"",null,null,false,null,null,null,null,null,null,null,null,null,null,null,null,null,null,false,false]
[null,null,null,null,"",null,null,null,"",null,"",null,null,null,null,null,null,null,null,true,null,"",null,null,false,null,null,null,null,null,null,null,null,null,null,null,null,null,null,false,false]
[null,null,null,null,"",null,null,null,"",null,"",null,null,null,null,null,null,null,null,true,null,"",null,null,false,null,null,null,null,null,null,null,null,null,null,null,null,null,null,false,false]
[null,null,null,null,"",null,null,null,"",null,"",null,null,null,null,null,null,null,null,true,null,"",null,null,false,null,null,null,null,null,null,null,null,null,null,null,null,null,null,false,false]
[null,null,null,null,{"$f":"IF(ISBLANK(D133), \"\", VLOOKUP(D133, UnitsLookup, 2,FALSE))","v":""},null,null,null,{"$f":"IF(ISBLANK(H133), \"\", VLOOKUP(H133, ContainerTypeLookup, 2,FALSE))","v":""},null,{"$f":"IF(ISBLANK(J133), \"\", VLOOKUP(J133, PreservativeLookup, 2,FALSE))","v":""},null,null,null,null,null,null,null,null,true,null,{"$f":"IF(ISBLANK(U133), \"\", VLOOKUP(U133, MethodLookup, 2,FALSE))","v":""},null,null,false,null,null,null,null,null,null,null,null,null,null,null,null,null,null,false,false]
[null,null,null,null,"",null,null,null,"",null,"",null,null,null,null,null,null,null,null,true,null,"",null,null,false,null,null,null,null,null,null,null,null,null,null,null,null,null,null,false,false]
[null,null,null,null,"",null,null,null,"",null,"",null,null,null,null,null,null,null,null,true,null,"",null,null,false,null,null,null,null,null,null,null,null,null,null,null,null,null,null,false,false]
[null,null,null,null,"",null,null,null,"",null,"",null,null,null,null,null,null,null,null,true,null,"",null,null,false,null,null,null,null,null,null,null,null,null,null,null,null,null,null,false,false]
[null,null,null,null,"",null,null,null,"",null,"",null,null,null,null,null,null,null,null,true,null,"",null,null,false,null,null,null,null,null,null,null,null,null,null,null,null,null,null,false,false]
[null,null,null,null,"",null,null,null,"",null,"",null,null,null,null,null,null,null,null,true,null,"",null,null,false,null,null,null,null,null,null,null,null,null,null,null,null,null,null,false,false]
[null,null,null,null,"",null,null,null,"",null,"",null,null,null,null,null,null,null,null,true,null,"",null,null,false,null,null,null,null,null,null,null,null,null,null,null,null,null,null,false,false]
[null,null,null,null,"",null,null,null,"",null,"",null,null,null,null,null,null,null,null,true,null,"",null,null,false,null,null,null,null,null,null,null,null,null,null,null,null,null,null,false,false]
[null,null,null,null,"",null,null,null,"",null,"",null,null,null,null,null,null,null,null,true,null,"",null,null,false,null,null,null,null,null,null,null,null,null,null,null,null,null,null,false,false]
[null,null,null,null,"",null,null,null,"",null,"",null,null,null,null,null,null,null,null,true,null,"",null,null,false,null,null,null,null,null,null,null,null,null,null,null,null,null,null,false,false]
[null,null,null,null,"",null,null,null,"",null,"",null,null,null,null,null,null,null,null,true,null,"",null,null,false,null,null,null,null,null,null,null,null,null,null,null,null,null,null,false,false]
[null,null,null,null,"",null,null,null,"",null,"",null,null,null,null,null,null,null,null,true,null,"",null,null,false,null,null,null,null,null,null,null,null,null,null,null,null,null,null,false,false]
[null,null,null,null,"",null,null,null,"",null,"",null,null,null,null,null,null,null,null,true,null,"",null,null,false,null,null,null,null,null,null,null,null,null,null,null,null,null,null,false,false]
[null,null,null,null,"",null,null,null,"",null,"",null,null,null,null,null,null,null,null,true,null,"",null,null,false,null,null,null,null,null,null,null,null,null,null,null,null,null,null,false,false]
[null,null,null,null,"",null,null,null,"",null,"",null,null,null,null,null,null,null,null,true,null,"",null,null,false,null,null,null,null,null,null,null,null,null,null,null,null,null,null,false,false]
[null,null,null,null,"",null,null,null,"",null,"",null,null,null,null,null,null,null,null,true,null,"",null,null,false,null,null,null,null,null,null,null,null,null,null,null,null,null,null,false,false]
[null,null,null,null,"",null,null,null,"",null,"",null,null,null,null,null,null,null,null,true,null,"",null,null,false,null,null,null,null,null,null,null,null,null,null,null,null,null,null,false,false]
[null,null,null,null,"",null,null,null,"",null,"",null,null,null,null,null,null,null,null,true,null,"",null,null,false,null,null,null,null,null,null,null,null,null,null,null,null,null,null,false,false]
[null,null,null,null,"",null,null,null,"",null,"",null,null,null,null,null,null,null,null,true,null,"",null,null,false,null,null,null,null,null,null,null,null,null,null,null,null,null,null,false,false]
[null,null,null,null,"",null,null,null,"",null,"",null,null,null,null,null,null,null,null,true,null,"",null,null,false,null,null,null,null,null,null,null,null,null,null,null,null,null,null,false,false]
[null,null,null,null,"",null,null,null,"",null,"",null,null,null,null,null,null,null,null,true,null,"",null,null,false,null,null,null,null,null,null,null,null,null,null,null,null,null,null,false,false]
[null,null,null,null,"",null,null,null,"",null,"",null,null,null,null,null,null,null,null,true,null,"",null,null,false,null,null,null,null,null,null,null,null,null,null,null,null,null,null,false,false]
[null,null,null,null,"",null,null,null,"",null,"",null,null,null,null,null,null,null,null,true,null,"",null,null,false,null,null,null,null,null,null,null,null,null,null,null,null,null,null,false,false]
[null,null,null,null,"",null,null,null,"",null,"",null,null,null,null,null,null,null,null,true,null,"",null,null,false,null,null,null,null,null,null,null,null,null,null,null,null,null,null,false,false]
[null,null,null,null,"",null,null,null,"",null,"",null,null,null,null,null,null,null,null,true,null,"",null,null,false,null,null,null,null,null,null,null,null,null,null,null,null,null,null,false,false]
[null,null,null,null,"",null,null,null,"",null,"",null,null,null,null,null,null,null,null,true,null,"",null,null,false,null,null,null,null,null,null,null,null,null,null,null,null,null,null,false,false]
[null,null,null,null,"",null,null,null,"",null,"",null,null,null,null,null,null,null,null,true,null,"",null,null,false,null,null,null,null,null,null,null,null,null,null,null,null,null,null,false,false]
[null,null,null,null,"",null,null,null,"",null,"",null,null,null,null,null,null,null,null,true,null,"",null,null,false,null,null,null,null,null,null,null,null,null,null,null,null,null,null,false,false]
[null,null,null,null,"",null,null,null,"",null,"",null,null,null,null,null,null,null,null,true,null,"",null,null,false,null,null,null,null,null,null,null,null,null,null,null,null,null,null,false,false]
[null,null,null,null,"",null,null,null,"",null,"",null,null,null,null,null,null,null,null,true,null,"",null,null,false,null,null,null,null,null,null,null,null,null,null,null,null,null,null,false,false]
[null,null,null,null,"",null,null,null,"",null,"",null,null,null,null,null,null,null,null,true,null,"",null,null,false,null,null,null,null,null,null,null,null,null,null,null,null,null,null,false,false]
[null,null,null,null,"",null,null,null,"",null,"",null,null,null,null,null,null,null,null,true,null,"",null,null,false,null,null,null,null,null,null,null,null,null,null,null,null,null,null,false,false]
[null,null,null,null,"",null,null,null,"",null,"",null,null,null,null,null,null,null,null,true,null,"",null,null,false,null,null,null,null,null,null,null,null,null,null,null,null,null,null,false,false]
[null,null,null,null,"",null,null,null,"",null,"",null,null,null,null,null,null,null,null,true,null,"",null,null,false,null,null,null,null,null,null,null,null,null,null,null,null,null,null,false,false]
[null,null,null,null,"",null,null,null,"",null,"",null,null,null,null,null,null,null,null,true,null,"",null,null,false,null,null,null,null,null,null,null,null,null,null,null,null,null,null,false,false]
[null,null,null,null,"",null,null,null,"",null,"",null,null,null,null,null,null,null,null,true,null,"",null,null,false,null,null,null,null,null,null,null,null,null,null,null,null,null,null,false,false]
[null,null,null,null,"",null,null,null,"",null,"",null,null,null,null,null,null,null,null,true,null,"",null,null,false,null,null,null,null,null,null,null,null,null,null,null,null,null,null,false,false]
[null,null,null,null,"",null,null,null,"",null,"",null,null,null,null,null,null,null,null,true,null,"",null,null,false,null,null,null,null,null,null,null,null,null,null,null,null,null,null,false,false]
[null,null,null,null,"",null,null,null,"",null,"",null,null,null,null,null,null,null,null,true,null,"",null,null,false,null,null,null,null,null,null,null,null,null,null,null,null,null,null,false,false]
[null,null,null,null,"",null,null,null,"",null,"",null,null,null,null,null,null,null,null,true,null,"",null,null,false,null,null,null,null,null,null,null,null,null,null,null,null,null,null,false,false]
[null,null,null,null,"",null,null,null,"",null,"",null,null,null,null,null,null,null,null,true,null,"",null,null,false,null,null,null,null,null,null,null,null,null,null,null,null,null,null,false,false]
[null,null,null,null,"",null,null,null,"",null,"",null,null,null,null,null,null,null,null,true,null,"",null,null,false,null,null,null,null,null,null,null,null,null,null,null,null,null,null,false,false]
[null,null,null,null,"",null,null,null,"",null,"",null,null,null,null,null,null,null,null,true,null,"",null,null,false,null,null,null,null,null,null,null,null,null,null,null,null,null,null,false,false]
[null,null,null,null,"",null,null,null,"",null,"",null,null,null,null,null,null,null,null,true,null,"",null,null,false,null,null,null,null,null,null,null,null,null,null,null,null,null,null,false,false]
[null,null,null,null,"",null,null,null,"",null,"",null,null,null,null,null,null,null,null,true,null,"",null,null,false,null,null,null,null,null,null,null,null,null,null,null,null,null,null,false,false]
[null,null,null,null,"",null,null,null,"",null,"",null,null,null,null,null,null,null,null,true,null,"",null,null,false,null,null,null,null,null,null,null,null,null,null,null,null,null,null,false,false]
[null,null,null,null,"",null,null,null,"",null,"",null,null,null,null,null,null,null,null,true,null,"",null,null,false,null,null,null,null,null,null,null,null,null,null,null,null,null,null,false,false]
[null,null,null,null,"",null,null,null,"",null,"",null,null,null,null,null,null,null,null,true,null,"",null,null,false,null,null,null,null,null,null,null,null,null,null,null,null,null,null,false,false]
[null,null,null,null,"",null,null,null,"",null,"",null,null,null,null,null,null,null,null,true,null,"",null,null,false,null,null,null,null,null,null,null,null,null,null,null,null,null,null,false,false]
[null,null,null,null,"",null,null,null,"",null,"",null,null,null,null,null,null,null,null,true,null,"",null,null,false,null,null,null,null,null,null,null,null,null,null,null,null,null,null,false,false]
[null,null,null,null,"",null,null,null,"",null,"",null,null,null,null,null,null,null,null,true,null,"",null,null,false,null,null,null,null,null,null,null,null,null,null,null,null,null,null,false,false]
[null,null,null,null,"",null,null,null,"",null,"",null,null,null,null,null,null,null,null,true,null,"",null,null,false,null,null,null,null,null,null,null,null,null,null,null,null,null,null,false,false]
[null,null,null,null,"",null,null,null,"",null,"",null,null,null,null,null,null,null,null,true,null,"",null,null,false,null,null,null,null,null,null,null,null,null,null,null,null,null,null,false,false]
[null,null,null,null,"",null,null,null,"",null,"",null,null,null,null,null,null,null,null,true,null,"",null,null,false,null,null,null,null,null,null,null,null,null,null,null,null,null,null,false,false]
[null,null,null,null,"",null,null,null,"",null,"",null,null,null,null,null,null,null,null,true,null,"",null,null,false,null,null,null,null,null,null,null,null,null,null,null,null,null,null,false,false]
[null,null,null,null,"",null,null,null,"",null,"",null,null,null,null,null,null,null,null,true,null,"",null,null,false,null,null,null,null,null,null,null,null,null,null,null,null,null,null,false,false]
[null,null,null,null,"",null,null,null,"",null,"",null,null,null,null,null,null,null,null,true,null,"",null,null,false,null,null,null,null,null,null,null,null,null,null,null,null,null,null,false,false]
[null,null,null,null,"",null,null,null,"",null,"",null,null,null,null,null,null,null,null,true,null,"",null,null,false,null,null,null,null,null,null,null,null,null,null,null,null,null,null,false,false]
[null,null,null,null,"",null,null,null,"",null,"",null,null,null,null,null,null,null,null,true,null,"",null,null,false,null,null,null,null,null,null,null,null,null,null,null,null,null,null,false,false]
[null,null,null,null,"",null,null,null,"",null,"",null,null,null,null,null,null,null,null,true,null,"",null,null,false,null,null,null,null,null,null,null,null,null,null,null,null,null,null,false,false]
[null,null,null,null,"",null,null,null,"",null,"",null,null,null,null,null,null,null,null,true,null,"",null,null,false,null,null,null,null,null,null,null,null,null,null,null,null,null,null,false,false]
[null,null,null,null,"",null,null,null,"",null,"",null,null,null,null,null,null,null,null,true,null,"",null,null,false,null,null,null,null,null,null,null,null,null,null,null,null,null,null,false,false]
[null,null,null,null,"",null,null,null,"",null,"",null,null,null,null,null,null,null,null,true,null,"",null,null,false,null,null,null,null,null,null,null,null,null,null,null,null,null,null,false,false]
[null,null,null,null,"",null,null,null,"",null,"",null,null,null,null,null,null,null,null,true,null,"",null,null,false,null,null,null,null,null,null,null,null,null,null,null,null,null,null,false,false]
[null,null,null,null,{"$f":"IF(ISBLANK(D197), \"\", VLOOKUP(D197, UnitsLookup, 2,FALSE))","v":""},null,null,null,{"$f":"IF(ISBLANK(H197), \"\", VLOOKUP(H197, ContainerTypeLookup, 2,FALSE))","v":""},null,{"$f":"IF(ISBLANK(J197), \"\", VLOOKUP(J197, PreservativeLookup, 2,FALSE))","v":""},null,null,null,null,null,null,null,null,true,null,{"$f":"IF(ISBLANK(U197), \"\", VLOOKUP(U197, MethodLookup, 2,FALSE))","v":""},null,null,false,null,null,null,null,null,null,null,null,null,null,null,null,null,null,false,false]
[null,null,null,null,"",null,null,null,"",null,"",null,null,null,null,null,null,null,null,true,null,"",null,null,false,null,null,null,null,null,null,null,null,null,null,null,null,null,null,false,false]
[null,null,null,null,"",null,null,null,"",null,"",null,null,null,null,null,null,null,null,true,null,"",null,null,false,null,null,null,null,null,null,null,null,null,null,null,null,null,null,false,false]
[null,null,null,null,"",null,null,null,"",null,"",null,null,null,null,null,null,null,null,true,null,"",null,null,false,null,null,null,null,null,null,null,null,null,null,null,null,null,null,false,false]
[null,null,null,null,"",null,null,null,"",null,"",null,null,null,null,null,null,null,null,true,null,"",null,null,false,null,null,null,null,null,null,null,null,null,null,null,null,null,null,false,false]
[null,null,null,null,"",null,null,null,"",null,"",null,null,null,null,null,null,null,null,true,null,"",null,null,false,null,null,null,null,null,null,null,null,null,null,null,null,null,null,false,false]
[null,null,null,null,"",null,null,null,"",null,"",null,null,null,null,null,null,null,null,true,null,"",null,null,false,null,null,null,null,null,null,null,null,null,null,null,null,null,null,false,false]
[null,null,null,null,"",null,null,null,"",null,"",null,null,null,null,null,null,null,null,true,null,"",null,null,false,null,null,null,null,null,null,null,null,null,null,null,null,null,null,false,false]
[null,null,null,null,"",null,null,null,"",null,"",null,null,null,null,null,null,null,null,true,null,"",null,null,false,null,null,null,null,null,null,null,null,null,null,null,null,null,null,false,false]
[null,null,null,null,"",null,null,null,"",null,"",null,null,null,null,null,null,null,null,true,null,"",null,null,false,null,null,null,null,null,null,null,null,null,null,null,null,null,null,false,false]
[null,null,null,null,"",null,null,null,"",null,"",null,null,null,null,null,null,null,null,true,null,"",null,null,false,null,null,null,null,null,null,null,null,null,null,null,null,null,null,false,false]
[null,null,null,null,"",null,null,null,"",null,"",null,null,null,null,null,null,null,null,true,null,"",null,null,false,null,null,null,null,null,null,null,null,null,null,null,null,null,null,false,false]
[null,null,null,null,"",null,null,null,"",null,"",null,null,null,null,null,null,null,null,true,null,"",null,null,false,null,null,null,null,null,null,null,null,null,null,null,null,null,null,false,false]
[null,null,null,null,"",null,null,null,"",null,"",null,null,null,null,null,null,null,null,true,null,"",null,null,false,null,null,null,null,null,null,null,null,null,null,null,null,null,null,false,false]
[null,null,null,null,"",null,null,null,"",null,"",null,null,null,null,null,null,null,null,true,null,"",null,null,false,null,null,null,null,null,null,null,null,null,null,null,null,null,null,false,false]
[null,null,null,null,"",null,null,null,"",null,"",null,null,null,null,null,null,null,null,true,null,"",null,null,false,null,null,null,null,null,null,null,null,null,null,null,null,null,null,false,false]
[null,null,null,null,"",null,null,null,"",null,"",null,null,null,null,null,null,null,null,true,null,"",null,null,false,null,null,null,null,null,null,null,null,null,null,null,null,null,null,false,false]
[null,null,null,null,"",null,null,null,"",null,"",null,null,null,null,null,null,null,null,true,null,"",null,null,false,null,null,null,null,null,null,null,null,null,null,null,null,null,null,false,false]
[null,null,null,null,"",null,null,null,"",null,"",null,null,null,null,null,null,null,null,true,null,"",null,null,false,null,null,null,null,null,null,null,null,null,null,null,null,null,null,false,false]
[null,null,null,null,"",null,null,null,"",null,"",null,null,null,null,null,null,null,null,true,null,"",null,null,false,null,null,null,null,null,null,null,null,null,null,null,null,null,null,false,false]
[null,null,null,null,"",null,null,null,"",null,"",null,null,null,null,null,null,null,null,true,null,"",null,null,false,null,null,null,null,null,null,null,null,null,null,null,null,null,null,false,false]
[null,null,null,null,"",null,null,null,"",null,"",null,null,null,null,null,null,null,null,true,null,"",null,null,false,null,null,null,null,null,null,null,null,null,null,null,null,null,null,false,false]
[null,null,null,null,"",null,null,null,"",null,"",null,null,null,null,null,null,null,null,true,null,"",null,null,false,null,null,null,null,null,null,null,null,null,null,null,null,null,null,false,false]
[null,null,null,null,"",null,null,null,"",null,"",null,null,null,null,null,null,null,null,true,null,"",null,null,false,null,null,null,null,null,null,null,null,null,null,null,null,null,null,false,false]
[null,null,null,null,"",null,null,null,"",null,"",null,null,null,null,null,null,null,null,true,null,"",null,null,false,null,null,null,null,null,null,null,null,null,null,null,null,null,null,false,false]
[null,null,null,null,"",null,null,null,"",null,"",null,null,null,null,null,null,null,null,true,null,"",null,null,false,null,null,null,null,null,null,null,null,null,null,null,null,null,null,false,false]
[null,null,null,null,"",null,null,null,"",null,"",null,null,null,null,null,null,null,null,true,null,"",null,null,false,null,null,null,null,null,null,null,null,null,null,null,null,null,null,false,false]
[null,null,null,null,"",null,null,null,"",null,"",null,null,null,null,null,null,null,null,true,null,"",null,null,false,null,null,null,null,null,null,null,null,null,null,null,null,null,null,false,false]
[null,null,null,null,"",null,null,null,"",null,"",null,null,null,null,null,null,null,null,true,null,"",null,null,false,null,null,null,null,null,null,null,null,null,null,null,null,null,null,false,false]
[null,null,null,null,"",null,null,null,"",null,"",null,null,null,null,null,null,null,null,true,null,"",null,null,false,null,null,null,null,null,null,null,null,null,null,null,null,null,null,false,false]
[null,null,null,null,"",null,null,null,"",null,"",null,null,null,null,null,null,null,null,true,null,"",null,null,false,null,null,null,null,null,null,null,null,null,null,null,null,null,null,false,false]
[null,null,null,null,"",null,null,null,"",null,"",null,null,null,null,null,null,null,null,true,null,"",null,null,false,null,null,null,null,null,null,null,null,null,null,null,null,null,null,false,false]
[null,null,null,null,"",null,null,null,"",null,"",null,null,null,null,null,null,null,null,true,null,"",null,null,false,null,null,null,null,null,null,null,null,null,null,null,null,null,null,false,false]
[null,null,null,null,"",null,null,null,"",null,"",null,null,null,null,null,null,null,null,true,null,"",null,null,false,null,null,null,null,null,null,null,null,null,null,null,null,null,null,false,false]
[null,null,null,null,"",null,null,null,"",null,"",null,null,null,null,null,null,null,null,true,null,"",null,null,false,null,null,null,null,null,null,null,null,null,null,null,null,null,null,false,false]
[null,null,null,null,"",null,null,null,"",null,"",null,null,null,null,null,null,null,null,true,null,"",null,null,false,null,null,null,null,null,null,null,null,null,null,null,null,null,null,false,false]
[null,null,null,null,"",null,null,null,"",null,"",null,null,null,null,null,null,null,null,true,null,"",null,null,false,null,null,null,null,null,null,null,null,null,null,null,null,null,null,false,false]
[null,null,null,null,"",null,null,null,"",null,"",null,null,null,null,null,null,null,null,true,null,"",null,null,false,null,null,null,null,null,null,null,null,null,null,null,null,null,null,false,false]
[null,null,null,null,"",null,null,null,"",null,"",null,null,null,null,null,null,null,null,true,null,"",null,null,false,null,null,null,null,null,null,null,null,null,null,null,null,null,null,false,false]
[null,null,null,null,"",null,null,null,"",null,"",null,null,null,null,null,null,null,null,true,null,"",null,null,false,null,null,null,null,null,null,null,null,null,null,null,null,null,null,false,false]
[null,null,null,null,"",null,null,null,"",null,"",null,null,null,null,null,null,null,null,true,null,"",null,null,false,null,null,null,null,null,null,null,null,null,null,null,null,null,null,false,false]
[null,null,null,null,"",null,null,null,"",null,"",null,null,null,null,null,null,null,null,true,null,"",null,null,false,null,null,null,null,null,null,null,null,null,null,null,null,null,null,false,false]
[null,null,null,null,"",null,null,null,"",null,"",null,null,null,null,null,null,null,null,true,null,"",null,null,false,null,null,null,null,null,null,null,null,null,null,null,null,null,null,false,false]
[null,null,null,null,"",null,null,null,"",null,"",null,null,null,null,null,null,null,null,true,null,"",null,null,false,null,null,null,null,null,null,null,null,null,null,null,null,null,null,false,false]
[null,null,null,null,"",null,null,null,"",null,"",null,null,null,null,null,null,null,null,true,null,"",null,null,false,null,null,null,null,null,null,null,null,null,null,null,null,null,null,false,false]
[null,null,null,null,"",null,null,null,"",null,"",null,null,null,null,null,null,null,null,true,null,"",null,null,false,null,null,null,null,null,null,null,null,null,null,null,null,null,null,false,false]
[null,null,null,null,"",null,null,null,"",null,"",null,null,null,null,null,null,null,null,true,null,"",null,null,false,null,null,null,null,null,null,null,null,null,null,null,null,null,null,false,false]
[null,null,null,null,"",null,null,null,"",null,"",null,null,null,null,null,null,null,null,true,null,"",null,null,false,null,null,null,null,null,null,null,null,null,null,null,null,null,null,false,false]
[null,null,null,null,"",null,null,null,"",null,"",null,null,null,null,null,null,null,null,true,null,"",null,null,false,null,null,null,null,null,null,null,null,null,null,null,null,null,null,false,false]
[null,null,null,null,"",null,null,null,"",null,"",null,null,null,null,null,null,null,null,true,null,"",null,null,false,null,null,null,null,null,null,null,null,null,null,null,null,null,null,false,false]
[null,null,null,null,"",null,null,null,"",null,"",null,null,null,null,null,null,null,null,true,null,"",null,null,false,null,null,null,null,null,null,null,null,null,null,null,null,null,null,false,false]
[null,null,null,null,"",null,null,null,"",null,"",null,null,null,null,null,null,null,null,true,null,"",null,null,false,null,null,null,null,null,null,null,null,null,null,null,null,null,null,false,false]
[null,null,null,null,"",null,null,null,"",null,"",null,null,null,null,null,null,null,null,true,null,"",null,null,false,null,null,null,null,null,null,null,null,null,null,null,null,null,null,false,false]
[null,null,null,null,"",null,null,null,"",null,"",null,null,null,null,null,null,null,null,true,null,"",null,null,false,null,null,null,null,null,null,null,null,null,null,null,null,null,null,false,false]
[null,null,null,null,"",null,null,null,"",null,"",null,null,null,null,null,null,null,null,true,null,"",null,null,false,null,null,null,null,null,null,null,null,null,null,null,null,null,null,false,false]
[null,null,null,null,"",null,null,null,"",null,"",null,null,null,null,null,null,null,null,true,null,"",null,null,false,null,null,null,null,null,null,null,null,null,null,null,null,null,null,false,false]
[null,null,null,null,"",null,null,null,"",null,"",null,null,null,null,null,null,null,null,true,null,"",null,null,false,null,null,null,null,null,null,null,null,null,null,null,null,null,null,false,false]
[null,null,null,null,"",null,null,null,"",null,"",null,null,null,null,null,null,null,null,true,null,"",null,null,false,null,null,null,null,null,null,null,null,null,null,null,null,null,null,false,false]
[null,null,null,null,"",null,null,null,"",null,"",null,null,null,null,null,null,null,null,true,null,"",null,null,false,null,null,null,null,null,null,null,null,null,null,null,null,null,null,false,false]
[null,null,null,null,"",null,null,null,"",null,"",null,null,null,null,null,null,null,null,true,null,"",null,null,false,null,null,null,null,null,null,null,null,null,null,null,null,null,null,false,false]
[null,null,null,null,"",null,null,null,"",null,"",null,null,null,null,null,null,null,null,true,null,"",null,null,false,null,null,null,null,null,null,null,null,null,null,null,null,null,null,false,false]
[null,null,null,null,"",null,null,null,"",null,"",null,null,null,null,null,null,null,null,true,null,"",null,null,false,null,null,null,null,null,null,null,null,null,null,null,null,null,null,false,false]
[null,null,null,null,"",null,null,null,"",null,"",null,null,null,null,null,null,null,null,true,null,"",null,null,false,null,null,null,null,null,null,null,null,null,null,null,null,null,null,false,false]
[null,null,null,null,"",null,null,null,"",null,"",null,null,null,null,null,null,null,null,true,null,"",null,null,false,null,null,null,null,null,null,null,null,null,null,null,null,null,null,false,false]
[null,null,null,null,{"$f":"IF(ISBLANK(D261), \"\", VLOOKUP(D261, UnitsLookup, 2,FALSE))","v":""},null,null,null,{"$f":"IF(ISBLANK(H261), \"\", VLOOKUP(H261, ContainerTypeLookup, 2,FALSE))","v":""},null,{"$f":"IF(ISBLANK(J261), \"\", VLOOKUP(J261, PreservativeLookup, 2,FALSE))","v":""},null,null,null,null,null,null,null,null,true,null,{"$f":"IF(ISBLANK(U261), \"\", VLOOKUP(U261, MethodLookup, 2,FALSE))","v":""},null,null,false,null,null,null,null,null,null,null,null,null,null,null,null,null,null,false,false]
[null,null,null,null,"",null,null,null,"",null,"",null,null,null,null,null,null,null,null,true,null,"",null,null,false,null,null,null,null,null,null,null,null,null,null,null,null,null,null,false,false]
[null,null,null,null,"",null,null,null,"",null,"",null,null,null,null,null,null,null,null,true,null,"",null,null,false,null,null,null,null,null,null,null,null,null,null,null,null,null,null,false,false]
[null,null,null,null,"",null,null,null,"",null,"",null,null,null,null,null,null,null,null,true,null,"",null,null,false,null,null,null,null,null,null,null,null,null,null,null,null,null,null,false,false]
[null,null,null,null,"",null,null,null,"",null,"",null,null,null,null,null,null,null,null,true,null,"",null,null,false,null,null,null,null,null,null,null,null,null,null,null,null,null,null,false,false]
[null,null,null,null,"",null,null,null,"",null,"",null,null,null,null,null,null,null,null,true,null,"",null,null,false,null,null,null,null,null,null,null,null,null,null,null,null,null,null,false,false]
[null,null,null,null,"",null,null,null,"",null,"",null,null,null,null,null,null,null,null,true,null,"",null,null,false,null,null,null,null,null,null,null,null,null,null,null,null,null,null,false,false]
[null,null,null,null,"",null,null,null,"",null,"",null,null,null,null,null,null,null,null,true,null,"",null,null,false,null,null,null,null,null,null,null,null,null,null,null,null,null,null,false,false]
[null,null,null,null,"",null,null,null,"",null,"",null,null,null,null,null,null,null,null,true,null,"",null,null,false,null,null,null,null,null,null,null,null,null,null,null,null,null,null,false,false]
[null,null,null,null,"",null,null,null,"",null,"",null,null,null,null,null,null,null,null,true,null,"",null,null,false,null,null,null,null,null,null,null,null,null,null,null,null,null,null,false,false]
[null,null,null,null,"",null,null,null,"",null,"",null,null,null,null,null,null,null,null,true,null,"",null,null,false,null,null,null,null,null,null,null,null,null,null,null,null,null,null,false,false]
[null,null,null,null,"",null,null,null,"",null,"",null,null,null,null,null,null,null,null,true,null,"",null,null,false,null,null,null,null,null,null,null,null,null,null,null,null,null,null,false,false]
[null,null,null,null,"",null,null,null,"",null,"",null,null,null,null,null,null,null,null,true,null,"",null,null,false,null,null,null,null,null,null,null,null,null,null,null,null,null,null,false,false]
[null,null,null,null,"",null,null,null,"",null,"",null,null,null,null,null,null,null,null,true,null,"",null,null,false,null,null,null,null,null,null,null,null,null,null,null,null,null,null,false,false]
[null,null,null,null,"",null,null,null,"",null,"",null,null,null,null,null,null,null,null,true,null,"",null,null,false,null,null,null,null,null,null,null,null,null,null,null,null,null,null,false,false]
[null,null,null,null,"",null,null,null,"",null,"",null,null,null,null,null,null,null,null,true,null,"",null,null,false,null,null,null,null,null,null,null,null,null,null,null,null,null,null,false,false]
[null,null,null,null,"",null,null,null,"",null,"",null,null,null,null,null,null,null,null,true,null,"",null,null,false,null,null,null,null,null,null,null,null,null,null,null,null,null,null,false,false]
[null,null,null,null,"",null,null,null,"",null,"",null,null,null,null,null,null,null,null,true,null,"",null,null,false,null,null,null,null,null,null,null,null,null,null,null,null,null,null,false,false]
[null,null,null,null,"",null,null,null,"",null,"",null,null,null,null,null,null,null,null,true,null,"",null,null,false,null,null,null,null,null,null,null,null,null,null,null,null,null,null,false,false]
[null,null,null,null,"",null,null,null,"",null,"",null,null,null,null,null,null,null,null,true,null,"",null,null,false,null,null,null,null,null,null,null,null,null,null,null,null,null,null,false,false]
[null,null,null,null,"",null,null,null,"",null,"",null,null,null,null,null,null,null,null,true,null,"",null,null,false,null,null,null,null,null,null,null,null,null,null,null,null,null,null,false,false]
[null,null,null,null,"",null,null,null,"",null,"",null,null,null,null,null,null,null,null,true,null,"",null,null,false,null,null,null,null,null,null,null,null,null,null,null,null,null,null,false,false]
[null,null,null,null,"",null,null,null,"",null,"",null,null,null,null,null,null,null,null,true,null,"",null,null,false,null,null,null,null,null,null,null,null,null,null,null,null,null,null,false,false]
[null,null,null,null,"",null,null,null,"",null,"",null,null,null,null,null,null,null,null,true,null,"",null,null,false,null,null,null,null,null,null,null,null,null,null,null,null,null,null,false,false]
[null,null,null,null,"",null,null,null,"",null,"",null,null,null,null,null,null,null,null,true,null,"",null,null,false,null,null,null,null,null,null,null,null,null,null,null,null,null,null,false,false]
[null,null,null,null,"",null,null,null,"",null,"",null,null,null,null,null,null,null,null,true,null,"",null,null,false,null,null,null,null,null,null,null,null,null,null,null,null,null,null,false,false]
[null,null,null,null,"",null,null,null,"",null,"",null,null,null,null,null,null,null,null,true,null,"",null,null,false,null,null,null,null,null,null,null,null,null,null,null,null,null,null,false,false]
[null,null,null,null,"",null,null,null,"",null,"",null,null,null,null,null,null,null,null,true,null,"",null,null,false,null,null,null,null,null,null,null,null,null,null,null,null,null,null,false,false]
[null,null,null,null,"",null,null,null,"",null,"",null,null,null,null,null,null,null,null,true,null,"",null,null,false,null,null,null,null,null,null,null,null,null,null,null,null,null,null,false,false]
[null,null,null,null,"",null,null,null,"",null,"",null,null,null,null,null,null,null,null,true,null,"",null,null,false,null,null,null,null,null,null,null,null,null,null,null,null,null,null,false,false]
[null,null,null,null,"",null,null,null,"",null,"",null,null,null,null,null,null,null,null,true,null,"",null,null,false,null,null,null,null,null,null,null,null,null,null,null,null,null,null,false,false]
[null,null,null,null,"",null,null,null,"",null,"",null,null,null,null,null,null,null,null,true,null,"",null,null,false,null,null,null,null,null,null,null,null,null,null,null,null,null,null,false,false]
[null,null,null,null,"",null,null,null,"",null,"",null,null,null,null,null,null,null,null,true,null,"",null,null,false,null,null,null,null,null,null,null,null,null,null,null,null,null,null,false,false]
[null,null,null,null,"",null,null,null,"",null,"",null,null,null,null,null,null,null,null,true,null,"",null,null,false,null,null,null,null,null,null,null,null,null,null,null,null,null,null,false,false]
[null,null,null,null,"",null,null,null,"",null,"",null,null,null,null,null,null,null,null,true,null,"",null,null,false,null,null,null,null,null,null,null,null,null,null,null,null,null,null,false,false]
[null,null,null,null,"",null,null,null,"",null,"",null,null,null,null,null,null,null,null,true,null,"",null,null,false,null,null,null,null,null,null,null,null,null,null,null,null,null,null,false,false]
[null,null,null,null,"",null,null,null,"",null,"",null,null,null,null,null,null,null,null,true,null,"",null,null,false,null,null,null,null,null,null,null,null,null,null,null,null,null,null,false,false]
[null,null,null,null,"",null,null,null,"",null,"",null,null,null,null,null,null,null,null,true,null,"",null,null,false,null,null,null,null,null,null,null,null,null,null,null,null,null,null,false,false]
[null,null,null,null,"",null,null,null,"",null,"",null,null,null,null,null,null,null,null,true,null,"",null,null,false,null,null,null,null,null,null,null,null,null,null,null,null,null,null,false,false]
[null,null,null,null,"",null,null,null,"",null,"",null,null,null,null,null,null,null,null,true,null,"",null,null,false,null,null,null,null,null,null,null,null,null,null,null,null,null,null,false,false]
[null,null,null,null,"",null,null,null,"",null,"",null,null,null,null,null,null,null,null,true,null,"",null,null,false,null,null,null,null,null,null,null,null,null,null,null,null,null,null,false,false]
[null,null,null,null,"",null,null,null,"",null,"",null,null,null,null,null,null,null,null,true,null,"",null,null,false,null,null,null,null,null,null,null,null,null,null,null,null,null,null,false,false]
[null,null,null,null,"",null,null,null,"",null,"",null,null,null,null,null,null,null,null,true,null,"",null,null,false,null,null,null,null,null,null,null,null,null,null,null,null,null,null,false,false]
[null,null,null,null,"",null,null,null,"",null,"",null,null,null,null,null,null,null,null,true,null,"",null,null,false,null,null,null,null,null,null,null,null,null,null,null,null,null,null,false,false]
[null,null,null,null,"",null,null,null,"",null,"",null,null,null,null,null,null,null,null,true,null,"",null,null,false,null,null,null,null,null,null,null,null,null,null,null,null,null,null,false,false]
[null,null,null,null,"",null,null,null,"",null,"",null,null,null,null,null,null,null,null,true,null,"",null,null,false,null,null,null,null,null,null,null,null,null,null,null,null,null,null,false,false]
[null,null,null,null,"",null,null,null,"",null,"",null,null,null,null,null,null,null,null,true,null,"",null,null,false,null,null,null,null,null,null,null,null,null,null,null,null,null,null,false,false]
[null,null,null,null,"",null,null,null,"",null,"",null,null,null,null,null,null,null,null,true,null,"",null,null,false,null,null,null,null,null,null,null,null,null,null,null,null,null,null,false,false]
[null,null,null,null,"",null,null,null,"",null,"",null,null,null,null,null,null,null,null,true,null,"",null,null,false,null,null,null,null,null,null,null,null,null,null,null,null,null,null,false,false]
[null,null,null,null,"",null,null,null,"",null,"",null,null,null,null,null,null,null,null,true,null,"",null,null,false,null,null,null,null,null,null,null,null,null,null,null,null,null,null,false,false]
[null,null,null,null,"",null,null,null,"",null,"",null,null,null,null,null,null,null,null,true,null,"",null,null,false,null,null,null,null,null,null,null,null,null,null,null,null,null,null,false,false]
[null,null,null,null,"",null,null,null,"",null,"",null,null,null,null,null,null,null,null,true,null,"",null,null,false,null,null,null,null,null,null,null,null,null,null,null,null,null,null,false,false]
[null,null,null,null,"",null,null,null,"",null,"",null,null,null,null,null,null,null,null,true,null,"",null,null,false,null,null,null,null,null,null,null,null,null,null,null,null,null,null,false,false]
[null,null,null,null,"",null,null,null,"",null,"",null,null,null,null,null,null,null,null,true,null,"",null,null,false,null,null,null,null,null,null,null,null,null,null,null,null,null,null,false,false]
[null,null,null,null,"",null,null,null,"",null,"",null,null,null,null,null,null,null,null,true,null,"",null,null,false,null,null,null,null,null,null,null,null,null,null,null,null,null,null,false,false]
[null,null,null,null,"",null,null,null,"",null,"",null,null,null,null,null,null,null,null,true,null,"",null,null,false,null,null,null,null,null,null,null,null,null,null,null,null,null,null,false,false]
[null,null,null,null,"",null,null,null,"",null,"",null,null,null,null,null,null,null,null,true,null,"",null,null,false,null,null,null,null,null,null,null,null,null,null,null,null,null,null,false,false]
[null,null,null,null,"",null,null,null,"",null,"",null,null,null,null,null,null,null,null,true,null,"",null,null,false,null,null,null,null,null,null,null,null,null,null,null,null,null,null,false,false]
[null,null,null,null,"",null,null,null,"",null,"",null,null,null,null,null,null,null,null,true,null,"",null,null,false,null,null,null,null,null,null,null,null,null,null,null,null,null,null,false,false]
[null,null,null,null,"",null,null,null,"",null,"",null,null,null,null,null,null,null,null,true,null,"",null,null,false,null,null,null,null,null,null,null,null,null,null,null,null,null,null,false,false]
[null,null,null,null,"",null,null,null,"",null,"",null,null,null,null,null,null,null,null,true,null,"",null,null,false,null,null,null,null,null,null,null,null,null,null,null,null,null,null,false,false]
[null,null,null,null,"",null,null,null,"",null,"",null,null,null,null,null,null,null,null,true,null,"",null,null,false,null,null,null,null,null,null,null,null,null,null,null,null,null,null,false,false]
[null,null,null,null,"",null,null,null,"",null,"",null,null,null,null,null,null,null,null,true,null,"",null,null,false,null,null,null,null,null,null,null,null,null,null,null,null,null,null,false,false]
[null,null,null,null,"",null,null,null,"",null,"",null,null,null,null,null,null,null,null,true,null,"",null,null,false,null,null,null,null,null,null,null,null,null,null,null,null,null,null,false,false]
[null,null,null,null,{"$f":"IF(ISBLANK(D325), \"\", VLOOKUP(D325, UnitsLookup, 2,FALSE))","v":""},null,null,null,{"$f":"IF(ISBLANK(H325), \"\", VLOOKUP(H325, ContainerTypeLookup, 2,FALSE))","v":""},null,{"$f":"IF(ISBLANK(J325), \"\", VLOOKUP(J325, PreservativeLookup, 2,FALSE))","v":""},null,null,null,null,null,null,null,null,true,null,{"$f":"IF(ISBLANK(U325), \"\", VLOOKUP(U325, MethodLookup, 2,FALSE))","v":""},null,null,false,null,null,null,null,null,null,null,null,null,null,null,null,null,null,false,false]
[null,null,null,null,"",null,null,null,"",null,"",null,null,null,null,null,null,null,null,true,null,"",null,null,false,null,null,null,null,null,null,null,null,null,null,null,null,null,null,false,false]
[null,null,null,null,"",null,null,null,"",null,"",null,null,null,null,null,null,null,null,true,null,"",null,null,false,null,null,null,null,null,null,null,null,null,null,null,null,null,null,false,false]
[null,null,null,null,"",null,null,null,"",null,"",null,null,null,null,null,null,null,null,true,null,"",null,null,false,null,null,null,null,null,null,null,null,null,null,null,null,null,null,false,false]
[null,null,null,null,"",null,null,null,"",null,"",null,null,null,null,null,null,null,null,true,null,"",null,null,false,null,null,null,null,null,null,null,null,null,null,null,null,null,null,false,false]
[null,null,null,null,"",null,null,null,"",null,"",null,null,null,null,null,null,null,null,true,null,"",null,null,false,null,null,null,null,null,null,null,null,null,null,null,null,null,null,false,false]
[null,null,null,null,"",null,null,null,"",null,"",null,null,null,null,null,null,null,null,true,null,"",null,null,false,null,null,null,null,null,null,null,null,null,null,null,null,null,null,false,false]
[null,null,null,null,"",null,null,null,"",null,"",null,null,null,null,null,null,null,null,true,null,"",null,null,false,null,null,null,null,null,null,null,null,null,null,null,null,null,null,false,false]
[null,null,null,null,"",null,null,null,"",null,"",null,null,null,null,null,null,null,null,true,null,"",null,null,false,null,null,null,null,null,null,null,null,null,null,null,null,null,null,false,false]
[null,null,null,null,"",null,null,null,"",null,"",null,null,null,null,null,null,null,null,true,null,"",null,null,false,null,null,null,null,null,null,null,null,null,null,null,null,null,null,false,false]
[null,null,null,null,"",null,null,null,"",null,"",null,null,null,null,null,null,null,null,true,null,"",null,null,false,null,null,null,null,null,null,null,null,null,null,null,null,null,null,false,false]
[null,null,null,null,"",null,null,null,"",null,"",null,null,null,null,null,null,null,null,true,null,"",null,null,false,null,null,null,null,null,null,null,null,null,null,null,null,null,null,false,false]
[null,null,null,null,"",null,null,null,"",null,"",null,null,null,null,null,null,null,null,true,null,"",null,null,false,null,null,null,null,null,null,null,null,null,null,null,null,null,null,false,false]
[null,null,null,null,"",null,null,null,"",null,"",null,null,null,null,null,null,null,null,true,null,"",null,null,false,null,null,null,null,null,null,null,null,null,null,null,null,null,null,false,false]
[null,null,null,null,"",null,null,null,"",null,"",null,null,null,null,null,null,null,null,true,null,"",null,null,false,null,null,null,null,null,null,null,null,null,null,null,null,null,null,false,false]
[null,null,null,null,"",null,null,null,"",null,"",null,null,null,null,null,null,null,null,true,null,"",null,null,false,null,null,null,null,null,null,null,null,null,null,null,null,null,null,false,false]
[null,null,null,null,"",null,null,null,"",null,"",null,null,null,null,null,null,null,null,true,null,"",null,null,false,null,null,null,null,null,null,null,null,null,null,null,null,null,null,false,false]
[null,null,null,null,"",null,null,null,"",null,"",null,null,null,null,null,null,null,null,true,null,"",null,null,false,null,null,null,null,null,null,null,null,null,null,null,null,null,null,false,false]
[null,null,null,null,"",null,null,null,"",null,"",null,null,null,null,null,null,null,null,true,null,"",null,null,false,null,null,null,null,null,null,null,null,null,null,null,null,null,null,false,false]
[null,null,null,null,"",null,null,null,"",null,"",null,null,null,null,null,null,null,null,true,null,"",null,null,false,null,null,null,null,null,null,null,null,null,null,null,null,null,null,false,false]
[null,null,null,null,"",null,null,null,"",null,"",null,null,null,null,null,null,null,null,true,null,"",null,null,false,null,null,null,null,null,null,null,null,null,null,null,null,null,null,false,false]
[null,null,null,null,"",null,null,null,"",null,"",null,null,null,null,null,null,null,null,true,null,"",null,null,false,null,null,null,null,null,null,null,null,null,null,null,null,null,null,false,false]
[null,null,null,null,"",null,null,null,"",null,"",null,null,null,null,null,null,null,null,true,null,"",null,null,false,null,null,null,null,null,null,null,null,null,null,null,null,null,null,false,false]
[null,null,null,null,"",null,null,null,"",null,"",null,null,null,null,null,null,null,null,true,null,"",null,null,false,null,null,null,null,null,null,null,null,null,null,null,null,null,null,false,false]
[null,null,null,null,"",null,null,null,"",null,"",null,null,null,null,null,null,null,null,true,null,"",null,null,false,null,null,null,null,null,null,null,null,null,null,null,null,null,null,false,false]
[null,null,null,null,"",null,null,null,"",null,"",null,null,null,null,null,null,null,null,true,null,"",null,null,false,null,null,null,null,null,null,null,null,null,null,null,null,null,null,false,false]
[null,null,null,null,"",null,null,null,"",null,"",null,null,null,null,null,null,null,null,true,null,"",null,null,false,null,null,null,null,null,null,null,null,null,null,null,null,null,null,false,false]
[null,null,null,null,"",null,null,null,"",null,"",null,null,null,null,null,null,null,null,true,null,"",null,null,false,null,null,null,null,null,null,null,null,null,null,null,null,null,null,false,false]
[null,null,null,null,"",null,null,null,"",null,"",null,null,null,null,null,null,null,null,true,null,"",null,null,false,null,null,null,null,null,null,null,null,null,null,null,null,null,null,false,false]
[null,null,null,null,"",null,null,null,"",null,"",null,null,null,null,null,null,null,null,true,null,"",null,null,false,null,null,null,null,null,null,null,null,null,null,null,null,null,null,false,false]
[null,null,null,null,"",null,null,null,"",null,"",null,null,null,null,null,null,null,null,true,null,"",null,null,false,null,null,null,null,null,null,null,null,null,null,null,null,null,null,false,false]
[null,null,null,null,"",null,null,null,"",null,"",null,null,null,null,null,null,null,null,true,null,"",null,null,false,null,null,null,null,null,null,null,null,null,null,null,null,null,null,false,false]
[null,null,null,null,"",null,null,null,"",null,"",null,null,null,null,null,null,null,null,true,null,"",null,null,false,null,null,null,null,null,null,null,null,null,null,null,null,null,null,false,false]
[null,null,null,null,"",null,null,null,"",null,"",null,null,null,null,null,null,null,null,true,null,"",null,null,false,null,null,null,null,null,null,null,null,null,null,null,null,null,null,false,false]
[null,null,null,null,"",null,null,null,"",null,"",null,null,null,null,null,null,null,null,true,null,"",null,null,false,null,null,null,null,null,null,null,null,null,null,null,null,null,null,false,false]
[null,null,null,null,"",null,null,null,"",null,"",null,null,null,null,null,null,null,null,true,null,"",null,null,false,null,null,null,null,null,null,null,null,null,null,null,null,null,null,false,false]
[null,null,null,null,"",null,null,null,"",null,"",null,null,null,null,null,null,null,null,true,null,"",null,null,false,null,null,null,null,null,null,null,null,null,null,null,null,null,null,false,false]
[null,null,null,null,"",null,null,null,"",null,"",null,null,null,null,null,null,null,null,true,null,"",null,null,false,null,null,null,null,null,null,null,null,null,null,null,null,null,null,false,false]
[null,null,null,null,"",null,null,null,"",null,"",null,null,null,null,null,null,null,null,true,null,"",null,null,false,null,null,null,null,null,null,null,null,null,null,null,null,null,null,false,false]
[null,null,null,null,"",null,null,null,"",null,"",null,null,null,null,null,null,null,null,true,null,"",null,null,false,null,null,null,null,null,null,null,null,null,null,null,null,null,null,false,false]
[null,null,null,null,"",null,null,null,"",null,"",null,null,null,null,null,null,null,null,true,null,"",null,null,false,null,null,null,null,null,null,null,null,null,null,null,null,null,null,false,false]
[null,null,null,null,"",null,null,null,"",null,"",null,null,null,null,null,null,null,null,true,null,"",null,null,false,null,null,null,null,null,null,null,null,null,null,null,null,null,null,false,false]
[null,null,null,null,"",null,null,null,"",null,"",null,null,null,null,null,null,null,null,true,null,"",null,null,false,null,null,null,null,null,null,null,null,null,null,null,null,null,null,false,false]
[null,null,null,null,"",null,null,null,"",null,"",null,null,null,null,null,null,null,null,true,null,"",null,null,false,null,null,null,null,null,null,null,null,null,null,null,null,null,null,false,false]
[null,null,null,null,"",null,null,null,"",null,"",null,null,null,null,null,null,null,null,true,null,"",null,null,false,null,null,null,null,null,null,null,null,null,null,null,null,null,null,false,false]
[null,null,null,null,"",null,null,null,"",null,"",null,null,null,null,null,null,null,null,true,null,"",null,null,false,null,null,null,null,null,null,null,null,null,null,null,null,null,null,false,false]
[null,null,null,null,"",null,null,null,"",null,"",null,null,null,null,null,null,null,null,true,null,"",null,null,false,null,null,null,null,null,null,null,null,null,null,null,null,null,null,false,false]
[null,null,null,null,"",null,null,null,"",null,"",null,null,null,null,null,null,null,null,true,null,"",null,null,false,null,null,null,null,null,null,null,null,null,null,null,null,null,null,false,false]
[null,null,null,null,"",null,null,null,"",null,"",null,null,null,null,null,null,null,null,true,null,"",null,null,false,null,null,null,null,null,null,null,null,null,null,null,null,null,null,false,false]
[null,null,null,null,"",null,null,null,"",null,"",null,null,null,null,null,null,null,null,true,null,"",null,null,false,null,null,null,null,null,null,null,null,null,null,null,null,null,null,false,false]
[null,null,null,null,"",null,null,null,"",null,"",null,null,null,null,null,null,null,null,true,null,"",null,null,false,null,null,null,null,null,null,null,null,null,null,null,null,null,null,false,false]
[null,null,null,null,"",null,null,null,"",null,"",null,null,null,null,null,null,null,null,true,null,"",null,null,false,null,null,null,null,null,null,null,null,null,null,null,null,null,null,false,false]
[null,null,null,null,"",null,null,null,"",null,"",null,null,null,null,null,null,null,null,true,null,"",null,null,false,null,null,null,null,null,null,null,null,null,null,null,null,null,null,false,false]
[null,null,null,null,"",null,null,null,"",null,"",null,null,null,null,null,null,null,null,true,null,"",null,null,false,null,null,null,null,null,null,null,null,null,null,null,null,null,null,false,false]
[null,null,null,null,"",null,null,null,"",null,"",null,null,null,null,null,null,null,null,true,null,"",null,null,false,null,null,null,null,null,null,null,null,null,null,null,null,null,null,false,false]
[null,null,null,null,"",null,null,null,"",null,"",null,null,null,null,null,null,null,null,true,null,"",null,null,false,null,null,null,null,null,null,null,null,null,null,null,null,null,null,false,false]
[null,null,null,null,"",null,null,null,"",null,"",null,null,null,null,null,null,null,null,true,null,"",null,null,false,null,null,null,null,null,null,null,null,null,null,null,null,null,null,false,false]
[null,null,null,null,"",null,null,null,"",null,"",null,null,null,null,null,null,null,null,true,null,"",null,null,false,null,null,null,null,null,null,null,null,null,null,null,null,null,null,false,false]
[null,null,null,null,"",null,null,null,"",null,"",null,null,null,null,null,null,null,null,true,null,"",null,null,false,null,null,null,null,null,null,null,null,null,null,null,null,null,null,false,false]
[null,null,null,null,"",null,null,null,"",null,"",null,null,null,null,null,null,null,null,true,null,"",null,null,false,null,null,null,null,null,null,null,null,null,null,null,null,null,null,false,false]
[null,null,null,null,"",null,null,null,"",null,"",null,null,null,null,null,null,null,null,true,null,"",null,null,false,null,null,null,null,null,null,null,null,null,null,null,null,null,null,false,false]
[null,null,null,null,"",null,null,null,"",null,"",null,null,null,null,null,null,null,null,true,null,"",null,null,false,null,null,null,null,null,null,null,null,null,null,null,null,null,null,false,false]
[null,null,null,null,"",null,null,null,"",null,"",null,null,null,null,null,null,null,null,true,null,"",null,null,false,null,null,null,null,null,null,null,null,null,null,null,null,null,null,false,false]
[null,null,null,null,"",null,null,null,"",null,"",null,null,null,null,null,null,null,null,true,null,"",null,null,false,null,null,null,null,null,null,null,null,null,null,null,null,null,null,false,false]
[null,null,null,null,{"$f":"IF(ISBLANK(D389), \"\", VLOOKUP(D389, UnitsLookup, 2,FALSE))","v":""},null,null,null,{"$f":"IF(ISBLANK(H389), \"\", VLOOKUP(H389, ContainerTypeLookup, 2,FALSE))","v":""},null,{"$f":"IF(ISBLANK(J389), \"\", VLOOKUP(J389, PreservativeLookup, 2,FALSE))","v":""},null,null,null,null,null,null,null,null,true,null,{"$f":"IF(ISBLANK(U389), \"\", VLOOKUP(U389, MethodLookup, 2,FALSE))","v":""},null,null,false,null,null,null,null,null,null,null,null,null,null,null,null,null,null,false,false]
[null,null,null,null,"",null,null,null,"",null,"",null,null,null,null,null,null,null,null,true,null,"",null,null,false,null,null,null,null,null,null,null,null,null,null,null,null,null,null,false,false]
[null,null,null,null,"",null,null,null,"",null,"",null,null,null,null,null,null,null,null,true,null,"",null,null,false,null,null,null,null,null,null,null,null,null,null,null,null,null,null,false,false]
[null,null,null,null,"",null,null,null,"",null,"",null,null,null,null,null,null,null,null,true,null,"",null,null,false,null,null,null,null,null,null,null,null,null,null,null,null,null,null,false,false]
[null,null,null,null,"",null,null,null,"",null,"",null,null,null,null,null,null,null,null,true,null,"",null,null,false,null,null,null,null,null,null,null,null,null,null,null,null,null,null,false,false]
[null,null,null,null,"",null,null,null,"",null,"",null,null,null,null,null,null,null,null,true,null,"",null,null,false,null,null,null,null,null,null,null,null,null,null,null,null,null,null,false,false]
[null,null,null,null,"",null,null,null,"",null,"",null,null,null,null,null,null,null,null,true,null,"",null,null,false,null,null,null,null,null,null,null,null,null,null,null,null,null,null,false,false]
[null,null,null,null,"",null,null,null,"",null,"",null,null,null,null,null,null,null,null,true,null,"",null,null,false,null,null,null,null,null,null,null,null,null,null,null,null,null,null,false,false]
[null,null,null,null,"",null,null,null,"",null,"",null,null,null,null,null,null,null,null,true,null,"",null,null,false,null,null,null,null,null,null,null,null,null,null,null,null,null,null,false,false]
[null,null,null,null,"",null,null,null,"",null,"",null,null,null,null,null,null,null,null,true,null,"",null,null,false,null,null,null,null,null,null,null,null,null,null,null,null,null,null,false,false]
[null,null,null,null,"",null,null,null,"",null,"",null,null,null,null,null,null,null,null,true,null,"",null,null,false,null,null,null,null,null,null,null,null,null,null,null,null,null,null,false,false]
[null,null,null,null,"",null,null,null,"",null,"",null,null,null,null,null,null,null,null,true,null,"",null,null,false,null,null,null,null,null,null,null,null,null,null,null,null,null,null,false,false]
[null,null,null,null,"",null,null,null,"",null,"",null,null,null,null,null,null,null,null,true,null,"",null,null,false,null,null,null,null,null,null,null,null,null,null,null,null,null,null,false,false]
[null,null,null,null,"",null,null,null,"",null,"",null,null,null,null,null,null,null,null,true,null,"",null,null,false,null,null,null,null,null,null,null,null,null,null,null,null,null,null,false,false]
[null,null,null,null,"",null,null,null,"",null,"",null,null,null,null,null,null,null,null,true,null,"",null,null,false,null,null,null,null,null,null,null,null,null,null,null,null,null,null,false,false]
[null,null,null,null,"",null,null,null,"",null,"",null,null,null,null,null,null,null,null,true,null,"",null,null,false,null,null,null,null,null,null,null,null,null,null,null,null,null,null,false,false]
[null,null,null,null,"",null,null,null,"",null,"",null,null,null,null,null,null,null,null,true,null,"",null,null,false,null,null,null,null,null,null,null,null,null,null,null,null,null,null,false,false]
[null,null,null,null,"",null,null,null,"",null,"",null,null,null,null,null,null,null,null,true,null,"",null,null,false,null,null,null,null,null,null,null,null,null,null,null,null,null,null,false,false]
[null,null,null,null,"",null,null,null,"",null,"",null,null,null,null,null,null,null,null,true,null,"",null,null,false,null,null,null,null,null,null,null,null,null,null,null,null,null,null,false,false]
[null,null,null,null,"",null,null,null,"",null,"",null,null,null,null,null,null,null,null,true,null,"",null,null,false,null,null,null,null,null,null,null,null,null,null,null,null,null,null,false,false]
[null,null,null,null,"",null,null,null,"",null,"",null,null,null,null,null,null,null,null,true,null,"",null,null,false,null,null,null,null,null,null,null,null,null,null,null,null,null,null,false,false]
[null,null,null,null,"",null,null,null,"",null,"",null,null,null,null,null,null,null,null,true,null,"",null,null,false,null,null,null,null,null,null,null,null,null,null,null,null,null,null,false,false]
[null,null,null,null,"",null,null,null,"",null,"",null,null,null,null,null,null,null,null,true,null,"",null,null,false,null,null,null,null,null,null,null,null,null,null,null,null,null,null,false,false]
[null,null,null,null,"",null,null,null,"",null,"",null,null,null,null,null,null,null,null,true,null,"",null,null,false,null,null,null,null,null,null,null,null,null,null,null,null,null,null,false,false]
[null,null,null,null,"",null,null,null,"",null,"",null,null,null,null,null,null,null,null,true,null,"",null,null,false,null,null,null,null,null,null,null,null,null,null,null,null,null,null,false,false]
[null,null,null,null,"",null,null,null,"",null,"",null,null,null,null,null,null,null,null,true,null,"",null,null,false,null,null,null,null,null,null,null,null,null,null,null,null,null,null,false,false]
[null,null,null,null,"",null,null,null,"",null,"",null,null,null,null,null,null,null,null,true,null,"",null,null,false,null,null,null,null,null,null,null,null,null,null,null,null,null,null,false,false]
[null,null,null,null,"",null,null,null,"",null,"",null,null,null,null,null,null,null,null,true,null,"",null,null,false,null,null,null,null,null,null,null,null,null,null,null,null,null,null,false,false]
[null,null,null,null,"",null,null,null,"",null,"",null,null,null,null,null,null,null,null,true,null,"",null,null,false,null,null,null,null,null,null,null,null,null,null,null,null,null,null,false,false]
[null,null,null,null,"",null,null,null,"",null,"",null,null,null,null,null,null,null,null,true,null,"",null,null,false,null,null,null,null,null,null,null,null,null,null,null,null,null,null,false,false]
[null,null,null,null,"",null,null,null,"",null,"",null,null,null,null,null,null,null,null,true,null,"",null,null,false,null,null,null,null,null,null,null,null,null,null,null,null,null,null,false,false]
[null,null,null,null,"",null,null,null,"",null,"",null,null,null,null,null,null,null,null,true,null,"",null,null,false,null,null,null,null,null,null,null,null,null,null,null,null,null,null,false,false]
[null,null,null,null,"",null,null,null,"",null,"",null,null,null,null,null,null,null,null,true,null,"",null,null,false,null,null,null,null,null,null,null,null,null,null,null,null,null,null,false,false]
[null,null,null,null,"",null,null,null,"",null,"",null,null,null,null,null,null,null,null,true,null,"",null,null,false,null,null,null,null,null,null,null,null,null,null,null,null,null,null,false,false]
[null,null,null,null,"",null,null,null,"",null,"",null,null,null,null,null,null,null,null,true,null,"",null,null,false,null,null,null,null,null,null,null,null,null,null,null,null,null,null,false,false]
[null,null,null,null,"",null,null,null,"",null,"",null,null,null,null,null,null,null,null,true,null,"",null,null,false,null,null,null,null,null,null,null,null,null,null,null,null,null,null,false,false]
[null,null,null,null,"",null,null,null,"",null,"",null,null,null,null,null,null,null,null,true,null,"",null,null,false,null,null,null,null,null,null,null,null,null,null,null,null,null,null,false,false]
[null,null,null,null,"",null,null,null,"",null,"",null,null,null,null,null,null,null,null,true,null,"",null,null,false,null,null,null,null,null,null,null,null,null,null,null,null,null,null,false,false]
[null,null,null,null,"",null,null,null,"",null,"",null,null,null,null,null,null,null,null,true,null,"",null,null,false,null,null,null,null,null,null,null,null,null,null,null,null,null,null,false,false]
[null,null,null,null,"",null,null,null,"",null,"",null,null,null,null,null,null,null,null,true,null,"",null,null,false,null,null,null,null,null,null,null,null,null,null,null,null,null,null,false,false]
[null,null,null,null,"",null,null,null,"",null,"",null,null,null,null,null,null,null,null,true,null,"",null,null,false,null,null,null,null,null,null,null,null,null,null,null,null,null,null,false,false]
[null,null,null,null,"",null,null,null,"",null,"",null,null,null,null,null,null,null,null,true,null,"",null,null,false,null,null,null,null,null,null,null,null,null,null,null,null,null,null,false,false]
[null,null,null,null,"",null,null,null,"",null,"",null,null,null,null,null,null,null,null,true,null,"",null,null,false,null,null,null,null,null,null,null,null,null,null,null,null,null,null,false,false]
[null,null,null,null,"",null,null,null,"",null,"",null,null,null,null,null,null,null,null,true,null,"",null,null,false,null,null,null,null,null,null,null,null,null,null,null,null,null,null,false,false]
[null,null,null,null,"",null,null,null,"",null,"",null,null,null,null,null,null,null,null,true,null,"",null,null,false,null,null,null,null,null,null,null,null,null,null,null,null,null,null,false,false]
[null,null,null,null,"",null,null,null,"",null,"",null,null,null,null,null,null,null,null,true,null,"",null,null,false,null,null,null,null,null,null,null,null,null,null,null,null,null,null,false,false]
[null,null,null,null,"",null,null,null,"",null,"",null,null,null,null,null,null,null,null,true,null,"",null,null,false,null,null,null,null,null,null,null,null,null,null,null,null,null,null,false,false]
[null,null,null,null,"",null,null,null,"",null,"",null,null,null,null,null,null,null,null,true,null,"",null,null,false,null,null,null,null,null,null,null,null,null,null,null,null,null,null,false,false]
[null,null,null,null,"",null,null,null,"",null,"",null,null,null,null,null,null,null,null,true,null,"",null,null,false,null,null,null,null,null,null,null,null,null,null,null,null,null,null,false,false]
[null,null,null,null,"",null,null,null,"",null,"",null,null,null,null,null,null,null,null,true,null,"",null,null,false,null,null,null,null,null,null,null,null,null,null,null,null,null,null,false,false]
[null,null,null,null,"",null,null,null,"",null,"",null,null,null,null,null,null,null,null,true,null,"",null,null,false,null,null,null,null,null,null,null,null,null,null,null,null,null,null,false,false]
[null,null,null,null,"",null,null,null,"",null,"",null,null,null,null,null,null,null,null,true,null,"",null,null,false,null,null,null,null,null,null,null,null,null,null,null,null,null,null,false,false]
[null,null,null,null,"",null,null,null,"",null,"",null,null,null,null,null,null,null,null,true,null,"",null,null,false,null,null,null,null,null,null,null,null,null,null,null,null,null,null,false,false]
[null,null,null,null,"",null,null,null,"",null,"",null,null,null,null,null,null,null,null,true,null,"",null,null,false,null,null,null,null,null,null,null,null,null,null,null,null,null,null,false,false]
[null,null,null,null,"",null,null,null,"",null,"",null,null,null,null,null,null,null,null,true,null,"",null,null,false,null,null,null,null,null,null,null,null,null,null,null,null,null,null,false,false]
[null,null,null,null,"",null,null,null,"",null,"",null,null,null,null,null,null,null,null,true,null,"",null,null,false,null,null,null,null,null,null,null,null,null,null,null,null,null,null,false,false]
[null,null,null,null,"",null,null,null,"",null,"",null,null,null,null,null,null,null,null,true,null,"",null,null,false,null,null,null,null,null,null,null,null,null,null,null,null,null,null,false,false]
[null,null,null,null,"",null,null,null,"",null,"",null,null,null,null,null,null,null,null,true,null,"",null,null,false,null,null,null,null,null,null,null,null,null,null,null,null,null,null,false,false]
[null,null,null,null,"",null,null,null,"",null,"",null,null,null,null,null,null,null,null,true,null,"",null,null,false,null,null,null,null,null,null,null,null,null,null,null,null,null,null,false,false]
[null,null,null,null,"",null,null,null,"",null,"",null,null,null,null,null,null,null,null,true,null,"",null,null,false,null,null,null,null,null,null,null,null,null,null,null,null,null,null,false,false]
[null,null,null,null,"",null,null,null,"",null,"",null,null,null,null,null,null,null,null,true,null,"",null,null,false,null,null,null,null,null,null,null,null,null,null,null,null,null,null,false,false]
[null,null,null,null,"",null,null,null,"",null,"",null,null,null,null,null,null,null,null,true,null,"",null,null,false,null,null,null,null,null,null,null,null,null,null,null,null,null,null,false,false]
[null,null,null,null,"",null,null,null,"",null,"",null,null,null,null,null,null,null,null,true,null,"",null,null,false,null,null,null,null,null,null,null,null,null,null,null,null,null,null,false,false]
[null,null,null,null,"",null,null,null,"",null,"",null,null,null,null,null,null,null,null,true,null,"",null,null,false,null,null,null,null,null,null,null,null,null,null,null,null,null,null,false,false]
[null,null,null,null,{"$f":"IF(ISBLANK(D453), \"\", VLOOKUP(D453, UnitsLookup, 2,FALSE))","v":""},null,null,null,{"$f":"IF(ISBLANK(H453), \"\", VLOOKUP(H453, ContainerTypeLookup, 2,FALSE))","v":""},null,{"$f":"IF(ISBLANK(J453), \"\", VLOOKUP(J453, PreservativeLookup, 2,FALSE))","v":""},null,null,null,null,null,null,null,null,true,null,{"$f":"IF(ISBLANK(U453), \"\", VLOOKUP(U453, MethodLookup, 2,FALSE))","v":""},null,null,false,null,null,null,null,null,null,null,null,null,null,null,null,null,null,false,false]
[null,null,null,null,"",null,null,null,"",null,"",null,null,null,null,null,null,null,null,true,null,"",null,null,false,null,null,null,null,null,null,null,null,null,null,null,null,null,null,false,false]
[null,null,null,null,"",null,null,null,"",null,"",null,null,null,null,null,null,null,null,true,null,"",null,null,false,null,null,null,null,null,null,null,null,null,null,null,null,null,null,false,false]
[null,null,null,null,"",null,null,null,"",null,"",null,null,null,null,null,null,null,null,true,null,"",null,null,false,null,null,null,null,null,null,null,null,null,null,null,null,null,null,false,false]
[null,null,null,null,"",null,null,null,"",null,"",null,null,null,null,null,null,null,null,true,null,"",null,null,false,null,null,null,null,null,null,null,null,null,null,null,null,null,null,false,false]
[null,null,null,null,"",null,null,null,"",null,"",null,null,null,null,null,null,null,null,true,null,"",null,null,false,null,null,null,null,null,null,null,null,null,null,null,null,null,null,false,false]
[null,null,null,null,"",null,null,null,"",null,"",null,null,null,null,null,null,null,null,true,null,"",null,null,false,null,null,null,null,null,null,null,null,null,null,null,null,null,null,false,false]
[null,null,null,null,"",null,null,null,"",null,"",null,null,null,null,null,null,null,null,true,null,"",null,null,false,null,null,null,null,null,null,null,null,null,null,null,null,null,null,false,false]
[null,null,null,null,"",null,null,null,"",null,"",null,null,null,null,null,null,null,null,true,null,"",null,null,false,null,null,null,null,null,null,null,null,null,null,null,null,null,null,false,false]
[null,null,null,null,"",null,null,null,"",null,"",null,null,null,null,null,null,null,null,true,null,"",null,null,false,null,null,null,null,null,null,null,null,null,null,null,null,null,null,false,false]
[null,null,null,null,"",null,null,null,"",null,"",null,null,null,null,null,null,null,null,true,null,"",null,null,false,null,null,null,null,null,null,null,null,null,null,null,null,null,null,false,false]
[null,null,null,null,"",null,null,null,"",null,"",null,null,null,null,null,null,null,null,true,null,"",null,null,false,null,null,null,null,null,null,null,null,null,null,null,null,null,null,false,false]
[null,null,null,null,"",null,null,null,"",null,"",null,null,null,null,null,null,null,null,true,null,"",null,null,false,null,null,null,null,null,null,null,null,null,null,null,null,null,null,false,false]
[null,null,null,null,"",null,null,null,"",null,"",null,null,null,null,null,null,null,null,true,null,"",null,null,false,null,null,null,null,null,null,null,null,null,null,null,null,null,null,false,false]
[null,null,null,null,"",null,null,null,"",null,"",null,null,null,null,null,null,null,null,true,null,"",null,null,false,null,null,null,null,null,null,null,null,null,null,null,null,null,null,false,false]
[null,null,null,null,"",null,null,null,"",null,"",null,null,null,null,null,null,null,null,true,null,"",null,null,false,null,null,null,null,null,null,null,null,null,null,null,null,null,null,false,false]
[null,null,null,null,"",null,null,null,"",null,"",null,null,null,null,null,null,null,null,true,null,"",null,null,false,null,null,null,null,null,null,null,null,null,null,null,null,null,null,false,false]
[null,null,null,null,"",null,null,null,"",null,"",null,null,null,null,null,null,null,null,true,null,"",null,null,false,null,null,null,null,null,null,null,null,null,null,null,null,null,null,false,false]
[null,null,null,null,"",null,null,null,"",null,"",null,null,null,null,null,null,null,null,true,null,"",null,null,false,null,null,null,null,null,null,null,null,null,null,null,null,null,null,false,false]
[null,null,null,null,"",null,null,null,"",null,"",null,null,null,null,null,null,null,null,true,null,"",null,null,false,null,null,null,null,null,null,null,null,null,null,null,null,null,null,false,false]
[null,null,null,null,"",null,null,null,"",null,"",null,null,null,null,null,null,null,null,true,null,"",null,null,false,null,null,null,null,null,null,null,null,null,null,null,null,null,null,false,false]
[null,null,null,null,"",null,null,null,"",null,"",null,null,null,null,null,null,null,null,true,null,"",null,null,false,null,null,null,null,null,null,null,null,null,null,null,null,null,null,false,false]
[null,null,null,null,"",null,null,null,"",null,"",null,null,null,null,null,null,null,null,true,null,"",null,null,false,null,null,null,null,null,null,null,null,null,null,null,null,null,null,false,false]
[null,null,null,null,"",null,null,null,"",null,"",null,null,null,null,null,null,null,null,true,null,"",null,null,false,null,null,null,null,null,null,null,null,null,null,null,null,null,null,false,false]
[null,null,null,null,"",null,null,null,"",null,"",null,null,null,null,null,null,null,null,true,null,"",null,null,false,null,null,null,null,null,null,null,null,null,null,null,null,null,null,false,false]
[null,null,null,null,"",null,null,null,"",null,"",null,null,null,null,null,null,null,null,true,null,"",null,null,false,null,null,null,null,null,null,null,null,null,null,null,null,null,null,false,false]
[null,null,null,null,"",null,null,null,"",null,"",null,null,null,null,null,null,null,null,true,null,"",null,null,false,null,null,null,null,null,null,null,null,null,null,null,null,null,null,false,false]
[null,null,null,null,"",null,null,null,"",null,"",null,null,null,null,null,null,null,null,true,null,"",null,null,false,null,null,null,null,null,null,null,null,null,null,null,null,null,null,false,false]
[null,null,null,null,"",null,null,null,"",null,"",null,null,null,null,null,null,null,null,true,null,"",null,null,false,null,null,null,null,null,null,null,null,null,null,null,null,null,null,false,false]
[null,null,null,null,"",null,null,null,"",null,"",null,null,null,null,null,null,null,null,true,null,"",null,null,false,null,null,null,null,null,null,null,null,null,null,null,null,null,null,false,false]
[null,null,null,null,"",null,null,null,"",null,"",null,null,null,null,null,null,null,null,true,null,"",null,null,false,null,null,null,null,null,null,null,null,null,null,null,null,null,null,false,false]
[null,null,null,null,"",null,null,null,"",null,"",null,null,null,null,null,null,null,null,true,null,"",null,null,false,null,null,null,null,null,null,null,null,null,null,null,null,null,null,false,false]
[null,null,null,null,"",null,null,null,"",null,"",null,null,null,null,null,null,null,null,true,null,"",null,null,false,null,null,null,null,null,null,null,null,null,null,null,null,null,null,false,false]
[null,null,null,null,"",null,null,null,"",null,"",null,null,null,null,null,null,null,null,true,null,"",null,null,false,null,null,null,null,null,null,null,null,null,null,null,null,null,null,false,false]
[null,null,null,null,"",null,null,null,"",null,"",null,null,null,null,null,null,null,null,true,null,"",null,null,false,null,null,null,null,null,null,null,null,null,null,null,null,null,null,false,false]
[null,null,null,null,"",null,null,null,"",null,"",null,null,null,null,null,null,null,null,true,null,"",null,null,false,null,null,null,null,null,null,null,null,null,null,null,null,null,null,false,false]
[null,null,null,null,"",null,null,null,"",null,"",null,null,null,null,null,null,null,null,true,null,"",null,null,false,null,null,null,null,null,null,null,null,null,null,null,null,null,null,false,false]
[null,null,null,null,"",null,null,null,"",null,"",null,null,null,null,null,null,null,null,true,null,"",null,null,false,null,null,null,null,null,null,null,null,null,null,null,null,null,null,false,false]
[null,null,null,null,"",null,null,null,"",null,"",null,null,null,null,null,null,null,null,true,null,"",null,null,false,null,null,null,null,null,null,null,null,null,null,null,null,null,null,false,false]
[null,null,null,null,"",null,null,null,"",null,"",null,null,null,null,null,null,null,null,true,null,"",null,null,false,null,null,null,null,null,null,null,null,null,null,null,null,null,null,false,false]
[null,null,null,null,"",null,null,null,"",null,"",null,null,null,null,null,null,null,null,true,null,"",null,null,false,null,null,null,null,null,null,null,null,null,null,null,null,null,null,false,false]
[null,null,null,null,"",null,null,null,"",null,"",null,null,null,null,null,null,null,null,true,null,"",null,null,false,null,null,null,null,null,null,null,null,null,null,null,null,null,null,false,false]
[null,null,null,null,"",null,null,null,"",null,"",null,null,null,null,null,null,null,null,true,null,"",null,null,false,null,null,null,null,null,null,null,null,null,null,null,null,null,null,false,false]
[null,null,null,null,"",null,null,null,"",null,"",null,null,null,null,null,null,null,null,true,null,"",null,null,false,null,null,null,null,null,null,null,null,null,null,null,null,null,null,false,false]
[null,null,null,null,"",null,null,null,"",null,"",null,null,null,null,null,null,null,null,true,null,"",null,null,false,null,null,null,null,null,null,null,null,null,null,null,null,null,null,false,false]
[null,null,null,null,"",null,null,null,"",null,"",null,null,null,null,null,null,null,null,true,null,"",null,null,false,null,null,null,null,null,null,null,null,null,null,null,null,null,null,false,false]
[null,null,null,null,"",null,null,null,"",null,"",null,null,null,null,null,null,null,null,true,null,"",null,null,false,null,null,null,null,null,null,null,null,null,null,null,null,null,null,false,false]
[null,null,null,null,"",null,null,null,"",null,"",null,null,null,null,null,null,null,null,true,null,"",null,null,false,null,null,null,null,null,null,null,null,null,null,null,null,null,null,false,false]
[null,null,null,null,"",null,null,null,"",null,"",null,null,null,null,null,null,null,null,true,null,"",null,null,false,null,null,null,null,null,null,null,null,null,null,null,null,null,null,false,false]
[null,null,null,null,"",null,null,null,"",null,"",null,null,null,null,null,null,null,null,true,null,"",null,null,false,null,null,null,null,null,null,null,null,null,null,null,null,null,null,false,false]
[null,null,null,null,"",null,null,null,"",null,"",null,null,null,null,null,null,null,null,true,null,"",null,null,false,null,null,null,null,null,null,null,null,null,null,null,null,null,null,false,false]
[null,null,null,null,"",null,null,null,"",null,"",null,null,null,null,null,null,null,null,true,null,"",null,null,false,null,null,null,null,null,null,null,null,null,null,null,null,null,null,false,false]
[null,null,null,null,"",null,null,null,"",null,"",null,null,null,null,null,null,null,null,true,null,"",null,null,false,null,null,null,null,null,null,null,null,null,null,null,null,null,null,false,false]
[null,null,null,null,"",null,null,null,"",null,"",null,null,null,null,null,null,null,null,true,null,"",null,null,false,null,null,null,null,null,null,null,null,null,null,null,null,null,null,false,false]
[null,null,null,null,"",null,null,null,"",null,"",null,null,null,null,null,null,null,null,true,null,"",null,null,false,null,null,null,null,null,null,null,null,null,null,null,null,null,null,false,false]
[null,null,null,null,"",null,null,null,"",null,"",null,null,null,null,null,null,null,null,true,null,"",null,null,false,null,null,null,null,null,null,null,null,null,null,null,null,null,null,false,false]
[null,null,null,null,"",null,null,null,"",null,"",null,null,null,null,null,null,null,null,true,null,"",null,null,false,null,null,null,null,null,null,null,null,null,null,null,null,null,null,false,false]
[null,null,null,null,"",null,null,null,"",null,"",null,null,null,null,null,null,null,null,true,null,"",null,null,false,null,null,null,null,null,null,null,null,null,null,null,null,null,null,false,false]
[null,null,null,null,"",null,null,null,"",null,"",null,null,null,null,null,null,null,null,true,null,"",null,null,false,null,null,null,null,null,null,null,null,null,null,null,null,null,null,false,false]
[null,null,null,null,"",null,null,null,"",null,"",null,null,null,null,null,null,null,null,true,null,"",null,null,false,null,null,null,null,null,null,null,null,null,null,null,null,null,null,false,false]
[null,null,null,null,"",null,null,null,"",null,"",null,null,null,null,null,null,null,null,true,null,"",null,null,false,null,null,null,null,null,null,null,null,null,null,null,null,null,null,false,false]
[null,null,null,null,"",null,null,null,"",null,"",null,null,null,null,null,null,null,null,true,null,"",null,null,false,null,null,null,null,null,null,null,null,null,null,null,null,null,null,false,false]
[null,null,null,null,"",null,null,null,"",null,"",null,null,null,null,null,null,null,null,true,null,"",null,null,false,null,null,null,null,null,null,null,null,null,null,null,null,null,null,false,false]
[null,null,null,null,"",null,null,null,"",null,"",null,null,null,null,null,null,null,null,true,null,"",null,null,false,null,null,null,null,null,null,null,null,null,null,null,null,null,null,false,false]
[null,null,null,null,{"$f":"IF(ISBLANK(D517), \"\", VLOOKUP(D517, UnitsLookup, 2,FALSE))","v":""},null,null,null,{"$f":"IF(ISBLANK(H517), \"\", VLOOKUP(H517, ContainerTypeLookup, 2,FALSE))","v":""},null,{"$f":"IF(ISBLANK(J517), \"\", VLOOKUP(J517, PreservativeLookup, 2,FALSE))","v":""},null,null,null,null,null,null,null,null,true,null,{"$f":"IF(ISBLANK(U517), \"\", VLOOKUP(U517, MethodLookup, 2,FALSE))","v":""},null,null,false,null,null,null,null,null,null,null,null,null,null,null,null,null,null,false,false]
[null,null,null,null,"",null,null,null,"",null,"",null,null,null,null,null,null,null,null,true,null,"",null,null,false,null,null,null,null,null,null,null,null,null,null,null,null,null,null,false,false]
[null,null,null,null,"",null,null,null,"",null,"",null,null,null,null,null,null,null,null,true,null,"",null,null,false,null,null,null,null,null,null,null,null,null,null,null,null,null,null,false,false]
[null,null,null,null,"",null,null,null,"",null,"",null,null,null,null,null,null,null,null,true,null,"",null,null,false,null,null,null,null,null,null,null,null,null,null,null,null,null,null,false,false]
[null,null,null,null,"",null,null,null,"",null,"",null,null,null,null,null,null,null,null,true,null,"",null,null,false,null,null,null,null,null,null,null,null,null,null,null,null,null,null,false,false]
[null,null,null,null,"",null,null,null,"",null,"",null,null,null,null,null,null,null,null,true,null,"",null,null,false,null,null,null,null,null,null,null,null,null,null,null,null,null,null,false,false]
[null,null,null,null,"",null,null,null,"",null,"",null,null,null,null,null,null,null,null,true,null,"",null,null,false,null,null,null,null,null,null,null,null,null,null,null,null,null,null,false,false]
[null,null,null,null,"",null,null,null,"",null,"",null,null,null,null,null,null,null,null,true,null,"",null,null,false,null,null,null,null,null,null,null,null,null,null,null,null,null,null,false,false]
[null,null,null,null,"",null,null,null,"",null,"",null,null,null,null,null,null,null,null,true,null,"",null,null,false,null,null,null,null,null,null,null,null,null,null,null,null,null,null,false,false]
[null,null,null,null,"",null,null,null,"",null,"",null,null,null,null,null,null,null,null,true,null,"",null,null,false,null,null,null,null,null,null,null,null,null,null,null,null,null,null,false,false]
[null,null,null,null,"",null,null,null,"",null,"",null,null,null,null,null,null,null,null,true,null,"",null,null,false,null,null,null,null,null,null,null,null,null,null,null,null,null,null,false,false]
[null,null,null,null,"",null,null,null,"",null,"",null,null,null,null,null,null,null,null,true,null,"",null,null,false,null,null,null,null,null,null,null,null,null,null,null,null,null,null,false,false]
[null,null,null,null,"",null,null,null,"",null,"",null,null,null,null,null,null,null,null,true,null,"",null,null,false,null,null,null,null,null,null,null,null,null,null,null,null,null,null,false,false]
[null,null,null,null,"",null,null,null,"",null,"",null,null,null,null,null,null,null,null,true,null,"",null,null,false,null,null,null,null,null,null,null,null,null,null,null,null,null,null,false,false]
[null,null,null,null,"",null,null,null,"",null,"",null,null,null,null,null,null,null,null,true,null,"",null,null,false,null,null,null,null,null,null,null,null,null,null,null,null,null,null,false,false]
[null,null,null,null,"",null,null,null,"",null,"",null,null,null,null,null,null,null,null,true,null,"",null,null,false,null,null,null,null,null,null,null,null,null,null,null,null,null,null,false,false]
[null,null,null,null,"",null,null,null,"",null,"",null,null,null,null,null,null,null,null,true,null,"",null,null,false,null,null,null,null,null,null,null,null,null,null,null,null,null,null,false,false]
[null,null,null,null,"",null,null,null,"",null,"",null,null,null,null,null,null,null,null,true,null,"",null,null,false,null,null,null,null,null,null,null,null,null,null,null,null,null,null,false,false]
[null,null,null,null,"",null,null,null,"",null,"",null,null,null,null,null,null,null,null,true,null,"",null,null,false,null,null,null,null,null,null,null,null,null,null,null,null,null,null,false,false]
[null,null,null,null,"",null,null,null,"",null,"",null,null,null,null,null,null,null,null,true,null,"",null,null,false,null,null,null,null,null,null,null,null,null,null,null,null,null,null,false,false]
[null,null,null,null,"",null,null,null,"",null,"",null,null,null,null,null,null,null,null,true,null,"",null,null,false,null,null,null,null,null,null,null,null,null,null,null,null,null,null,false,false]
[null,null,null,null,"",null,null,null,"",null,"",null,null,null,null,null,null,null,null,true,null,"",null,null,false,null,null,null,null,null,null,null,null,null,null,null,null,null,null,false,false]
[null,null,null,null,"",null,null,null,"",null,"",null,null,null,null,null,null,null,null,true,null,"",null,null,false,null,null,null,null,null,null,null,null,null,null,null,null,null,null,false,false]
[null,null,null,null,"",null,null,null,"",null,"",null,null,null,null,null,null,null,null,true,null,"",null,null,false,null,null,null,null,null,null,null,null,null,null,null,null,null,null,false,false]
[null,null,null,null,"",null,null,null,"",null,"",null,null,null,null,null,null,null,null,true,null,"",null,null,false,null,null,null,null,null,null,null,null,null,null,null,null,null,null,false,false]
[null,null,null,null,"",null,null,null,"",null,"",null,null,null,null,null,null,null,null,true,null,"",null,null,false,null,null,null,null,null,null,null,null,null,null,null,null,null,null,false,false]
[null,null,null,null,"",null,null,null,"",null,"",null,null,null,null,null,null,null,null,true,null,"",null,null,false,null,null,null,null,null,null,null,null,null,null,null,null,null,null,false,false]
[null,null,null,null,"",null,null,null,"",null,"",null,null,null,null,null,null,null,null,true,null,"",null,null,false,null,null,null,null,null,null,null,null,null,null,null,null,null,null,false,false]
[null,null,null,null,"",null,null,null,"",null,"",null,null,null,null,null,null,null,null,true,null,"",null,null,false,null,null,null,null,null,null,null,null,null,null,null,null,null,null,false,false]
[null,null,null,null,"",null,null,null,"",null,"",null,null,null,null,null,null,null,null,true,null,"",null,null,false,null,null,null,null,null,null,null,null,null,null,null,null,null,null,false,false]
[null,null,null,null,"",null,null,null,"",null,"",null,null,null,null,null,null,null,null,true,null,"",null,null,false,null,null,null,null,null,null,null,null,null,null,null,null,null,null,false,false]
[null,null,null,null,"",null,null,null,"",null,"",null,null,null,null,null,null,null,null,true,null,"",null,null,false,null,null,null,null,null,null,null,null,null,null,null,null,null,null,false,false]
[null,null,null,null,"",null,null,null,"",null,"",null,null,null,null,null,null,null,null,true,null,"",null,null,false,null,null,null,null,null,null,null,null,null,null,null,null,null,null,false,false]
[null,null,null,null,"",null,null,null,"",null,"",null,null,null,null,null,null,null,null,true,null,"",null,null,false,null,null,null,null,null,null,null,null,null,null,null,null,null,null,false,false]
[null,null,null,null,"",null,null,null,"",null,"",null,null,null,null,null,null,null,null,true,null,"",null,null,false,null,null,null,null,null,null,null,null,null,null,null,null,null,null,false,false]
[null,null,null,null,"",null,null,null,"",null,"",null,null,null,null,null,null,null,null,true,null,"",null,null,false,null,null,null,null,null,null,null,null,null,null,null,null,null,null,false,false]
[null,null,null,null,"",null,null,null,"",null,"",null,null,null,null,null,null,null,null,true,null,"",null,null,false,null,null,null,null,null,null,null,null,null,null,null,null,null,null,false,false]
[null,null,null,null,"",null,null,null,"",null,"",null,null,null,null,null,null,null,null,true,null,"",null,null,false,null,null,null,null,null,null,null,null,null,null,null,null,null,null,false,false]
[null,null,null,null,"",null,null,null,"",null,"",null,null,null,null,null,null,null,null,true,null,"",null,null,false,null,null,null,null,null,null,null,null,null,null,null,null,null,null,false,false]
[null,null,null,null,"",null,null,null,"",null,"",null,null,null,null,null,null,null,null,true,null,"",null,null,false,null,null,null,null,null,null,null,null,null,null,null,null,null,null,false,false]
[null,null,null,null,"",null,null,null,"",null,"",null,null,null,null,null,null,null,null,true,null,"",null,null,false,null,null,null,null,null,null,null,null,null,null,null,null,null,null,false,false]
[null,null,null,null,"",null,null,null,"",null,"",null,null,null,null,null,null,null,null,true,null,"",null,null,false,null,null,null,null,null,null,null,null,null,null,null,null,null,null,false,false]
[null,null,null,null,"",null,null,null,"",null,"",null,null,null,null,null,null,null,null,true,null,"",null,null,false,null,null,null,null,null,null,null,null,null,null,null,null,null,null,false,false]
[null,null,null,null,"",null,null,null,"",null,"",null,null,null,null,null,null,null,null,true,null,"",null,null,false,null,null,null,null,null,null,null,null,null,null,null,null,null,null,false,false]
[null,null,null,null,"",null,null,null,"",null,"",null,null,null,null,null,null,null,null,true,null,"",null,null,false,null,null,null,null,null,null,null,null,null,null,null,null,null,null,false,false]
[null,null,null,null,"",null,null,null,"",null,"",null,null,null,null,null,null,null,null,true,null,"",null,null,false,null,null,null,null,null,null,null,null,null,null,null,null,null,null,false,false]
[null,null,null,null,"",null,null,null,"",null,"",null,null,null,null,null,null,null,null,true,null,"",null,null,false,null,null,null,null,null,null,null,null,null,null,null,null,null,null,false,false]
[null,null,null,null,"",null,null,null,"",null,"",null,null,null,null,null,null,null,null,true,null,"",null,null,false,null,null,null,null,null,null,null,null,null,null,null,null,null,null,false,false]
[null,null,null,null,"",null,null,null,"",null,"",null,null,null,null,null,null,null,null,true,null,"",null,null,false,null,null,null,null,null,null,null,null,null,null,null,null,null,null,false,false]
[null,null,null,null,"",null,null,null,"",null,"",null,null,null,null,null,null,null,null,true,null,"",null,null,false,null,null,null,null,null,null,null,null,null,null,null,null,null,null,false,false]
[null,null,null,null,"",null,null,null,"",null,"",null,null,null,null,null,null,null,null,true,null,"",null,null,false,null,null,null,null,null,null,null,null,null,null,null,null,null,null,false,false]
[null,null,null,null,"",null,null,null,"",null,"",null,null,null,null,null,null,null,null,true,null,"",null,null,false,null,null,null,null,null,null,null,null,null,null,null,null,null,null,false,false]
[null,null,null,null,"",null,null,null,"",null,"",null,null,null,null,null,null,null,null,true,null,"",null,null,false,null,null,null,null,null,null,null,null,null,null,null,null,null,null,false,false]
[null,null,null,null,"",null,null,null,"",null,"",null,null,null,null,null,null,null,null,true,null,"",null,null,false,null,null,null,null,null,null,null,null,null,null,null,null,null,null,false,false]
[null,null,null,null,"",null,null,null,"",null,"",null,null,null,null,null,null,null,null,true,null,"",null,null,false,null,null,null,null,null,null,null,null,null,null,null,null,null,null,false,false]
[null,null,null,null,"",null,null,null,"",null,"",null,null,null,null,null,null,null,null,true,null,"",null,null,false,null,null,null,null,null,null,null,null,null,null,null,null,null,null,false,false]
[null,null,null,null,"",null,null,null,"",null,"",null,null,null,null,null,null,null,null,true,null,"",null,null,false,null,null,null,null,null,null,null,null,null,null,null,null,null,null,false,false]
[null,null,null,null,"",null,null,null,"",null,"",null,null,null,null,null,null,null,null,true,null,"",null,null,false,null,null,null,null,null,null,null,null,null,null,null,null,null,null,false,false]
[null,null,null,null,"",null,null,null,"",null,"",null,null,null,null,null,null,null,null,true,null,"",null,null,false,null,null,null,null,null,null,null,null,null,null,null,null,null,null,false,false]
[null,null,null,null,"",null,null,null,"",null,"",null,null,null,null,null,null,null,null,true,null,"",null,null,false,null,null,null,null,null,null,null,null,null,null,null,null,null,null,false,false]
[null,null,null,null,"",null,null,null,"",null,"",null,null,null,null,null,null,null,null,true,null,"",null,null,false,null,null,null,null,null,null,null,null,null,null,null,null,null,null,false,false]
[null,null,null,null,"",null,null,null,"",null,"",null,null,null,null,null,null,null,null,true,null,"",null,null,false,null,null,null,null,null,null,null,null,null,null,null,null,null,null,false,false]
[null,null,null,null,"",null,null,null,"",null,"",null,null,null,null,null,null,null,null,true,null,"",null,null,false,null,null,null,null,null,null,null,null,null,null,null,null,null,null,false,false]
[null,null,null,null,"",null,null,null,"",null,"",null,null,null,null,null,null,null,null,true,null,"",null,null,false,null,null,null,null,null,null,null,null,null,null,null,null,null,null,false,false]
[null,null,null,null,{"$f":"IF(ISBLANK(D581), \"\", VLOOKUP(D581, UnitsLookup, 2,FALSE))","v":""},null,null,null,{"$f":"IF(ISBLANK(H581), \"\", VLOOKUP(H581, ContainerTypeLookup, 2,FALSE))","v":""},null,{"$f":"IF(ISBLANK(J581), \"\", VLOOKUP(J581, PreservativeLookup, 2,FALSE))","v":""},null,null,null,null,null,null,null,null,true,null,{"$f":"IF(ISBLANK(U581), \"\", VLOOKUP(U581, MethodLookup, 2,FALSE))","v":""},null,null,false,null,null,null,null,null,null,null,null,null,null,null,null,null,null,false,false]
[null,null,null,null,"",null,null,null,"",null,"",null,null,null,null,null,null,null,null,true,null,"",null,null,false,null,null,null,null,null,null,null,null,null,null,null,null,null,null,false,false]
[null,null,null,null,"",null,null,null,"",null,"",null,null,null,null,null,null,null,null,true,null,"",null,null,false,null,null,null,null,null,null,null,null,null,null,null,null,null,null,false,false]
[null,null,null,null,"",null,null,null,"",null,"",null,null,null,null,null,null,null,null,true,null,"",null,null,false,null,null,null,null,null,null,null,null,null,null,null,null,null,null,false,false]
[null,null,null,null,"",null,null,null,"",null,"",null,null,null,null,null,null,null,null,true,null,"",null,null,false,null,null,null,null,null,null,null,null,null,null,null,null,null,null,false,false]
[null,null,null,null,"",null,null,null,"",null,"",null,null,null,null,null,null,null,null,true,null,"",null,null,false,null,null,null,null,null,null,null,null,null,null,null,null,null,null,false,false]
[null,null,null,null,"",null,null,null,"",null,"",null,null,null,null,null,null,null,null,true,null,"",null,null,false,null,null,null,null,null,null,null,null,null,null,null,null,null,null,false,false]
[null,null,null,null,"",null,null,null,"",null,"",null,null,null,null,null,null,null,null,true,null,"",null,null,false,null,null,null,null,null,null,null,null,null,null,null,null,null,null,false,false]
[null,null,null,null,"",null,null,null,"",null,"",null,null,null,null,null,null,null,null,true,null,"",null,null,false,null,null,null,null,null,null,null,null,null,null,null,null,null,null,false,false]
[null,null,null,null,"",null,null,null,"",null,"",null,null,null,null,null,null,null,null,true,null,"",null,null,false,null,null,null,null,null,null,null,null,null,null,null,null,null,null,false,false]
[null,null,null,null,"",null,null,null,"",null,"",null,null,null,null,null,null,null,null,true,null,"",null,null,false,null,null,null,null,null,null,null,null,null,null,null,null,null,null,false,false]
[null,null,null,null,"",null,null,null,"",null,"",null,null,null,null,null,null,null,null,true,null,"",null,null,false,null,null,null,null,null,null,null,null,null,null,null,null,null,null,false,false]
[null,null,null,null,"",null,null,null,"",null,"",null,null,null,null,null,null,null,null,true,null,"",null,null,false,null,null,null,null,null,null,null,null,null,null,null,null,null,null,false,false]
[null,null,null,null,"",null,null,null,"",null,"",null,null,null,null,null,null,null,null,true,null,"",null,null,false,null,null,null,null,null,null,null,null,null,null,null,null,null,null,false,false]
[null,null,null,null,"",null,null,null,"",null,"",null,null,null,null,null,null,null,null,true,null,"",null,null,false,null,null,null,null,null,null,null,null,null,null,null,null,null,null,false,false]
[null,null,null,null,"",null,null,null,"",null,"",null,null,null,null,null,null,null,null,true,null,"",null,null,false,null,null,null,null,null,null,null,null,null,null,null,null,null,null,false,false]
[null,null,null,null,"",null,null,null,"",null,"",null,null,null,null,null,null,null,null,true,null,"",null,null,false,null,null,null,null,null,null,null,null,null,null,null,null,null,null,false,false]
[null,null,null,null,"",null,null,null,"",null,"",null,null,null,null,null,null,null,null,true,null,"",null,null,false,null,null,null,null,null,null,null,null,null,null,null,null,null,null,false,false]
[null,null,null,null,"",null,null,null,"",null,"",null,null,null,null,null,null,null,null,true,null,"",null,null,false,null,null,null,null,null,null,null,null,null,null,null,null,null,null,false,false]
[null,null,null,null,"",null,null,null,"",null,"",null,null,null,null,null,null,null,null,true,null,"",null,null,false,null,null,null,null,null,null,null,null,null,null,null,null,null,null,false,false]
[null,null,null,null,"",null,null,null,"",null,"",null,null,null,null,null,null,null,null,true,null,"",null,null,false,null,null,null,null,null,null,null,null,null,null,null,null,null,null,false,false]
[null,null,null,null,"",null,null,null,"",null,"",null,null,null,null,null,null,null,null,true,null,"",null,null,false,null,null,null,null,null,null,null,null,null,null,null,null,null,null,false,false]
[null,null,null,null,"",null,null,null,"",null,"",null,null,null,null,null,null,null,null,true,null,"",null,null,false,null,null,null,null,null,null,null,null,null,null,null,null,null,null,false,false]
[null,null,null,null,"",null,null,null,"",null,"",null,null,null,null,null,null,null,null,true,null,"",null,null,false,null,null,null,null,null,null,null,null,null,null,null,null,null,null,false,false]
[null,null,null,null,"",null,null,null,"",null,"",null,null,null,null,null,null,null,null,true,null,"",null,null,false,null,null,null,null,null,null,null,null,null,null,null,null,null,null,false,false]
[null,null,null,null,"",null,null,null,"",null,"",null,null,null,null,null,null,null,null,true,null,"",null,null,false,null,null,null,null,null,null,null,null,null,null,null,null,null,null,false,false]
[null,null,null,null,"",null,null,null,"",null,"",null,null,null,null,null,null,null,null,true,null,"",null,null,false,null,null,null,null,null,null,null,null,null,null,null,null,null,null,false,false]
[null,null,null,null,"",null,null,null,"",null,"",null,null,null,null,null,null,null,null,true,null,"",null,null,false,null,null,null,null,null,null,null,null,null,null,null,null,null,null,false,false]
[null,null,null,null,"",null,null,null,"",null,"",null,null,null,null,null,null,null,null,true,null,"",null,null,false,null,null,null,null,null,null,null,null,null,null,null,null,null,null,false,false]
[null,null,null,null,"",null,null,null,"",null,"",null,null,null,null,null,null,null,null,true,null,"",null,null,false,null,null,null,null,null,null,null,null,null,null,null,null,null,null,false,false]
[null,null,null,null,"",null,null,null,"",null,"",null,null,null,null,null,null,null,null,true,null,"",null,null,false,null,null,null,null,null,null,null,null,null,null,null,null,null,null,false,false]
[null,null,null,null,"",null,null,null,"",null,"",null,null,null,null,null,null,null,null,true,null,"",null,null,false,null,null,null,null,null,null,null,null,null,null,null,null,null,null,false,false]
[null,null,null,null,"",null,null,null,"",null,"",null,null,null,null,null,null,null,null,true,null,"",null,null,false,null,null,null,null,null,null,null,null,null,null,null,null,null,null,false,false]
[null,null,null,null,"",null,null,null,"",null,"",null,null,null,null,null,null,null,null,true,null,"",null,null,false,null,null,null,null,null,null,null,null,null,null,null,null,null,null,false,false]
[null,null,null,null,"",null,null,null,"",null,"",null,null,null,null,null,null,null,null,true,null,"",null,null,false,null,null,null,null,null,null,null,null,null,null,null,null,null,null,false,false]
[null,null,null,null,"",null,null,null,"",null,"",null,null,null,null,null,null,null,null,true,null,"",null,null,false,null,null,null,null,null,null,null,null,null,null,null,null,null,null,false,false]
[null,null,null,null,"",null,null,null,"",null,"",null,null,null,null,null,null,null,null,true,null,"",null,null,false,null,null,null,null,null,null,null,null,null,null,null,null,null,null,false,false]
[null,null,null,null,"",null,null,null,"",null,"",null,null,null,null,null,null,null,null,true,null,"",null,null,false,null,null,null,null,null,null,null,null,null,null,null,null,null,null,false,false]
[null,null,null,null,"",null,null,null,"",null,"",null,null,null,null,null,null,null,null,true,null,"",null,null,false,null,null,null,null,null,null,null,null,null,null,null,null,null,null,false,false]
[null,null,null,null,"",null,null,null,"",null,"",null,null,null,null,null,null,null,null,true,null,"",null,null,false,null,null,null,null,null,null,null,null,null,null,null,null,null,null,false,false]
[null,null,null,null,"",null,null,null,"",null,"",null,null,null,null,null,null,null,null,true,null,"",null,null,false,null,null,null,null,null,null,null,null,null,null,null,null,null,null,false,false]
[null,null,null,null,"",null,null,null,"",null,"",null,null,null,null,null,null,null,null,true,null,"",null,null,false,null,null,null,null,null,null,null,null,null,null,null,null,null,null,false,false]
[null,null,null,null,"",null,null,null,"",null,"",null,null,null,null,null,null,null,null,true,null,"",null,null,false,null,null,null,null,null,null,null,null,null,null,null,null,null,null,false,false]
[null,null,null,null,"",null,null,null,"",null,"",null,null,null,null,null,null,null,null,true,null,"",null,null,false,null,null,null,null,null,null,null,null,null,null,null,null,null,null,false,false]
[null,null,null,null,"",null,null,null,"",null,"",null,null,null,null,null,null,null,null,true,null,"",null,null,false,null,null,null,null,null,null,null,null,null,null,null,null,null,null,false,false]
[null,null,null,null,"",null,null,null,"",null,"",null,null,null,null,null,null,null,null,true,null,"",null,null,false,null,null,null,null,null,null,null,null,null,null,null,null,null,null,false,false]
[null,null,null,null,"",null,null,null,"",null,"",null,null,null,null,null,null,null,null,true,null,"",null,null,false,null,null,null,null,null,null,null,null,null,null,null,null,null,null,false,false]
[null,null,null,null,"",null,null,null,"",null,"",null,null,null,null,null,null,null,null,true,null,"",null,null,false,null,null,null,null,null,null,null,null,null,null,null,null,null,null,false,false]
[null,null,null,null,"",null,null,null,"",null,"",null,null,null,null,null,null,null,null,true,null,"",null,null,false,null,null,null,null,null,null,null,null,null,null,null,null,null,null,false,false]
[null,null,null,null,"",null,null,null,"",null,"",null,null,null,null,null,null,null,null,true,null,"",null,null,false,null,null,null,null,null,null,null,null,null,null,null,null,null,null,false,false]
[null,null,null,null,"",null,null,null,"",null,"",null,null,null,null,null,null,null,null,true,null,"",null,null,false,null,null,null,null,null,null,null,null,null,null,null,null,null,null,false,false]
[null,null,null,null,"",null,null,null,"",null,"",null,null,null,null,null,null,null,null,true,null,"",null,null,false,null,null,null,null,null,null,null,null,null,null,null,null,null,null,false,false]
[null,null,null,null,"",null,null,null,"",null,"",null,null,null,null,null,null,null,null,true,null,"",null,null,false,null,null,null,null,null,null,null,null,null,null,null,null,null,null,false,false]
[null,null,null,null,"",null,null,null,"",null,"",null,null,null,null,null,null,null,null,true,null,"",null,null,false,null,null,null,null,null,null,null,null,null,null,null,null,null,null,false,false]
[null,null,null,null,"",null,null,null,"",null,"",null,null,null,null,null,null,null,null,true,null,"",null,null,false,null,null,null,null,null,null,null,null,null,null,null,null,null,null,false,false]
[null,null,null,null,"",null,null,null,"",null,"",null,null,null,null,null,null,null,null,true,null,"",null,null,false,null,null,null,null,null,null,null,null,null,null,null,null,null,null,false,false]
[null,null,null,null,"",null,null,null,"",null,"",null,null,null,null,null,null,null,null,true,null,"",null,null,false,null,null,null,null,null,null,null,null,null,null,null,null,null,null,false,false]
[null,null,null,null,"",null,null,null,"",null,"",null,null,null,null,null,null,null,null,true,null,"",null,null,false,null,null,null,null,null,null,null,null,null,null,null,null,null,null,false,false]
[null,null,null,null,"",null,null,null,"",null,"",null,null,null,null,null,null,null,null,true,null,"",null,null,false,null,null,null,null,null,null,null,null,null,null,null,null,null,null,false,false]
[null,null,null,null,"",null,null,null,"",null,"",null,null,null,null,null,null,null,null,true,null,"",null,null,false,null,null,null,null,null,null,null,null,null,null,null,null,null,null,false,false]
[null,null,null,null,"",null,null,null,"",null,"",null,null,null,null,null,null,null,null,true,null,"",null,null,false,null,null,null,null,null,null,null,null,null,null,null,null,null,null,false,false]
[null,null,null,null,"",null,null,null,"",null,"",null,null,null,null,null,null,null,null,true,null,"",null,null,false,null,null,null,null,null,null,null,null,null,null,null,null,null,null,false,false]
[null,null,null,null,"",null,null,null,"",null,"",null,null,null,null,null,null,null,null,true,null,"",null,null,false,null,null,null,null,null,null,null,null,null,null,null,null,null,null,false,false]
[null,null,null,null,"",null,null,null,"",null,"",null,null,null,null,null,null,null,null,true,null,"",null,null,false,null,null,null,null,null,null,null,null,null,null,null,null,null,null,false,false]
[null,null,null,null,{"$f":"IF(ISBLANK(D645), \"\", VLOOKUP(D645, UnitsLookup, 2,FALSE))","v":""},null,null,null,{"$f":"IF(ISBLANK(H645), \"\", VLOOKUP(H645, ContainerTypeLookup, 2,FALSE))","v":""},null,{"$f":"IF(ISBLANK(J645), \"\", VLOOKUP(J645, PreservativeLookup, 2,FALSE))","v":""},null,null,null,null,null,null,null,null,true,null,{"$f":"IF(ISBLANK(U645), \"\", VLOOKUP(U645, MethodLookup, 2,FALSE))","v":""},null,null,false,null,null,null,null,null,null,null,null,null,null,null,null,null,null,false,false]
[null,null,null,null,"",null,null,null,"",null,"",null,null,null,null,null,null,null,null,true,null,"",null,null,false,null,null,null,null,null,null,null,null,null,null,null,null,null,null,false,false]
[null,null,null,null,"",null,null,null,"",null,"",null,null,null,null,null,null,null,null,true,null,"",null,null,false,null,null,null,null,null,null,null,null,null,null,null,null,null,null,false,false]
[null,null,null,null,"",null,null,null,"",null,"",null,null,null,null,null,null,null,null,true,null,"",null,null,false,null,null,null,null,null,null,null,null,null,null,null,null,null,null,false,false]
[null,null,null,null,"",null,null,null,"",null,"",null,null,null,null,null,null,null,null,true,null,"",null,null,false,null,null,null,null,null,null,null,null,null,null,null,null,null,null,false,false]
[null,null,null,null,"",null,null,null,"",null,"",null,null,null,null,null,null,null,null,true,null,"",null,null,false,null,null,null,null,null,null,null,null,null,null,null,null,null,null,false,false]
[null,null,null,null,"",null,null,null,"",null,"",null,null,null,null,null,null,null,null,true,null,"",null,null,false,null,null,null,null,null,null,null,null,null,null,null,null,null,null,false,false]
[null,null,null,null,"",null,null,null,"",null,"",null,null,null,null,null,null,null,null,true,null,"",null,null,false,null,null,null,null,null,null,null,null,null,null,null,null,null,null,false,false]
[null,null,null,null,"",null,null,null,"",null,"",null,null,null,null,null,null,null,null,true,null,"",null,null,false,null,null,null,null,null,null,null,null,null,null,null,null,null,null,false,false]
[null,null,null,null,"",null,null,null,"",null,"",null,null,null,null,null,null,null,null,true,null,"",null,null,false,null,null,null,null,null,null,null,null,null,null,null,null,null,null,false,false]
[null,null,null,null,"",null,null,null,"",null,"",null,null,null,null,null,null,null,null,true,null,"",null,null,false,null,null,null,null,null,null,null,null,null,null,null,null,null,null,false,false]
[null,null,null,null,"",null,null,null,"",null,"",null,null,null,null,null,null,null,null,true,null,"",null,null,false,null,null,null,null,null,null,null,null,null,null,null,null,null,null,false,false]
[null,null,null,null,"",null,null,null,"",null,"",null,null,null,null,null,null,null,null,true,null,"",null,null,false,null,null,null,null,null,null,null,null,null,null,null,null,null,null,false,false]
[null,null,null,null,"",null,null,null,"",null,"",null,null,null,null,null,null,null,null,true,null,"",null,null,false,null,null,null,null,null,null,null,null,null,null,null,null,null,null,false,false]
[null,null,null,null,"",null,null,null,"",null,"",null,null,null,null,null,null,null,null,true,null,"",null,null,false,null,null,null,null,null,null,null,null,null,null,null,null,null,null,false,false]
[null,null,null,null,"",null,null,null,"",null,"",null,null,null,null,null,null,null,null,true,null,"",null,null,false,null,null,null,null,null,null,null,null,null,null,null,null,null,null,false,false]
[null,null,null,null,"",null,null,null,"",null,"",null,null,null,null,null,null,null,null,true,null,"",null,null,false,null,null,null,null,null,null,null,null,null,null,null,null,null,null,false,false]
[null,null,null,null,"",null,null,null,"",null,"",null,null,null,null,null,null,null,null,true,null,"",null,null,false,null,null,null,null,null,null,null,null,null,null,null,null,null,null,false,false]
[null,null,null,null,"",null,null,null,"",null,"",null,null,null,null,null,null,null,null,true,null,"",null,null,false,null,null,null,null,null,null,null,null,null,null,null,null,null,null,false,false]
[null,null,null,null,"",null,null,null,"",null,"",null,null,null,null,null,null,null,null,true,null,"",null,null,false,null,null,null,null,null,null,null,null,null,null,null,null,null,null,false,false]
[null,null,null,null,"",null,null,null,"",null,"",null,null,null,null,null,null,null,null,true,null,"",null,null,false,null,null,null,null,null,null,null,null,null,null,null,null,null,null,false,false]
[null,null,null,null,"",null,null,null,"",null,"",null,null,null,null,null,null,null,null,true,null,"",null,null,false,null,null,null,null,null,null,null,null,null,null,null,null,null,null,false,false]
[null,null,null,null,"",null,null,null,"",null,"",null,null,null,null,null,null,null,null,true,null,"",null,null,false,null,null,null,null,null,null,null,null,null,null,null,null,null,null,false,false]
[null,null,null,null,"",null,null,null,"",null,"",null,null,null,null,null,null,null,null,true,null,"",null,null,false,null,null,null,null,null,null,null,null,null,null,null,null,null,null,false,false]
[null,null,null,null,"",null,null,null,"",null,"",null,null,null,null,null,null,null,null,true,null,"",null,null,false,null,null,null,null,null,null,null,null,null,null,null,null,null,null,false,false]
[null,null,null,null,"",null,null,null,"",null,"",null,null,null,null,null,null,null,null,true,null,"",null,null,false,null,null,null,null,null,null,null,null,null,null,null,null,null,null,false,false]
[null,null,null,null,"",null,null,null,"",null,"",null,null,null,null,null,null,null,null,true,null,"",null,null,false,null,null,null,null,null,null,null,null,null,null,null,null,null,null,false,false]
[null,null,null,null,"",null,null,null,"",null,"",null,null,null,null,null,null,null,null,true,null,"",null,null,false,null,null,null,null,null,null,null,null,null,null,null,null,null,null,false,false]
[null,null,null,null,"",null,null,null,"",null,"",null,null,null,null,null,null,null,null,true,null,"",null,null,false,null,null,null,null,null,null,null,null,null,null,null,null,null,null,false,false]
[null,null,null,null,"",null,null,null,"",null,"",null,null,null,null,null,null,null,null,true,null,"",null,null,false,null,null,null,null,null,null,null,null,null,null,null,null,null,null,false,false]
[null,null,null,null,"",null,null,null,"",null,"",null,null,null,null,null,null,null,null,true,null,"",null,null,false,null,null,null,null,null,null,null,null,null,null,null,null,null,null,false,false]
[null,null,null,null,"",null,null,null,"",null,"",null,null,null,null,null,null,null,null,true,null,"",null,null,false,null,null,null,null,null,null,null,null,null,null,null,null,null,null,false,false]
[null,null,null,null,"",null,null,null,"",null,"",null,null,null,null,null,null,null,null,true,null,"",null,null,false,null,null,null,null,null,null,null,null,null,null,null,null,null,null,false,false]
[null,null,null,null,"",null,null,null,"",null,"",null,null,null,null,null,null,null,null,true,null,"",null,null,false,null,null,null,null,null,null,null,null,null,null,null,null,null,null,false,false]
[null,null,null,null,"",null,null,null,"",null,"",null,null,null,null,null,null,null,null,true,null,"",null,null,false,null,null,null,null,null,null,null,null,null,null,null,null,null,null,false,false]
[null,null,null,null,"",null,null,null,"",null,"",null,null,null,null,null,null,null,null,true,null,"",null,null,false,null,null,null,null,null,null,null,null,null,null,null,null,null,null,false,false]
[null,null,null,null,"",null,null,null,"",null,"",null,null,null,null,null,null,null,null,true,null,"",null,null,false,null,null,null,null,null,null,null,null,null,null,null,null,null,null,false,false]
[null,null,null,null,"",null,null,null,"",null,"",null,null,null,null,null,null,null,null,true,null,"",null,null,false,null,null,null,null,null,null,null,null,null,null,null,null,null,null,false,false]
[null,null,null,null,"",null,null,null,"",null,"",null,null,null,null,null,null,null,null,true,null,"",null,null,false,null,null,null,null,null,null,null,null,null,null,null,null,null,null,false,false]
[null,null,null,null,"",null,null,null,"",null,"",null,null,null,null,null,null,null,null,true,null,"",null,null,false,null,null,null,null,null,null,null,null,null,null,null,null,null,null,false,false]
[null,null,null,null,"",null,null,null,"",null,"",null,null,null,null,null,null,null,null,true,null,"",null,null,false,null,null,null,null,null,null,null,null,null,null,null,null,null,null,false,false]
[null,null,null,null,"",null,null,null,"",null,"",null,null,null,null,null,null,null,null,true,null,"",null,null,false,null,null,null,null,null,null,null,null,null,null,null,null,null,null,false,false]
[null,null,null,null,"",null,null,null,"",null,"",null,null,null,null,null,null,null,null,true,null,"",null,null,false,null,null,null,null,null,null,null,null,null,null,null,null,null,null,false,false]
[null,null,null,null,"",null,null,null,"",null,"",null,null,null,null,null,null,null,null,true,null,"",null,null,false,null,null,null,null,null,null,null,null,null,null,null,null,null,null,false,false]
[null,null,null,null,"",null,null,null,"",null,"",null,null,null,null,null,null,null,null,true,null,"",null,null,false,null,null,null,null,null,null,null,null,null,null,null,null,null,null,false,false]
[null,null,null,null,"",null,null,null,"",null,"",null,null,null,null,null,null,null,null,true,null,"",null,null,false,null,null,null,null,null,null,null,null,null,null,null,null,null,null,false,false]
[null,null,null,null,"",null,null,null,"",null,"",null,null,null,null,null,null,null,null,true,null,"",null,null,false,null,null,null,null,null,null,null,null,null,null,null,null,null,null,false,false]
[null,null,null,null,"",null,null,null,"",null,"",null,null,null,null,null,null,null,null,true,null,"",null,null,false,null,null,null,null,null,null,null,null,null,null,null,null,null,null,false,false]
[null,null,null,null,"",null,null,null,"",null,"",null,null,null,null,null,null,null,null,true,null,"",null,null,false,null,null,null,null,null,null,null,null,null,null,null,null,null,null,false,false]
[null,null,null,null,"",null,null,null,"",null,"",null,null,null,null,null,null,null,null,true,null,"",null,null,false,null,null,null,null,null,null,null,null,null,null,null,null,null,null,false,false]
[null,null,null,null,"",null,null,null,"",null,"",null,null,null,null,null,null,null,null,true,null,"",null,null,false,null,null,null,null,null,null,null,null,null,null,null,null,null,null,false,false]
[null,null,null,null,"",null,null,null,"",null,"",null,null,null,null,null,null,null,null,true,null,"",null,null,false,null,null,null,null,null,null,null,null,null,null,null,null,null,null,false,false]
[null,null,null,null,"",null,null,null,"",null,"",null,null,null,null,null,null,null,null,true,null,"",null,null,false,null,null,null,null,null,null,null,null,null,null,null,null,null,null,false,false]
[null,null,null,null,"",null,null,null,"",null,"",null,null,null,null,null,null,null,null,true,null,"",null,null,false,null,null,null,null,null,null,null,null,null,null,null,null,null,null,false,false]
[null,null,null,null,"",null,null,null,"",null,"",null,null,null,null,null,null,null,null,true,null,"",null,null,false,null,null,null,null,null,null,null,null,null,null,null,null,null,null,false,false]
[null,null,null,null,"",null,null,null,"",null,"",null,null,null,null,null,null,null,null,true,null,"",null,null,false,null,null,null,null,null,null,null,null,null,null,null,null,null,null,false,false]
[null,null,null,null,"",null,null,null,"",null,"",null,null,null,null,null,null,null,null,true,null,"",null,null,false,null,null,null,null,null,null,null,null,null,null,null,null,null,null,false,false]
[null,null,null,null,"",null,null,null,"",null,"",null,null,null,null,null,null,null,null,true,null,"",null,null,false,null,null,null,null,null,null,null,null,null,null,null,null,null,null,false,false]
[null,null,null,null,"",null,null,null,"",null,"",null,null,null,null,null,null,null,null,true,null,"",null,null,false,null,null,null,null,null,null,null,null,null,null,null,null,null,null,false,false]
[null,null,null,null,"",null,null,null,"",null,"",null,null,null,null,null,null,null,null,true,null,"",null,null,false,null,null,null,null,null,null,null,null,null,null,null,null,null,null,false,false]
[null,null,null,null,"",null,null,null,"",null,"",null,null,null,null,null,null,null,null,true,null,"",null,null,false,null,null,null,null,null,null,null,null,null,null,null,null,null,null,false,false]
[null,null,null,null,"",null,null,null,"",null,"",null,null,null,null,null,null,null,null,true,null,"",null,null,false,null,null,null,null,null,null,null,null,null,null,null,null,null,null,false,false]
[null,null,null,null,"",null,null,null,"",null,"",null,null,null,null,null,null,null,null,true,null,"",null,null,false,null,null,null,null,null,null,null,null,null,null,null,null,null,null,false,false]
[null,null,null,null,"",null,null,null,"",null,"",null,null,null,null,null,null,null,null,true,null,"",null,null,false,null,null,null,null,null,null,null,null,null,null,null,null,null,null,false,false]
[null,null,null,null,{"$f":"IF(ISBLANK(D709), \"\", VLOOKUP(D709, UnitsLookup, 2,FALSE))","v":""},null,null,null,{"$f":"IF(ISBLANK(H709), \"\", VLOOKUP(H709, ContainerTypeLookup, 2,FALSE))","v":""},null,{"$f":"IF(ISBLANK(J709), \"\", VLOOKUP(J709, PreservativeLookup, 2,FALSE))","v":""},null,null,null,null,null,null,null,null,true,null,{"$f":"IF(ISBLANK(U709), \"\", VLOOKUP(U709, MethodLookup, 2,FALSE))","v":""},null,null,false,null,null,null,null,null,null,null,null,null,null,null,null,null,null,false,false]
[null,null,null,null,"",null,null,null,"",null,"",null,null,null,null,null,null,null,null,true,null,"",null,null,false,null,null,null,null,null,null,null,null,null,null,null,null,null,null,false,false]
[null,null,null,null,"",null,null,null,"",null,"",null,null,null,null,null,null,null,null,true,null,"",null,null,false,null,null,null,null,null,null,null,null,null,null,null,null,null,null,false,false]
[null,null,null,null,"",null,null,null,"",null,"",null,null,null,null,null,null,null,null,true,null,"",null,null,false,null,null,null,null,null,null,null,null,null,null,null,null,null,null,false,false]
[null,null,null,null,"",null,null,null,"",null,"",null,null,null,null,null,null,null,null,true,null,"",null,null,false,null,null,null,null,null,null,null,null,null,null,null,null,null,null,false,false]
[null,null,null,null,"",null,null,null,"",null,"",null,null,null,null,null,null,null,null,true,null,"",null,null,false,null,null,null,null,null,null,null,null,null,null,null,null,null,null,false,false]
[null,null,null,null,"",null,null,null,"",null,"",null,null,null,null,null,null,null,null,true,null,"",null,null,false,null,null,null,null,null,null,null,null,null,null,null,null,null,null,false,false]
[null,null,null,null,"",null,null,null,"",null,"",null,null,null,null,null,null,null,null,true,null,"",null,null,false,null,null,null,null,null,null,null,null,null,null,null,null,null,null,false,false]
[null,null,null,null,"",null,null,null,"",null,"",null,null,null,null,null,null,null,null,true,null,"",null,null,false,null,null,null,null,null,null,null,null,null,null,null,null,null,null,false,false]
[null,null,null,null,"",null,null,null,"",null,"",null,null,null,null,null,null,null,null,true,null,"",null,null,false,null,null,null,null,null,null,null,null,null,null,null,null,null,null,false,false]
[null,null,null,null,"",null,null,null,"",null,"",null,null,null,null,null,null,null,null,true,null,"",null,null,false,null,null,null,null,null,null,null,null,null,null,null,null,null,null,false,false]
[null,null,null,null,"",null,null,null,"",null,"",null,null,null,null,null,null,null,null,true,null,"",null,null,false,null,null,null,null,null,null,null,null,null,null,null,null,null,null,false,false]
[null,null,null,null,"",null,null,null,"",null,"",null,null,null,null,null,null,null,null,true,null,"",null,null,false,null,null,null,null,null,null,null,null,null,null,null,null,null,null,false,false]
[null,null,null,null,"",null,null,null,"",null,"",null,null,null,null,null,null,null,null,true,null,"",null,null,false,null,null,null,null,null,null,null,null,null,null,null,null,null,null,false,false]
[null,null,null,null,"",null,null,null,"",null,"",null,null,null,null,null,null,null,null,true,null,"",null,null,false,null,null,null,null,null,null,null,null,null,null,null,null,null,null,false,false]
[null,null,null,null,"",null,null,null,"",null,"",null,null,null,null,null,null,null,null,true,null,"",null,null,false,null,null,null,null,null,null,null,null,null,null,null,null,null,null,false,false]
[null,null,null,null,"",null,null,null,"",null,"",null,null,null,null,null,null,null,null,true,null,"",null,null,false,null,null,null,null,null,null,null,null,null,null,null,null,null,null,false,false]
[null,null,null,null,"",null,null,null,"",null,"",null,null,null,null,null,null,null,null,true,null,"",null,null,false,null,null,null,null,null,null,null,null,null,null,null,null,null,null,false,false]
[null,null,null,null,"",null,null,null,"",null,"",null,null,null,null,null,null,null,null,true,null,"",null,null,false,null,null,null,null,null,null,null,null,null,null,null,null,null,null,false,false]
[null,null,null,null,"",null,null,null,"",null,"",null,null,null,null,null,null,null,null,true,null,"",null,null,false,null,null,null,null,null,null,null,null,null,null,null,null,null,null,false,false]
[null,null,null,null,"",null,null,null,"",null,"",null,null,null,null,null,null,null,null,true,null,"",null,null,false,null,null,null,null,null,null,null,null,null,null,null,null,null,null,false,false]
[null,null,null,null,"",null,null,null,"",null,"",null,null,null,null,null,null,null,null,true,null,"",null,null,false,null,null,null,null,null,null,null,null,null,null,null,null,null,null,false,false]
[null,null,null,null,"",null,null,null,"",null,"",null,null,null,null,null,null,null,null,true,null,"",null,null,false,null,null,null,null,null,null,null,null,null,null,null,null,null,null,false,false]
[null,null,null,null,"",null,null,null,"",null,"",null,null,null,null,null,null,null,null,true,null,"",null,null,false,null,null,null,null,null,null,null,null,null,null,null,null,null,null,false,false]
[null,null,null,null,"",null,null,null,"",null,"",null,null,null,null,null,null,null,null,true,null,"",null,null,false,null,null,null,null,null,null,null,null,null,null,null,null,null,null,false,false]
[null,null,null,null,"",null,null,null,"",null,"",null,null,null,null,null,null,null,null,true,null,"",null,null,false,null,null,null,null,null,null,null,null,null,null,null,null,null,null,false,false]
[null,null,null,null,"",null,null,null,"",null,"",null,null,null,null,null,null,null,null,true,null,"",null,null,false,null,null,null,null,null,null,null,null,null,null,null,null,null,null,false,false]
[null,null,null,null,"",null,null,null,"",null,"",null,null,null,null,null,null,null,null,true,null,"",null,null,false,null,null,null,null,null,null,null,null,null,null,null,null,null,null,false,false]
[null,null,null,null,"",null,null,null,"",null,"",null,null,null,null,null,null,null,null,true,null,"",null,null,false,null,null,null,null,null,null,null,null,null,null,null,null,null,null,false,false]
[null,null,null,null,"",null,null,null,"",null,"",null,null,null,null,null,null,null,null,true,null,"",null,null,false,null,null,null,null,null,null,null,null,null,null,null,null,null,null,false,false]
[null,null,null,null,"",null,null,null,"",null,"",null,null,null,null,null,null,null,null,true,null,"",null,null,false,null,null,null,null,null,null,null,null,null,null,null,null,null,null,false,false]
[null,null,null,null,"",null,null,null,"",null,"",null,null,null,null,null,null,null,null,true,null,"",null,null,false,null,null,null,null,null,null,null,null,null,null,null,null,null,null,false,false]
[null,null,null,null,"",null,null,null,"",null,"",null,null,null,null,null,null,null,null,true,null,"",null,null,false,null,null,null,null,null,null,null,null,null,null,null,null,null,null,false,false]
[null,null,null,null,"",null,null,null,"",null,"",null,null,null,null,null,null,null,null,true,null,"",null,null,false,null,null,null,null,null,null,null,null,null,null,null,null,null,null,false,false]
[null,null,null,null,"",null,null,null,"",null,"",null,null,null,null,null,null,null,null,true,null,"",null,null,false,null,null,null,null,null,null,null,null,null,null,null,null,null,null,false,false]
[null,null,null,null,"",null,null,null,"",null,"",null,null,null,null,null,null,null,null,true,null,"",null,null,false,null,null,null,null,null,null,null,null,null,null,null,null,null,null,false,false]
[null,null,null,null,"",null,null,null,"",null,"",null,null,null,null,null,null,null,null,true,null,"",null,null,false,null,null,null,null,null,null,null,null,null,null,null,null,null,null,false,false]
[null,null,null,null,"",null,null,null,"",null,"",null,null,null,null,null,null,null,null,true,null,"",null,null,false,null,null,null,null,null,null,null,null,null,null,null,null,null,null,false,false]
[null,null,null,null,"",null,null,null,"",null,"",null,null,null,null,null,null,null,null,true,null,"",null,null,false,null,null,null,null,null,null,null,null,null,null,null,null,null,null,false,false]
[null,null,null,null,"",null,null,null,"",null,"",null,null,null,null,null,null,null,null,true,null,"",null,null,false,null,null,null,null,null,null,null,null,null,null,null,null,null,null,false,false]
[null,null,null,null,"",null,null,null,"",null,"",null,null,null,null,null,null,null,null,true,null,"",null,null,false,null,null,null,null,null,null,null,null,null,null,null,null,null,null,false,false]
[null,null,null,null,"",null,null,null,"",null,"",null,null,null,null,null,null,null,null,true,null,"",null,null,false,null,null,null,null,null,null,null,null,null,null,null,null,null,null,false,false]
[null,null,null,null,"",null,null,null,"",null,"",null,null,null,null,null,null,null,null,true,null,"",null,null,false,null,null,null,null,null,null,null,null,null,null,null,null,null,null,false,false]
[null,null,null,null,"",null,null,null,"",null,"",null,null,null,null,null,null,null,null,true,null,"",null,null,false,null,null,null,null,null,null,null,null,null,null,null,null,null,null,false,false]
[null,null,null,null,"",null,null,null,"",null,"",null,null,null,null,null,null,null,null,true,null,"",null,null,false,null,null,null,null,null,null,null,null,null,null,null,null,null,null,false,false]
[null,null,null,null,"",null,null,null,"",null,"",null,null,null,null,null,null,null,null,true,null,"",null,null,false,null,null,null,null,null,null,null,null,null,null,null,null,null,null,false,false]
[null,null,null,null,"",null,null,null,"",null,"",null,null,null,null,null,null,null,null,true,null,"",null,null,false,null,null,null,null,null,null,null,null,null,null,null,null,null,null,false,false]
[null,null,null,null,"",null,null,null,"",null,"",null,null,null,null,null,null,null,null,true,null,"",null,null,false,null,null,null,null,null,null,null,null,null,null,null,null,null,null,false,false]
[null,null,null,null,"",null,null,null,"",null,"",null,null,null,null,null,null,null,null,true,null,"",null,null,false,null,null,null,null,null,null,null,null,null,null,null,null,null,null,false,false]
[null,null,null,null,"",null,null,null,"",null,"",null,null,null,null,null,null,null,null,true,null,"",null,null,false,null,null,null,null,null,null,null,null,null,null,null,null,null,null,false,false]
[null,null,null,null,"",null,null,null,"",null,"",null,null,null,null,null,null,null,null,true,null,"",null,null,false,null,null,null,null,null,null,null,null,null,null,null,null,null,null,false,false]
[null,null,null,null,"",null,null,null,"",null,"",null,null,null,null,null,null,null,null,true,null,"",null,null,false,null,null,null,null,null,null,null,null,null,null,null,null,null,null,false,false]
[null,null,null,null,"",null,null,null,"",null,"",null,null,null,null,null,null,null,null,true,null,"",null,null,false,null,null,null,null,null,null,null,null,null,null,null,null,null,null,false,false]
[null,null,null,null,"",null,null,null,"",null,"",null,null,null,null,null,null,null,null,true,null,"",null,null,false,null,null,null,null,null,null,null,null,null,null,null,null,null,null,false,false]
[null,null,null,null,"",null,null,null,"",null,"",null,null,null,null,null,null,null,null,true,null,"",null,null,false,null,null,null,null,null,null,null,null,null,null,null,null,null,null,false,false]
[null,null,null,null,"",null,null,null,"",null,"",null,null,null,null,null,null,null,null,true,null,"",null,null,false,null,null,null,null,null,null,null,null,null,null,null,null,null,null,false,false]
[null,null,null,null,"",null,null,null,"",null,"",null,null,null,null,null,null,null,null,true,null,"",null,null,false,null,null,null,null,null,null,null,null,null,null,null,null,null,null,false,false]
[null,null,null,null,"",null,null,null,"",null,"",null,null,null,null,null,null,null,null,true,null,"",null,null,false,null,null,null,null,null,null,null,null,null,null,null,null,null,null,false,false]
[null,null,null,null,"",null,null,null,"",null,"",null,null,null,null,null,null,null,null,true,null,"",null,null,false,null,null,null,null,null,null,null,null,null,null,null,null,null,null,false,false]
[null,null,null,null,"",null,null,null,"",null,"",null,null,null,null,null,null,null,null,true,null,"",null,null,false,null,null,null,null,null,null,null,null,null,null,null,null,null,null,false,false]
[null,null,null,null,"",null,null,null,"",null,"",null,null,null,null,null,null,null,null,true,null,"",null,null,false,null,null,null,null,null,null,null,null,null,null,null,null,null,null,false,false]
[null,null,null,null,"",null,null,null,"",null,"",null,null,null,null,null,null,null,null,true,null,"",null,null,false,null,null,null,null,null,null,null,null,null,null,null,null,null,null,false,false]
[null,null,null,null,"",null,null,null,"",null,"",null,null,null,null,null,null,null,null,true,null,"",null,null,false,null,null,null,null,null,null,null,null,null,null,null,null,null,null,false,false]
[null,null,null,null,"",null,null,null,"",null,"",null,null,null,null,null,null,null,null,true,null,"",null,null,false,null,null,null,null,null,null,null,null,null,null,null,null,null,null,false,false]
[null,null,null,null,{"$f":"IF(ISBLANK(D773), \"\", VLOOKUP(D773, UnitsLookup, 2,FALSE))","v":""},null,null,null,{"$f":"IF(ISBLANK(H773), \"\", VLOOKUP(H773, ContainerTypeLookup, 2,FALSE))","v":""},null,{"$f":"IF(ISBLANK(J773), \"\", VLOOKUP(J773, PreservativeLookup, 2,FALSE))","v":""},null,null,null,null,null,null,null,null,true,null,{"$f":"IF(ISBLANK(U773), \"\", VLOOKUP(U773, MethodLookup, 2,FALSE))","v":""},null,null,false,null,null,null,null,null,null,null,null,null,null,null,null,null,null,false,false]
[null,null,null,null,"",null,null,null,"",null,"",null,null,null,null,null,null,null,null,true,null,"",null,null,false,null,null,null,null,null,null,null,null,null,null,null,null,null,null,false,false]
[null,null,null,null,"",null,null,null,"",null,"",null,null,null,null,null,null,null,null,true,null,"",null,null,false,null,null,null,null,null,null,null,null,null,null,null,null,null,null,false,false]
[null,null,null,null,"",null,null,null,"",null,"",null,null,null,null,null,null,null,null,true,null,"",null,null,false,null,null,null,null,null,null,null,null,null,null,null,null,null,null,false,false]
[null,null,null,null,"",null,null,null,"",null,"",null,null,null,null,null,null,null,null,true,null,"",null,null,false,null,null,null,null,null,null,null,null,null,null,null,null,null,null,false,false]
[null,null,null,null,"",null,null,null,"",null,"",null,null,null,null,null,null,null,null,true,null,"",null,null,false,null,null,null,null,null,null,null,null,null,null,null,null,null,null,false,false]
[null,null,null,null,"",null,null,null,"",null,"",null,null,null,null,null,null,null,null,true,null,"",null,null,false,null,null,null,null,null,null,null,null,null,null,null,null,null,null,false,false]
[null,null,null,null,"",null,null,null,"",null,"",null,null,null,null,null,null,null,null,true,null,"",null,null,false,null,null,null,null,null,null,null,null,null,null,null,null,null,null,false,false]
[null,null,null,null,"",null,null,null,"",null,"",null,null,null,null,null,null,null,null,true,null,"",null,null,false,null,null,null,null,null,null,null,null,null,null,null,null,null,null,false,false]
[null,null,null,null,"",null,null,null,"",null,"",null,null,null,null,null,null,null,null,true,null,"",null,null,false,null,null,null,null,null,null,null,null,null,null,null,null,null,null,false,false]
[null,null,null,null,"",null,null,null,"",null,"",null,null,null,null,null,null,null,null,true,null,"",null,null,false,null,null,null,null,null,null,null,null,null,null,null,null,null,null,false,false]
[null,null,null,null,"",null,null,null,"",null,"",null,null,null,null,null,null,null,null,true,null,"",null,null,false,null,null,null,null,null,null,null,null,null,null,null,null,null,null,false,false]
[null,null,null,null,"",null,null,null,"",null,"",null,null,null,null,null,null,null,null,true,null,"",null,null,false,null,null,null,null,null,null,null,null,null,null,null,null,null,null,false,false]
[null,null,null,null,"",null,null,null,"",null,"",null,null,null,null,null,null,null,null,true,null,"",null,null,false,null,null,null,null,null,null,null,null,null,null,null,null,null,null,false,false]
[null,null,null,null,"",null,null,null,"",null,"",null,null,null,null,null,null,null,null,true,null,"",null,null,false,null,null,null,null,null,null,null,null,null,null,null,null,null,null,false,false]
[null,null,null,null,"",null,null,null,"",null,"",null,null,null,null,null,null,null,null,true,null,"",null,null,false,null,null,null,null,null,null,null,null,null,null,null,null,null,null,false,false]
[null,null,null,null,"",null,null,null,"",null,"",null,null,null,null,null,null,null,null,true,null,"",null,null,false,null,null,null,null,null,null,null,null,null,null,null,null,null,null,false,false]
[null,null,null,null,"",null,null,null,"",null,"",null,null,null,null,null,null,null,null,true,null,"",null,null,false,null,null,null,null,null,null,null,null,null,null,null,null,null,null,false,false]
[null,null,null,null,"",null,null,null,"",null,"",null,null,null,null,null,null,null,null,true,null,"",null,null,false,null,null,null,null,null,null,null,null,null,null,null,null,null,null,false,false]
[null,null,null,null,"",null,null,null,"",null,"",null,null,null,null,null,null,null,null,true,null,"",null,null,false,null,null,null,null,null,null,null,null,null,null,null,null,null,null,false,false]
[null,null,null,null,"",null,null,null,"",null,"",null,null,null,null,null,null,null,null,true,null,"",null,null,false,null,null,null,null,null,null,null,null,null,null,null,null,null,null,false,false]
[null,null,null,null,"",null,null,null,"",null,"",null,null,null,null,null,null,null,null,true,null,"",null,null,false,null,null,null,null,null,null,null,null,null,null,null,null,null,null,false,false]
[null,null,null,null,"",null,null,null,"",null,"",null,null,null,null,null,null,null,null,true,null,"",null,null,false,null,null,null,null,null,null,null,null,null,null,null,null,null,null,false,false]
[null,null,null,null,"",null,null,null,"",null,"",null,null,null,null,null,null,null,null,true,null,"",null,null,false,null,null,null,null,null,null,null,null,null,null,null,null,null,null,false,false]
[null,null,null,null,"",null,null,null,"",null,"",null,null,null,null,null,null,null,null,true,null,"",null,null,false,null,null,null,null,null,null,null,null,null,null,null,null,null,null,false,false]
[null,null,null,null,"",null,null,null,"",null,"",null,null,null,null,null,null,null,null,true,null,"",null,null,false,null,null,null,null,null,null,null,null,null,null,null,null,null,null,false,false]
[null,null,null,null,"",null,null,null,"",null,"",null,null,null,null,null,null,null,null,true,null,"",null,null,false,null,null,null,null,null,null,null,null,null,null,null,null,null,null,false,false]
[null,null,null,null,"",null,null,null,"",null,"",null,null,null,null,null,null,null,null,true,null,"",null,null,false,null,null,null,null,null,null,null,null,null,null,null,null,null,null,false,false]
[null,null,null,null,"",null,null,null,"",null,"",null,null,null,null,null,null,null,null,true,null,"",null,null,false,null,null,null,null,null,null,null,null,null,null,null,null,null,null,false,false]
[null,null,null,null,"",null,null,null,"",null,"",null,null,null,null,null,null,null,null,true,null,"",null,null,false,null,null,null,null,null,null,null,null,null,null,null,null,null,null,false,false]
[null,null,null,null,"",null,null,null,"",null,"",null,null,null,null,null,null,null,null,true,null,"",null,null,false,null,null,null,null,null,null,null,null,null,null,null,null,null,null,false,false]
[null,null,null,null,"",null,null,null,"",null,"",null,null,null,null,null,null,null,null,true,null,"",null,null,false,null,null,null,null,null,null,null,null,null,null,null,null,null,null,false,false]
[null,null,null,null,"",null,null,null,"",null,"",null,null,null,null,null,null,null,null,true,null,"",null,null,false,null,null,null,null,null,null,null,null,null,null,null,null,null,null,false,false]
[null,null,null,null,"",null,null,null,"",null,"",null,null,null,null,null,null,null,null,true,null,"",null,null,false,null,null,null,null,null,null,null,null,null,null,null,null,null,null,false,false]
[null,null,null,null,"",null,null,null,"",null,"",null,null,null,null,null,null,null,null,true,null,"",null,null,false,null,null,null,null,null,null,null,null,null,null,null,null,null,null,false,false]
[null,null,null,null,"",null,null,null,"",null,"",null,null,null,null,null,null,null,null,true,null,"",null,null,false,null,null,null,null,null,null,null,null,null,null,null,null,null,null,false,false]
[null,null,null,null,"",null,null,null,"",null,"",null,null,null,null,null,null,null,null,true,null,"",null,null,false,null,null,null,null,null,null,null,null,null,null,null,null,null,null,false,false]
[null,null,null,null,"",null,null,null,"",null,"",null,null,null,null,null,null,null,null,true,null,"",null,null,false,null,null,null,null,null,null,null,null,null,null,null,null,null,null,false,false]
[null,null,null,null,"",null,null,null,"",null,"",null,null,null,null,null,null,null,null,true,null,"",null,null,false,null,null,null,null,null,null,null,null,null,null,null,null,null,null,false,false]
[null,null,null,null,"",null,null,null,"",null,"",null,null,null,null,null,null,null,null,true,null,"",null,null,false,null,null,null,null,null,null,null,null,null,null,null,null,null,null,false,false]
[null,null,null,null,"",null,null,null,"",null,"",null,null,null,null,null,null,null,null,true,null,"",null,null,false,null,null,null,null,null,null,null,null,null,null,null,null,null,null,false,false]
[null,null,null,null,"",null,null,null,"",null,"",null,null,null,null,null,null,null,null,true,null,"",null,null,false,null,null,null,null,null,null,null,null,null,null,null,null,null,null,false,false]
[null,null,null,null,"",null,null,null,"",null,"",null,null,null,null,null,null,null,null,true,null,"",null,null,false,null,null,null,null,null,null,null,null,null,null,null,null,null,null,false,false]
[null,null,null,null,"",null,null,null,"",null,"",null,null,null,null,null,null,null,null,true,null,"",null,null,false,null,null,null,null,null,null,null,null,null,null,null,null,null,null,false,false]
[null,null,null,null,"",null,null,null,"",null,"",null,null,null,null,null,null,null,null,true,null,"",null,null,false,null,null,null,null,null,null,null,null,null,null,null,null,null,null,false,false]
[null,null,null,null,"",null,null,null,"",null,"",null,null,null,null,null,null,null,null,true,null,"",null,null,false,null,null,null,null,null,null,null,null,null,null,null,null,null,null,false,false]
[null,null,null,null,"",null,null,null,"",null,"",null,null,null,null,null,null,null,null,true,null,"",null,null,false,null,null,null,null,null,null,null,null,null,null,null,null,null,null,false,false]
[null,null,null,null,"",null,null,null,"",null,"",null,null,null,null,null,null,null,null,true,null,"",null,null,false,null,null,null,null,null,null,null,null,null,null,null,null,null,null,false,false]
[null,null,null,null,"",null,null,null,"",null,"",null,null,null,null,null,null,null,null,true,null,"",null,null,false,null,null,null,null,null,null,null,null,null,null,null,null,null,null,false,false]
[null,null,null,null,"",null,null,null,"",null,"",null,null,null,null,null,null,null,null,true,null,"",null,null,false,null,null,null,null,null,null,null,null,null,null,null,null,null,null,false,false]
[null,null,null,null,"",null,null,null,"",null,"",null,null,null,null,null,null,null,null,true,null,"",null,null,false,null,null,null,null,null,null,null,null,null,null,null,null,null,null,false,false]
[null,null,null,null,"",null,null,null,"",null,"",null,null,null,null,null,null,null,null,true,null,"",null,null,false,null,null,null,null,null,null,null,null,null,null,null,null,null,null,false,false]
[null,null,null,null,"",null,null,null,"",null,"",null,null,null,null,null,null,null,null,true,null,"",null,null,false,null,null,null,null,null,null,null,null,null,null,null,null,null,null,false,false]
[null,null,null,null,"",null,null,null,"",null,"",null,null,null,null,null,null,null,null,true,null,"",null,null,false,null,null,null,null,null,null,null,null,null,null,null,null,null,null,false,false]
[null,null,null,null,"",null,null,null,"",null,"",null,null,null,null,null,null,null,null,true,null,"",null,null,false,null,null,null,null,null,null,null,null,null,null,null,null,null,null,false,false]
[null,null,null,null,"",null,null,null,"",null,"",null,null,null,null,null,null,null,null,true,null,"",null,null,false,null,null,null,null,null,null,null,null,null,null,null,null,null,null,false,false]
[null,null,null,null,"",null,null,null,"",null,"",null,null,null,null,null,null,null,null,true,null,"",null,null,false,null,null,null,null,null,null,null,null,null,null,null,null,null,null,false,false]
[null,null,null,null,"",null,null,null,"",null,"",null,null,null,null,null,null,null,null,true,null,"",null,null,false,null,null,null,null,null,null,null,null,null,null,null,null,null,null,false,false]
[null,null,null,null,"",null,null,null,"",null,"",null,null,null,null,null,null,null,null,true,null,"",null,null,false,null,null,null,null,null,null,null,null,null,null,null,null,null,null,false,false]
[null,null,null,null,"",null,null,null,"",null,"",null,null,null,null,null,null,null,null,true,null,"",null,null,false,null,null,null,null,null,null,null,null,null,null,null,null,null,null,false,false]
[null,null,null,null,"",null,null,null,"",null,"",null,null,null,null,null,null,null,null,true,null,"",null,null,false,null,null,null,null,null,null,null,null,null,null,null,null,null,null,false,false]
[null,null,null,null,"",null,null,null,"",null,"",null,null,null,null,null,null,null,null,true,null,"",null,null,false,null,null,null,null,null,null,null,null,null,null,null,null,null,null,false,false]
[null,null,null,null,"",null,null,null,"",null,"",null,null,null,null,null,null,null,null,true,null,"",null,null,false,null,null,null,null,null,null,null,null,null,null,null,null,null,null,false,false]
[null,null,null,null,"",null,null,null,"",null,"",null,null,null,null,null,null,null,null,true,null,"",null,null,false,null,null,null,null,null,null,null,null,null,null,null,null,null,null,false,false]
[null,null,null,null,{"$f":"IF(ISBLANK(D837), \"\", VLOOKUP(D837, UnitsLookup, 2,FALSE))","v":""},null,null,null,{"$f":"IF(ISBLANK(H837), \"\", VLOOKUP(H837, ContainerTypeLookup, 2,FALSE))","v":""},null,{"$f":"IF(ISBLANK(J837), \"\", VLOOKUP(J837, PreservativeLookup, 2,FALSE))","v":""},null,null,null,null,null,null,null,null,true,null,{"$f":"IF(ISBLANK(U837), \"\", VLOOKUP(U837, MethodLookup, 2,FALSE))","v":""},null,null,false,null,null,null,null,null,null,null,null,null,null,null,null,null,null,false,false]
[null,null,null,null,"",null,null,null,"",null,"",null,null,null,null,null,null,null,null,true,null,"",null,null,false,null,null,null,null,null,null,null,null,null,null,null,null,null,null,false,false]
[null,null,null,null,"",null,null,null,"",null,"",null,null,null,null,null,null,null,null,true,null,"",null,null,false,null,null,null,null,null,null,null,null,null,null,null,null,null,null,false,false]
[null,null,null,null,"",null,null,null,"",null,"",null,null,null,null,null,null,null,null,true,null,"",null,null,false,null,null,null,null,null,null,null,null,null,null,null,null,null,null,false,false]
[null,null,null,null,"",null,null,null,"",null,"",null,null,null,null,null,null,null,null,true,null,"",null,null,false,null,null,null,null,null,null,null,null,null,null,null,null,null,null,false,false]
[null,null,null,null,"",null,null,null,"",null,"",null,null,null,null,null,null,null,null,true,null,"",null,null,false,null,null,null,null,null,null,null,null,null,null,null,null,null,null,false,false]
[null,null,null,null,"",null,null,null,"",null,"",null,null,null,null,null,null,null,null,true,null,"",null,null,false,null,null,null,null,null,null,null,null,null,null,null,null,null,null,false,false]
[null,null,null,null,"",null,null,null,"",null,"",null,null,null,null,null,null,null,null,true,null,"",null,null,false,null,null,null,null,null,null,null,null,null,null,null,null,null,null,false,false]
[null,null,null,null,"",null,null,null,"",null,"",null,null,null,null,null,null,null,null,true,null,"",null,null,false,null,null,null,null,null,null,null,null,null,null,null,null,null,null,false,false]
[null,null,null,null,"",null,null,null,"",null,"",null,null,null,null,null,null,null,null,true,null,"",null,null,false,null,null,null,null,null,null,null,null,null,null,null,null,null,null,false,false]
[null,null,null,null,"",null,null,null,"",null,"",null,null,null,null,null,null,null,null,true,null,"",null,null,false,null,null,null,null,null,null,null,null,null,null,null,null,null,null,false,false]
[null,null,null,null,"",null,null,null,"",null,"",null,null,null,null,null,null,null,null,true,null,"",null,null,false,null,null,null,null,null,null,null,null,null,null,null,null,null,null,false,false]
[null,null,null,null,"",null,null,null,"",null,"",null,null,null,null,null,null,null,null,true,null,"",null,null,false,null,null,null,null,null,null,null,null,null,null,null,null,null,null,false,false]
[null,null,null,null,"",null,null,null,"",null,"",null,null,null,null,null,null,null,null,true,null,"",null,null,false,null,null,null,null,null,null,null,null,null,null,null,null,null,null,false,false]
[null,null,null,null,"",null,null,null,"",null,"",null,null,null,null,null,null,null,null,true,null,"",null,null,false,null,null,null,null,null,null,null,null,null,null,null,null,null,null,false,false]
[null,null,null,null,"",null,null,null,"",null,"",null,null,null,null,null,null,null,null,true,null,"",null,null,false,null,null,null,null,null,null,null,null,null,null,null,null,null,null,false,false]
[null,null,null,null,"",null,null,null,"",null,"",null,null,null,null,null,null,null,null,true,null,"",null,null,false,null,null,null,null,null,null,null,null,null,null,null,null,null,null,false,false]
[null,null,null,null,"",null,null,null,"",null,"",null,null,null,null,null,null,null,null,true,null,"",null,null,false,null,null,null,null,null,null,null,null,null,null,null,null,null,null,false,false]
[null,null,null,null,"",null,null,null,"",null,"",null,null,null,null,null,null,null,null,true,null,"",null,null,false,null,null,null,null,null,null,null,null,null,null,null,null,null,null,false,false]
[null,null,null,null,"",null,null,null,"",null,"",null,null,null,null,null,null,null,null,true,null,"",null,null,false,null,null,null,null,null,null,null,null,null,null,null,null,null,null,false,false]
[null,null,null,null,"",null,null,null,"",null,"",null,null,null,null,null,null,null,null,true,null,"",null,null,false,null,null,null,null,null,null,null,null,null,null,null,null,null,null,false,false]
[null,null,null,null,"",null,null,null,"",null,"",null,null,null,null,null,null,null,null,true,null,"",null,null,false,null,null,null,null,null,null,null,null,null,null,null,null,null,null,false,false]
[null,null,null,null,"",null,null,null,"",null,"",null,null,null,null,null,null,null,null,true,null,"",null,null,false,null,null,null,null,null,null,null,null,null,null,null,null,null,null,false,false]
[null,null,null,null,"",null,null,null,"",null,"",null,null,null,null,null,null,null,null,true,null,"",null,null,false,null,null,null,null,null,null,null,null,null,null,null,null,null,null,false,false]
[null,null,null,null,"",null,null,null,"",null,"",null,null,null,null,null,null,null,null,true,null,"",null,null,false,null,null,null,null,null,null,null,null,null,null,null,null,null,null,false,false]
[null,null,null,null,"",null,null,null,"",null,"",null,null,null,null,null,null,null,null,true,null,"",null,null,false,null,null,null,null,null,null,null,null,null,null,null,null,null,null,false,false]
[null,null,null,null,"",null,null,null,"",null,"",null,null,null,null,null,null,null,null,true,null,"",null,null,false,null,null,null,null,null,null,null,null,null,null,null,null,null,null,false,false]
[null,null,null,null,"",null,null,null,"",null,"",null,null,null,null,null,null,null,null,true,null,"",null,null,false,null,null,null,null,null,null,null,null,null,null,null,null,null,null,false,false]
[null,null,null,null,"",null,null,null,"",null,"",null,null,null,null,null,null,null,null,true,null,"",null,null,false,null,null,null,null,null,null,null,null,null,null,null,null,null,null,false,false]
[null,null,null,null,"",null,null,null,"",null,"",null,null,null,null,null,null,null,null,true,null,"",null,null,false,null,null,null,null,null,null,null,null,null,null,null,null,null,null,false,false]
[null,null,null,null,"",null,null,null,"",null,"",null,null,null,null,null,null,null,null,true,null,"",null,null,false,null,null,null,null,null,null,null,null,null,null,null,null,null,null,false,false]
[null,null,null,null,"",null,null,null,"",null,"",null,null,null,null,null,null,null,null,true,null,"",null,null,false,null,null,null,null,null,null,null,null,null,null,null,null,null,null,false,false]
[null,null,null,null,"",null,null,null,"",null,"",null,null,null,null,null,null,null,null,true,null,"",null,null,false,null,null,null,null,null,null,null,null,null,null,null,null,null,null,false,false]
[null,null,null,null,"",null,null,null,"",null,"",null,null,null,null,null,null,null,null,true,null,"",null,null,false,null,null,null,null,null,null,null,null,null,null,null,null,null,null,false,false]
[null,null,null,null,"",null,null,null,"",null,"",null,null,null,null,null,null,null,null,true,null,"",null,null,false,null,null,null,null,null,null,null,null,null,null,null,null,null,null,false,false]
[null,null,null,null,"",null,null,null,"",null,"",null,null,null,null,null,null,null,null,true,null,"",null,null,false,null,null,null,null,null,null,null,null,null,null,null,null,null,null,false,false]
[null,null,null,null,"",null,null,null,"",null,"",null,null,null,null,null,null,null,null,true,null,"",null,null,false,null,null,null,null,null,null,null,null,null,null,null,null,null,null,false,false]
[null,null,null,null,"",null,null,null,"",null,"",null,null,null,null,null,null,null,null,true,null,"",null,null,false,null,null,null,null,null,null,null,null,null,null,null,null,null,null,false,false]
[null,null,null,null,"",null,null,null,"",null,"",null,null,null,null,null,null,null,null,true,null,"",null,null,false,null,null,null,null,null,null,null,null,null,null,null,null,null,null,false,false]
[null,null,null,null,"",null,null,null,"",null,"",null,null,null,null,null,null,null,null,true,null,"",null,null,false,null,null,null,null,null,null,null,null,null,null,null,null,null,null,false,false]
[null,null,null,null,"",null,null,null,"",null,"",null,null,null,null,null,null,null,null,true,null,"",null,null,false,null,null,null,null,null,null,null,null,null,null,null,null,null,null,false,false]
[null,null,null,null,"",null,null,null,"",null,"",null,null,null,null,null,null,null,null,true,null,"",null,null,false,null,null,null,null,null,null,null,null,null,null,null,null,null,null,false,false]
[null,null,null,null,"",null,null,null,"",null,"",null,null,null,null,null,null,null,null,true,null,"",null,null,false,null,null,null,null,null,null,null,null,null,null,null,null,null,null,false,false]
[null,null,null,null,"",null,null,null,"",null,"",null,null,null,null,null,null,null,null,true,null,"",null,null,false,null,null,null,null,null,null,null,null,null,null,null,null,null,null,false,false]
[null,null,null,null,"",null,null,null,"",null,"",null,null,null,null,null,null,null,null,true,null,"",null,null,false,null,null,null,null,null,null,null,null,null,null,null,null,null,null,false,false]
[null,null,null,null,"",null,null,null,"",null,"",null,null,null,null,null,null,null,null,true,null,"",null,null,false,null,null,null,null,null,null,null,null,null,null,null,null,null,null,false,false]
[null,null,null,null,"",null,null,null,"",null,"",null,null,null,null,null,null,null,null,true,null,"",null,null,false,null,null,null,null,null,null,null,null,null,null,null,null,null,null,false,false]
[null,null,null,null,"",null,null,null,"",null,"",null,null,null,null,null,null,null,null,true,null,"",null,null,false,null,null,null,null,null,null,null,null,null,null,null,null,null,null,false,false]
[null,null,null,null,"",null,null,null,"",null,"",null,null,null,null,null,null,null,null,true,null,"",null,null,false,null,null,null,null,null,null,null,null,null,null,null,null,null,null,false,false]
[null,null,null,null,"",null,null,null,"",null,"",null,null,null,null,null,null,null,null,true,null,"",null,null,false,null,null,null,null,null,null,null,null,null,null,null,null,null,null,false,false]
[null,null,null,null,"",null,null,null,"",null,"",null,null,null,null,null,null,null,null,true,null,"",null,null,false,null,null,null,null,null,null,null,null,null,null,null,null,null,null,false,false]
[null,null,null,null,"",null,null,null,"",null,"",null,null,null,null,null,null,null,null,true,null,"",null,null,false,null,null,null,null,null,null,null,null,null,null,null,null,null,null,false,false]
[null,null,null,null,"",null,null,null,"",null,"",null,null,null,null,null,null,null,null,true,null,"",null,null,false,null,null,null,null,null,null,null,null,null,null,null,null,null,null,false,false]
[null,null,null,null,"",null,null,null,"",null,"",null,null,null,null,null,null,null,null,true,null,"",null,null,false,null,null,null,null,null,null,null,null,null,null,null,null,null,null,false,false]
[null,null,null,null,"",null,null,null,"",null,"",null,null,null,null,null,null,null,null,true,null,"",null,null,false,null,null,null,null,null,null,null,null,null,null,null,null,null,null,false,false]
[null,null,null,null,"",null,null,null,"",null,"",null,null,null,null,null,null,null,null,true,null,"",null,null,false,null,null,null,null,null,null,null,null,null,null,null,null,null,null,false,false]
[null,null,null,null,"",null,null,null,"",null,"",null,null,null,null,null,null,null,null,true,null,"",null,null,false,null,null,null,null,null,null,null,null,null,null,null,null,null,null,false,false]
[null,null,null,null,"",null,null,null,"",null,"",null,null,null,null,null,null,null,null,true,null,"",null,null,false,null,null,null,null,null,null,null,null,null,null,null,null,null,null,false,false]
[null,null,null,null,"",null,null,null,"",null,"",null,null,null,null,null,null,null,null,true,null,"",null,null,false,null,null,null,null,null,null,null,null,null,null,null,null,null,null,false,false]
[null,null,null,null,"",null,null,null,"",null,"",null,null,null,null,null,null,null,null,true,null,"",null,null,false,null,null,null,null,null,null,null,null,null,null,null,null,null,null,false,false]
[null,null,null,null,"",null,null,null,"",null,"",null,null,null,null,null,null,null,null,true,null,"",null,null,false,null,null,null,null,null,null,null,null,null,null,null,null,null,null,false,false]
[null,null,null,null,"",null,null,null,"",null,"",null,null,null,null,null,null,null,null,true,null,"",null,null,false,null,null,null,null,null,null,null,null,null,null,null,null,null,null,false,false]
[null,null,null,null,"",null,null,null,"",null,"",null,null,null,null,null,null,null,null,true,null,"",null,null,false,null,null,null,null,null,null,null,null,null,null,null,null,null,null,false,false]
[null,null,null,null,"",null,null,null,"",null,"",null,null,null,null,null,null,null,null,true,null,"",null,null,false,null,null,null,null,null,null,null,null,null,null,null,null,null,null,false,false]
[null,null,null,null,{"$f":"IF(ISBLANK(D901), \"\", VLOOKUP(D901, UnitsLookup, 2,FALSE))","v":""},null,null,null,{"$f":"IF(ISBLANK(H901), \"\", VLOOKUP(H901, ContainerTypeLookup, 2,FALSE))","v":""},null,{"$f":"IF(ISBLANK(J901), \"\", VLOOKUP(J901, PreservativeLookup, 2,FALSE))","v":""},null,null,null,null,null,null,null,null,true,null,{"$f":"IF(ISBLANK(U901), \"\", VLOOKUP(U901, MethodLookup, 2,FALSE))","v":""},null,null,false,null,null,null,null,null,null,null,null,null,null,null,null,null,null,false,false]
[null,null,null,null,"",null,null,null,"",null,"",null,null,null,null,null,null,null,null,true,null,"",null,null,false,null,null,null,null,null,null,null,null,null,null,null,null,null,null,false,false]
[null,null,null,null,"",null,null,null,"",null,"",null,null,null,null,null,null,null,null,true,null,"",null,null,false,null,null,null,null,null,null,null,null,null,null,null,null,null,null,false,false]
[null,null,null,null,"",null,null,null,"",null,"",null,null,null,null,null,null,null,null,true,null,"",null,null,false,null,null,null,null,null,null,null,null,null,null,null,null,null,null,false,false]
[null,null,null,null,"",null,null,null,"",null,"",null,null,null,null,null,null,null,null,true,null,"",null,null,false,null,null,null,null,null,null,null,null,null,null,null,null,null,null,false,false]
[null,null,null,null,"",null,null,null,"",null,"",null,null,null,null,null,null,null,null,true,null,"",null,null,false,null,null,null,null,null,null,null,null,null,null,null,null,null,null,false,false]
[null,null,null,null,"",null,null,null,"",null,"",null,null,null,null,null,null,null,null,true,null,"",null,null,false,null,null,null,null,null,null,null,null,null,null,null,null,null,null,false,false]
[null,null,null,null,"",null,null,null,"",null,"",null,null,null,null,null,null,null,null,true,null,"",null,null,false,null,null,null,null,null,null,null,null,null,null,null,null,null,null,false,false]
[null,null,null,null,"",null,null,null,"",null,"",null,null,null,null,null,null,null,null,true,null,"",null,null,false,null,null,null,null,null,null,null,null,null,null,null,null,null,null,false,false]
[null,null,null,null,"",null,null,null,"",null,"",null,null,null,null,null,null,null,null,true,null,"",null,null,false,null,null,null,null,null,null,null,null,null,null,null,null,null,null,false,false]
[null,null,null,null,"",null,null,null,"",null,"",null,null,null,null,null,null,null,null,true,null,"",null,null,false,null,null,null,null,null,null,null,null,null,null,null,null,null,null,false,false]
[null,null,null,null,"",null,null,null,"",null,"",null,null,null,null,null,null,null,null,true,null,"",null,null,false,null,null,null,null,null,null,null,null,null,null,null,null,null,null,false,false]
[null,null,null,null,"",null,null,null,"",null,"",null,null,null,null,null,null,null,null,true,null,"",null,null,false,null,null,null,null,null,null,null,null,null,null,null,null,null,null,false,false]
[null,null,null,null,"",null,null,null,"",null,"",null,null,null,null,null,null,null,null,true,null,"",null,null,false,null,null,null,null,null,null,null,null,null,null,null,null,null,null,false,false]
[null,null,null,null,"",null,null,null,"",null,"",null,null,null,null,null,null,null,null,true,null,"",null,null,false,null,null,null,null,null,null,null,null,null,null,null,null,null,null,false,false]
[null,null,null,null,"",null,null,null,"",null,"",null,null,null,null,null,null,null,null,true,null,"",null,null,false,null,null,null,null,null,null,null,null,null,null,null,null,null,null,false,false]
[null,null,null,null,"",null,null,null,"",null,"",null,null,null,null,null,null,null,null,true,null,"",null,null,false,null,null,null,null,null,null,null,null,null,null,null,null,null,null,false,false]
[null,null,null,null,"",null,null,null,"",null,"",null,null,null,null,null,null,null,null,true,null,"",null,null,false,null,null,null,null,null,null,null,null,null,null,null,null,null,null,false,false]
[null,null,null,null,"",null,null,null,"",null,"",null,null,null,null,null,null,null,null,true,null,"",null,null,false,null,null,null,null,null,null,null,null,null,null,null,null,null,null,false,false]
[null,null,null,null,"",null,null,null,"",null,"",null,null,null,null,null,null,null,null,true,null,"",null,null,false,null,null,null,null,null,null,null,null,null,null,null,null,null,null,false,false]
[null,null,null,null,"",null,null,null,"",null,"",null,null,null,null,null,null,null,null,true,null,"",null,null,false,null,null,null,null,null,null,null,null,null,null,null,null,null,null,false,false]
[null,null,null,null,"",null,null,null,"",null,"",null,null,null,null,null,null,null,null,true,null,"",null,null,false,null,null,null,null,null,null,null,null,null,null,null,null,null,null,false,false]
[null,null,null,null,"",null,null,null,"",null,"",null,null,null,null,null,null,null,null,true,null,"",null,null,false,null,null,null,null,null,null,null,null,null,null,null,null,null,null,false,false]
[null,null,null,null,"",null,null,null,"",null,"",null,null,null,null,null,null,null,null,true,null,"",null,null,false,null,null,null,null,null,null,null,null,null,null,null,null,null,null,false,false]
[null,null,null,null,"",null,null,null,"",null,"",null,null,null,null,null,null,null,null,true,null,"",null,null,false,null,null,null,null,null,null,null,null,null,null,null,null,null,null,false,false]
[null,null,null,null,"",null,null,null,"",null,"",null,null,null,null,null,null,null,null,true,null,"",null,null,false,null,null,null,null,null,null,null,null,null,null,null,null,null,null,false,false]
[null,null,null,null,"",null,null,null,"",null,"",null,null,null,null,null,null,null,null,true,null,"",null,null,false,null,null,null,null,null,null,null,null,null,null,null,null,null,null,false,false]
[null,null,null,null,"",null,null,null,"",null,"",null,null,null,null,null,null,null,null,true,null,"",null,null,false,null,null,null,null,null,null,null,null,null,null,null,null,null,null,false,false]
[null,null,null,null,"",null,null,null,"",null,"",null,null,null,null,null,null,null,null,true,null,"",null,null,false,null,null,null,null,null,null,null,null,null,null,null,null,null,null,false,false]
[null,null,null,null,"",null,null,null,"",null,"",null,null,null,null,null,null,null,null,true,null,"",null,null,false,null,null,null,null,null,null,null,null,null,null,null,null,null,null,false,false]
[null,null,null,null,"",null,null,null,"",null,"",null,null,null,null,null,null,null,null,true,null,"",null,null,false,null,null,null,null,null,null,null,null,null,null,null,null,null,null,false,false]
[null,null,null,null,"",null,null,null,"",null,"",null,null,null,null,null,null,null,null,true,null,"",null,null,false,null,null,null,null,null,null,null,null,null,null,null,null,null,null,false,false]
[null,null,null,null,"",null,null,null,"",null,"",null,null,null,null,null,null,null,null,true,null,"",null,null,false,null,null,null,null,null,null,null,null,null,null,null,null,null,null,false,false]
[null,null,null,null,"",null,null,null,"",null,"",null,null,null,null,null,null,null,null,true,null,"",null,null,false,null,null,null,null,null,null,null,null,null,null,null,null,null,null,false,false]
[null,null,null,null,"",null,null,null,"",null,"",null,null,null,null,null,null,null,null,true,null,"",null,null,false,null,null,null,null,null,null,null,null,null,null,null,null,null,null,false,false]
[null,null,null,null,"",null,null,null,"",null,"",null,null,null,null,null,null,null,null,true,null,"",null,null,false,null,null,null,null,null,null,null,null,null,null,null,null,null,null,false,false]
[null,null,null,null,"",null,null,null,"",null,"",null,null,null,null,null,null,null,null,true,null,"",null,null,false,null,null,null,null,null,null,null,null,null,null,null,null,null,null,false,false]
[null,null,null,null,"",null,null,null,"",null,"",null,null,null,null,null,null,null,null,true,null,"",null,null,false,null,null,null,null,null,null,null,null,null,null,null,null,null,null,false,false]
[null,null,null,null,"",null,null,null,"",null,"",null,null,null,null,null,null,null,null,true,null,"",null,null,false,null,null,null,null,null,null,null,null,null,null,null,null,null,null,false,false]
[null,null,null,null,"",null,null,null,"",null,"",null,null,null,null,null,null,null,null,true,null,"",null,null,false,null,null,null,null,null,null,null,null,null,null,null,null,null,null,false,false]
[null,null,null,null,"",null,null,null,"",null,"",null,null,null,null,null,null,null,null,true,null,"",null,null,false,null,null,null,null,null,null,null,null,null,null,null,null,null,null,false,false]
[null,null,null,null,"",null,null,null,"",null,"",null,null,null,null,null,null,null,null,true,null,"",null,null,false,null,null,null,null,null,null,null,null,null,null,null,null,null,null,false,false]
[null,null,null,null,"",null,null,null,"",null,"",null,null,null,null,null,null,null,null,true,null,"",null,null,false,null,null,null,null,null,null,null,null,null,null,null,null,null,null,false,false]
[null,null,null,null,"",null,null,null,"",null,"",null,null,null,null,null,null,null,null,true,null,"",null,null,false,null,null,null,null,null,null,null,null,null,null,null,null,null,null,false,false]
[null,null,null,null,"",null,null,null,"",null,"",null,null,null,null,null,null,null,null,true,null,"",null,null,false,null,null,null,null,null,null,null,null,null,null,null,null,null,null,false,false]
[null,null,null,null,"",null,null,null,"",null,"",null,null,null,null,null,null,null,null,true,null,"",null,null,false,null,null,null,null,null,null,null,null,null,null,null,null,null,null,false,false]
[null,null,null,null,"",null,null,null,"",null,"",null,null,null,null,null,null,null,null,true,null,"",null,null,false,null,null,null,null,null,null,null,null,null,null,null,null,null,null,false,false]
[null,null,null,null,"",null,null,null,"",null,"",null,null,null,null,null,null,null,null,true,null,"",null,null,false,null,null,null,null,null,null,null,null,null,null,null,null,null,null,false,false]
[null,null,null,null,"",null,null,null,"",null,"",null,null,null,null,null,null,null,null,true,null,"",null,null,false,null,null,null,null,null,null,null,null,null,null,null,null,null,null,false,false]
[null,null,null,null,"",null,null,null,"",null,"",null,null,null,null,null,null,null,null,true,null,"",null,null,false,null,null,null,null,null,null,null,null,null,null,null,null,null,null,false,false]
[null,null,null,null,"",null,null,null,"",null,"",null,null,null,null,null,null,null,null,true,null,"",null,null,false,null,null,null,null,null,null,null,null,null,null,null,null,null,null,false,false]
[null,null,null,null,"",null,null,null,"",null,"",null,null,null,null,null,null,null,null,true,null,"",null,null,false,null,null,null,null,null,null,null,null,null,null,null,null,null,null,false,false]
[null,null,null,null,"",null,null,null,"",null,"",null,null,null,null,null,null,null,null,true,null,"",null,null,false,null,null,null,null,null,null,null,null,null,null,null,null,null,null,false,false]
[null,null,null,null,"",null,null,null,"",null,"",null,null,null,null,null,null,null,null,true,null,"",null,null,false,null,null,null,null,null,null,null,null,null,null,null,null,null,null,false,false]
[null,null,null,null,"",null,null,null,"",null,"",null,null,null,null,null,null,null,null,true,null,"",null,null,false,null,null,null,null,null,null,null,null,null,null,null,null,null,null,false,false]
[null,null,null,null,"",null,null,null,"",null,"",null,null,null,null,null,null,null,null,true,null,"",null,null,false,null,null,null,null,null,null,null,null,null,null,null,null,null,null,false,false]
[null,null,null,null,"",null,null,null,"",null,"",null,null,null,null,null,null,null,null,true,null,"",null,null,false,null,null,null,null,null,null,null,null,null,null,null,null,null,null,false,false]
[null,null,null,null,"",null,null,null,"",null,"",null,null,null,null,null,null,null,null,true,null,"",null,null,false,null,null,null,null,null,null,null,null,null,null,null,null,null,null,false,false]
[null,null,null,null,"",null,null,null,"",null,"",null,null,null,null,null,null,null,null,true,null,"",null,null,false,null,null,null,null,null,null,null,null,null,null,null,null,null,null,false,false]
[null,null,null,null,"",null,null,null,"",null,"",null,null,null,null,null,null,null,null,true,null,"",null,null,false,null,null,null,null,null,null,null,null,null,null,null,null,null,null,false,false]
[null,null,null,null,"",null,null,null,"",null,"",null,null,null,null,null,null,null,null,true,null,"",null,null,false,null,null,null,null,null,null,null,null,null,null,null,null,null,null,false,false]
[null,null,null,null,"",null,null,null,"",null,"",null,null,null,null,null,null,null,null,true,null,"",null,null,false,null,null,null,null,null,null,null,null,null,null,null,null,null,null,false,false]
[null,null,null,null,"",null,null,null,"",null,"",null,null,null,null,null,null,null,null,true,null,"",null,null,false,null,null,null,null,null,null,null,null,null,null,null,null,null,null,false,false]
[null,null,null,null,"",null,null,null,"",null,"",null,null,null,null,null,null,null,null,true,null,"",null,null,false,null,null,null,null,null,null,null,null,null,null,null,null,null,null,false,false]
[null,null,null,null,{"$f":"IF(ISBLANK(D965), \"\", VLOOKUP(D965, UnitsLookup, 2,FALSE))","v":""},null,null,null,{"$f":"IF(ISBLANK(H965), \"\", VLOOKUP(H965, ContainerTypeLookup, 2,FALSE))","v":""},null,{"$f":"IF(ISBLANK(J965), \"\", VLOOKUP(J965, PreservativeLookup, 2,FALSE))","v":""},null,null,null,null,null,null,null,null,true,null,{"$f":"IF(ISBLANK(U965), \"\", VLOOKUP(U965, MethodLookup, 2,FALSE))","v":""},null,null,false,null,null,null,null,null,null,null,null,null,null,null,null,null,null,false,false]
[null,null,null,null,"",null,null,null,"",null,"",null,null,null,null,null,null,null,null,true,null,"",null,null,false,null,null,null,null,null,null,null,null,null,null,null,null,null,null,false,false]
[null,null,null,null,"",null,null,null,"",null,"",null,null,null,null,null,null,null,null,true,null,"",null,null,false,null,null,null,null,null,null,null,null,null,null,null,null,null,null,false,false]
[null,null,null,null,"",null,null,null,"",null,"",null,null,null,null,null,null,null,null,true,null,"",null,null,false,null,null,null,null,null,null,null,null,null,null,null,null,null,null,false,false]
[null,null,null,null,"",null,null,null,"",null,"",null,null,null,null,null,null,null,null,true,null,"",null,null,false,null,null,null,null,null,null,null,null,null,null,null,null,null,null,false,false]
[null,null,null,null,"",null,null,null,"",null,"",null,null,null,null,null,null,null,null,true,null,"",null,null,false,null,null,null,null,null,null,null,null,null,null,null,null,null,null,false,false]
[null,null,null,null,"",null,null,null,"",null,"",null,null,null,null,null,null,null,null,true,null,"",null,null,false,null,null,null,null,null,null,null,null,null,null,null,null,null,null,false,false]
[null,null,null,null,"",null,null,null,"",null,"",null,null,null,null,null,null,null,null,true,null,"",null,null,false,null,null,null,null,null,null,null,null,null,null,null,null,null,null,false,false]
[null,null,null,null,"",null,null,null,"",null,"",null,null,null,null,null,null,null,null,true,null,"",null,null,false,null,null,null,null,null,null,null,null,null,null,null,null,null,null,false,false]
[null,null,null,null,"",null,null,null,"",null,"",null,null,null,null,null,null,null,null,true,null,"",null,null,false,null,null,null,null,null,null,null,null,null,null,null,null,null,null,false,false]
[null,null,null,null,"",null,null,null,"",null,"",null,null,null,null,null,null,null,null,true,null,"",null,null,false,null,null,null,null,null,null,null,null,null,null,null,null,null,null,false,false]
[null,null,null,null,"",null,null,null,"",null,"",null,null,null,null,null,null,null,null,true,null,"",null,null,false,null,null,null,null,null,null,null,null,null,null,null,null,null,null,false,false]
[null,null,null,null,"",null,null,null,"",null,"",null,null,null,null,null,null,null,null,true,null,"",null,null,false,null,null,null,null,null,null,null,null,null,null,null,null,null,null,false,false]
[null,null,null,null,"",null,null,null,"",null,"",null,null,null,null,null,null,null,null,true,null,"",null,null,false,null,null,null,null,null,null,null,null,null,null,null,null,null,null,false,false]
[null,null,null,null,"",null,null,null,"",null,"",null,null,null,null,null,null,null,null,true,null,"",null,null,false,null,null,null,null,null,null,null,null,null,null,null,null,null,null,false,false]
[null,null,null,null,"",null,null,null,"",null,"",null,null,null,null,null,null,null,null,true,null,"",null,null,false,null,null,null,null,null,null,null,null,null,null,null,null,null,null,false,false]
[null,null,null,null,"",null,null,null,"",null,"",null,null,null,null,null,null,null,null,true,null,"",null,null,false,null,null,null,null,null,null,null,null,null,null,null,null,null,null,false,false]
[null,null,null,null,"",null,null,null,"",null,"",null,null,null,null,null,null,null,null,true,null,"",null,null,false,null,null,null,null,null,null,null,null,null,null,null,null,null,null,false,false]
[null,null,null,null,"",null,null,null,"",null,"",null,null,null,null,null,null,null,null,true,null,"",null,null,false,null,null,null,null,null,null,null,null,null,null,null,null,null,null,false,false]
[null,null,null,null,"",null,null,null,"",null,"",null,null,null,null,null,null,null,null,true,null,"",null,null,false,null,null,null,null,null,null,null,null,null,null,null,null,null,null,false,false]
[null,null,null,null,"",null,null,null,"",null,"",null,null,null,null,null,null,null,null,true,null,"",null,null,false,null,null,null,null,null,null,null,null,null,null,null,null,null,null,false,false]
[null,null,null,null,"",null,null,null,"",null,"",null,null,null,null,null,null,null,null,true,null,"",null,null,false,null,null,null,null,null,null,null,null,null,null,null,null,null,null,false,false]
[null,null,null,null,"",null,null,null,"",null,"",null,null,null,null,null,null,null,null,true,null,"",null,null,false,null,null,null,null,null,null,null,null,null,null,null,null,null,null,false,false]
[null,null,null,null,"",null,null,null,"",null,"",null,null,null,null,null,null,null,null,true,null,"",null,null,false,null,null,null,null,null,null,null,null,null,null,null,null,null,null,false,false]
[null,null,null,null,"",null,null,null,"",null,"",null,null,null,null,null,null,null,null,true,null,"",null,null,false,null,null,null,null,null,null,null,null,null,null,null,null,null,null,false,false]
[null,null,null,null,"",null,null,null,"",null,"",null,null,null,null,null,null,null,null,true,null,"",null,null,false,null,null,null,null,null,null,null,null,null,null,null,null,null,null,false,false]
[null,null,null,null,"",null,null,null,"",null,"",null,null,null,null,null,null,null,null,true,null,"",null,null,false,null,null,null,null,null,null,null,null,null,null,null,null,null,null,false,false]
[null,null,null,null,"",null,null,null,"",null,"",null,null,null,null,null,null,null,null,true,null,"",null,null,false,null,null,null,null,null,null,null,null,null,null,null,null,null,null,false,false]
[null,null,null,null,"",null,null,null,"",null,"",null,null,null,null,null,null,null,null,true,null,"",null,null,false,null,null,null,null,null,null,null,null,null,null,null,null,null,null,false,false]
[null,null,null,null,"",null,null,null,"",null,"",null,null,null,null,null,null,null,null,true,null,"",null,null,false,null,null,null,null,null,null,null,null,null,null,null,null,null,null,false,false]
[null,null,null,null,"",null,null,null,"",null,"",null,null,null,null,null,null,null,null,true,null,"",null,null,false,null,null,null,null,null,null,null,null,null,null,null,null,null,null,false,false]
[null,null,null,null,"",null,null,null,"",null,"",null,null,null,null,null,null,null,null,true,null,"",null,null,false,null,null,null,null,null,null,null,null,null,null,null,null,null,null,false,false]
[null,null,null,null,"",null,null,null,"",null,"",null,null,null,null,null,null,null,null,true,null,"",null,null,false,null,null,null,null,null,null,null,null,null,null,null,null,null,null,false,false]
[null,null,null,null,"",null,null,null,"",null,"",null,null,null,null,null,null,null,null,true,null,"",null,null,false,null,null,null,null,null,null,null,null,null,null,null,null,null,null,false,false]
[null,null,null,null,"",null,null,null,"",null,"",null,null,null,null,null,null,null,null,true,null,"",null,null,false,null,null,null,null,null,null,null,null,null,null,null,null,null,null,false,false]
[null,null,null,null,"",null,null,null,"",null,"",null,null,null,null,null,null,null,null,true,null,"",null,null,false,null,null,null,null,null,null,null,null,null,null,null,null,null,null,false,false]
[null,null,null,null,"",null,null,null,"",null,"",null,null,null,null,null,null,null,null,true,null,"",null,null,false,null,null,null,null,null,null,null,null,null,null,null,null,null,null,false,false]

{"sheet":"Settings","index":1,"n_rows":5,"n_cols":11,"rows_kept":5,"cut":false,"hidden":false,"merged":[]}
["LIMS Access Version:",14]
["Max Analyte Length:",30]
[]
["Units.Name","UnitsID",null,"ContainerType.Name","ContainerTypeID",null,"Preservative.Name","PreservativeID",null,"Method.Name","MethodID"]
["cfu/g",1,null,"N/A",1,null,"N/A",1,null,"Method #1",1]